Local authority department which incurred the expenditure,Service Division,Cost Centre,Summary of the Purpose of Expenditure,Expense Type,Expense Code,Detailed Expense Type,Date of Transaction,Transaction Number,Beneficiary,Merchant Category Number,Merchant Category,Gross Amount,VAT,Net Amount
"Regeneration, Economy and Growth",Development and Housing,031576,B& B - Temp Accom,Supplies and Services,364320,Grants to Voluntary Organisations,01-Jan-2021,000009369844409,TRAVELODGE,3615,Accommodation assistance,26.28,4.38,21.90
"Regeneration, Economy and Growth",Development and Housing,031576,B& B - Temp Accom,Supplies and Services,364320,Grants to Voluntary Organisations,01-Jan-2021,000009369844409 - 1,TRAVELODGE,3615,Accommodation assistance,65.69,,65.69
Children and Young Peoples Services,Head of Education and Skills,075021,Youth Employment Initiative,Supplies and Services,336005,Advertising E336,01-Jan-2021,000009369844467,FACEBK 9XZZWZ2TS2,7311,Advertising other than for staff,33.25,0.00,33.25
Children and Young Peoples Services,Head of Childrens Social Care,085332,Middlestone Moor CU,Supplies and Services,324117,Provisions E324,01-Jan-2021,000009369844631,ASDA SUPERSTORE 4987,5411,Catering costs - provisions,43.65,0.00,43.65
Children and Young Peoples Services,Head of Childrens Social Care,085332,Middlestone Moor CU,Supplies and Services,348037,Subsistence E348,01-Jan-2021,000009369844635,MCDONALD`S,5812,Subsistence,22.43,0.00,22.43
Children and Young Peoples Services,Head of Childrens Social Care,085342,16 Hickstead Rise (previously 9 Cedar Ave),Supplies and Services,324117,Provisions E324,01-Jan-2021,000009369844777,TESCO STORES 2916,5411,Catering costs - provisions,13.49,0.00,13.49
Children and Young Peoples Services,Head of Childrens Social Care,085342,16 Hickstead Rise (previously 9 Cedar Ave),Supplies and Services,324117,Provisions E324,01-Jan-2021,000009369844783,TESCO STORES 2916,5411,Catering costs - provisions,5.00,0.00,5.00
Children and Young Peoples Services,Head of Childrens Social Care,085342,16 Hickstead Rise (previously 9 Cedar Ave),Supplies and Services,324117,Provisions E324,01-Jan-2021,000009369844787,TESCO STORES 2916,5411,Catering costs - provisions,61.20,0.00,61.20
Children and Young Peoples Services,Head of Childrens Social Care,085342,16 Hickstead Rise (previously 9 Cedar Ave),Supplies and Services,348037,Subsistence E348,01-Jan-2021,000009369844789,ShakeNCake,5812,Subsistence,22.20,0.00,22.20
Children and Young Peoples Services,Head of Childrens Social Care,085342,16 Hickstead Rise (previously 9 Cedar Ave),Supplies and Services,324117,Provisions E324,01-Jan-2021,000009369845207,TESCO STORES 2916,5411,Catering costs - provisions,62.92,0.00,62.92
"Regeneration, Economy and Growth",Business Durham CL0850,030689,Inward Investment and Aftercare,Supplies and Services,304403,Equipment and Materials,02-Jan-2021,000009369844311,ADOBE CREATIVE CLOUD,5734,Other consumables,49.94,0.00,49.94
"Regeneration, Economy and Growth",Business Durham CL0850,030689,Inward Investment and Aftercare,Supplies and Services,342222,Computers and Communications,02-Jan-2021,000009369844313,FASTHOSTS INTERNET,4816,Comp hardware purch-network servers,67.20,0.00,67.20
"Regeneration, Economy and Growth",Business Durham CL0850,030689,Inward Investment and Aftercare,Supplies and Services,342222,Computers and Communications,02-Jan-2021,000009369844317,FASTHOSTS INTERNET,4816,Comp hardware purch-network servers,72.66,0.00,72.66
"Regeneration, Economy and Growth",Culture Sport and Tourism,030708,VCD - Marketing & Information,Supplies and Services,384199,Miscellaneous Expenses,02-Jan-2021,000009369844495,MAILCHIMP MONTHLY,5968,Other hired and contracted services,207.42,0.00,207.42
Children and Young Peoples Services,Head of Childrens Social Care,085342,16 Hickstead Rise (previously 9 Cedar Ave),Supplies and Services,304999,Equipment and Materials,02-Jan-2021,000009369844513,HOME BARGAINS,5251,Misc equipment tools and materials,4.67,0.00,4.67
Children and Young Peoples Services,Head of Childrens Social Care,085342,16 Hickstead Rise (previously 9 Cedar Ave),Supplies and Services,324117,Provisions E324,02-Jan-2021,000009369844519,TESCO STORES 6329,5411,Catering costs - provisions,9.00,0.00,9.00
Children and Young Peoples Services,Head of Childrens Social Care,085342,16 Hickstead Rise (previously 9 Cedar Ave),Supplies and Services,324117,Provisions E324,02-Jan-2021,000009369844523,TESCO STORES 6329,5411,Catering costs - provisions,22.33,0.00,22.33
Children and Young Peoples Services,Head of Childrens Social Care,085332,Middlestone Moor CU,Supplies and Services,348037,Subsistence E348,02-Jan-2021,000009369844629,Just Eat,5814,Subsistence,27.30,0.00,27.30
Children and Young Peoples Services,Head of Education and Skills,071903,Early Years Sustainability,Supplies and Services,304999,Equipment and Materials,02-Jan-2021,000009369844881,Adobe.com,5817,Misc equipment tools and materials,23.99,0.00,23.99
Children and Young Peoples Services,Head of Childrens Social Care,085351,Framwellgate Moor CU,Supplies and Services,324117,Provisions E324,02-Jan-2021,000009369845427,ASDA GROCERIES ONLINE,5411,Catering costs - provisions,229.47,0.00,229.47
Children and Young Peoples Services,Head of Childrens Social Care,085351,Framwellgate Moor CU,Supplies and Services,324117,Provisions E324,02-Jan-2021,000009369845429,ASDA GROCERIES ONLINE,5411,Catering costs - provisions,-1.00,0.00,-1.00
Children and Young Peoples Services,Head of Education and Skills,070169,Durham SSP,Supplies and Services,384199,Miscellaneous Expenses,02-Jan-2021,000009369845463,ZOOM.US 888-799-9666,4814,Other hired and contracted services,14.39,0.00,14.39
Children and Young Peoples Services,Head of Childrens Social Care,085333,Coxhoe Satelite Home,Supplies and Services,328041,Clothing uniforms and laundry E328,02-Jan-2021,000009369845531,ARGOS LTD,5310,Clothing uniforms and laundry,26.99,0.00,26.99
Children and Young Peoples Services,Head of Childrens Social Care,085333,Coxhoe Satelite Home,Supplies and Services,324117,Provisions E324,02-Jan-2021,000009369845535,SAINSBURYS (2303),5411,Catering costs - provisions,64.13,0.00,64.13
Children and Young Peoples Services,Head of Education and Skills,071801,Selby Cottage Childcare Centre,Supplies and Services,304999,Equipment and Materials,03-Jan-2021,000009369844345,APPLE.COM/BILL,5815,Misc equipment tools and materials,9.99,0.00,9.99
"Regeneration, Economy and Growth",Development and Housing,031576,B& B - Temp Accom,Supplies and Services,364320,Grants to Voluntary Organisations,03-Jan-2021,000009369844439,TRAVELODGE,3615,Accommodation assistance,43.33,0.00,43.33
"Regeneration, Economy and Growth",Culture Sport and Tourism,030705,Visit County Durham 030705,Supplies and Services,384199,Miscellaneous Expenses,03-Jan-2021,000009369844497,FASTHOSTS INTERNET,4816,Other hired and contracted services,6.34,1.06,5.28
Children and Young Peoples Services,Head of Childrens Social Care,085332,Middlestone Moor CU,Supplies and Services,384999,Miscellaneous Expenses,03-Jan-2021,000009369844639,Amazon.co.uk MJ7LG0MV4,5969,Other expenses,58.09,9.72,48.37
Children and Young Peoples Services,Head of Childrens Social Care,085332,Middlestone Moor CU,Supplies and Services,324117,Provisions E324,03-Jan-2021,000009369844647,Kandy Kaye,5441,Catering costs - provisions,7.50,0.00,7.50
Children and Young Peoples Services,Head of Childrens Social Care,085332,Middlestone Moor CU,Supplies and Services,324117,Provisions E324,03-Jan-2021,000009369844651,ASDA SUPERSTORE 4987,5411,Catering costs - provisions,11.56,0.00,11.56
Children and Young Peoples Services,Head of Early Help Inclusion & Vulnerable Children.,085962,Aycliffe Secure - Durham,Supplies and Services,304403,Equipment and Materials,03-Jan-2021,000009369844851,AMZNMktplace,5999,Other consumables,35.10,0.00,35.10
Children and Young Peoples Services,Head of Early Help Inclusion & Vulnerable Children.,085962,Aycliffe Secure - Durham,Supplies and Services,304403,Equipment and Materials,03-Jan-2021,000009369844855,AMZNMktplace,5999,Other consumables,45.47,0.00,45.47
Children and Young Peoples Services,Head of Early Help Inclusion & Vulnerable Children.,085962,Aycliffe Secure - Durham,Supplies and Services,384999,Miscellaneous Expenses,03-Jan-2021,000009369844859,Amazon.co.uk MJ3RL15D4,5969,Other expenses,49.99,0.00,49.99
Resources BK0010,People & Talent Management,010984,Training and Development,Supplies and Services,384999,Miscellaneous Expenses,03-Jan-2021,000009369845035,Amazon.co.uk MJ3QB55A4,5969,Other expenses,20.51,0.00,20.51
Children and Young Peoples Services,Head of Childrens Social Care,085332,Middlestone Moor CU,Supplies and Services,324117,Provisions E324,03-Jan-2021,000009369845387,ASDA SUPERSTORE 4987,5411,Catering costs - provisions,17.08,0.00,17.08
Children and Young Peoples Services,Head of Childrens Social Care,085351,Framwellgate Moor CU,Supplies and Services,304259,Equipment and Materials,03-Jan-2021,000009369845421,M and M Direct Ltd,5941,Equipment-purchase and rental,64.97,0.00,64.97
"Regeneration, Economy and Growth",Business Durham CL0850,030689,Inward Investment and Aftercare,Supplies and Services,336005,Advertising E336,04-Jan-2021,000009372895749,GOOGLE ADS6853017821,7311,Advertising other than for staff,59.16,0.00,59.16
"Regeneration, Economy and Growth",Business Durham CL0850,030689,Inward Investment and Aftercare,Supplies and Services,342222,Computers and Communications,04-Jan-2021,000009372895757,FASTHOSTS INTERNET,4816,Comp hardware purch-network servers,7.54,0.00,7.54
Children and Young Peoples Services,Head of Early Help Inclusion & Vulnerable Children.,071489,Winter Family Fund,Supplies and Services,364301,Grants to Voluntary Organisations,04-Jan-2021,000009372895759,ASDA GROCERIES ONLINE,5411,Hardship,29.46,0.00,29.46
Children and Young Peoples Services,Head of Education and Skills,071801,Selby Cottage Childcare Centre,Supplies and Services,324117,Provisions E324,04-Jan-2021,000009372895765,TESCO STORES 2278,5411,Catering costs - provisions,8.41,0.00,8.41
Children and Young Peoples Services,Head of Education and Skills,054640,Durham Learning Resources 054640,Supplies and Services,384999,Miscellaneous Expenses,04-Jan-2021,000009372895779,Amazon.co.uk MJ0U57B04,5969,Other expenses,5.61,0.00,5.61
Children and Young Peoples Services,Head of Education and Skills,054640,Durham Learning Resources 054640,Supplies and Services,384999,Miscellaneous Expenses,04-Jan-2021,000009372895785,Amazon.co.uk MJ2MC9BF4,5969,Other expenses,5.61,0.00,5.61
Children and Young Peoples Services,Head of Education and Skills,054640,Durham Learning Resources 054640,Supplies and Services,384999,Miscellaneous Expenses,04-Jan-2021,000009372895789,Amazon.co.uk MJ2MT5BF4,5969,Other expenses,5.61,0.00,5.61
Children and Young Peoples Services,Head of Education and Skills,054640,Durham Learning Resources 054640,Supplies and Services,384999,Miscellaneous Expenses,04-Jan-2021,000009372895797,Amazon.co.uk MJ4MI8BA4,5969,Other expenses,5.61,0.00,5.61
Children and Young Peoples Services,Head of Education and Skills,054640,Durham Learning Resources 054640,Supplies and Services,384999,Miscellaneous Expenses,04-Jan-2021,000009372895801,Amazon.co.uk MJ4MR8BK4,5969,Other expenses,5.61,0.00,5.61
Children and Young Peoples Services,Head of Education and Skills,054640,Durham Learning Resources 054640,Supplies and Services,384999,Miscellaneous Expenses,04-Jan-2021,000009372895807,Amazon.co.uk MJ4UH5BM4,5969,Other expenses,5.61,0.00,5.61
Children and Young Peoples Services,Head of Education and Skills,054640,Durham Learning Resources 054640,Supplies and Services,384999,Miscellaneous Expenses,04-Jan-2021,000009372895813,Amazon.co.uk MJ5MN9BV4,5969,Other expenses,5.61,0.00,5.61
Children and Young Peoples Services,Head of Education and Skills,054640,Durham Learning Resources 054640,Supplies and Services,384999,Miscellaneous Expenses,04-Jan-2021,000009372895819,Amazon.co.uk MJ5UD4BM4,5969,Other expenses,5.61,0.00,5.61
Children and Young Peoples Services,Head of Education and Skills,054640,Durham Learning Resources 054640,Supplies and Services,384999,Miscellaneous Expenses,04-Jan-2021,000009372895827,Amazon.co.uk MJ6MA4BE4,5969,Other expenses,5.61,0.00,5.61
Children and Young Peoples Services,Head of Education and Skills,054640,Durham Learning Resources 054640,Supplies and Services,384999,Miscellaneous Expenses,04-Jan-2021,000009372895833,Amazon.co.uk MJ6UJ9BX4,5969,Other expenses,5.61,0.00,5.61
Children and Young Peoples Services,Head of Education and Skills,054640,Durham Learning Resources 054640,Supplies and Services,384999,Miscellaneous Expenses,04-Jan-2021,000009372895841,Amazon.co.uk MJ7MB1BA4,5969,Other expenses,5.61,0.00,5.61
Children and Young Peoples Services,Head of Education and Skills,054640,Durham Learning Resources 054640,Supplies and Services,384999,Miscellaneous Expenses,04-Jan-2021,000009372895847,Amazon.co.uk MJ7MJ0BB4,5969,Other expenses,5.61,0.00,5.61
Children and Young Peoples Services,Head of Education and Skills,054640,Durham Learning Resources 054640,Supplies and Services,384999,Miscellaneous Expenses,04-Jan-2021,000009372895855,Amazon.co.uk MJ7M40B74,5969,Other expenses,5.60,0.00,5.60
Children and Young Peoples Services,Head of Education and Skills,054640,Durham Learning Resources 054640,Supplies and Services,384999,Miscellaneous Expenses,04-Jan-2021,000009372895863,Amazon.co.uk MJ8M24BZ4,5969,Other expenses,5.61,0.00,5.61
Children and Young Peoples Services,Head of Education and Skills,054640,Durham Learning Resources 054640,Supplies and Services,384999,Miscellaneous Expenses,04-Jan-2021,000009372895867,Amazon.co.uk MJ8UI8BZ4,5969,Other expenses,5.60,0.00,5.60
Children and Young Peoples Services,Head of Education and Skills,054640,Durham Learning Resources 054640,Supplies and Services,384999,Miscellaneous Expenses,04-Jan-2021,000009372895875,Amazon.co.uk MJ8UM0BL4,5969,Other expenses,5.61,0.00,5.61
Children and Young Peoples Services,Head of Education and Skills,054640,Durham Learning Resources 054640,Supplies and Services,384999,Miscellaneous Expenses,04-Jan-2021,000009372895883,Amazon.co.uk MJ8U41B54,5969,Other expenses,5.61,0.00,5.61
Children and Young Peoples Services,Head of Education and Skills,054640,Durham Learning Resources 054640,Supplies and Services,384999,Miscellaneous Expenses,04-Jan-2021,000009372895887,Amazon.co.uk MJ9MS9BG4,5969,Other expenses,5.61,0.00,5.61
Children and Young Peoples Services,Head of Education and Skills,054640,Durham Learning Resources 054640,Supplies and Services,384999,Miscellaneous Expenses,04-Jan-2021,000009372895895,Amazon.co.uk MJ9MZ5BO4,5969,Other expenses,5.61,0.00,5.61
Children and Young Peoples Services,Head of Education and Skills,054640,Durham Learning Resources 054640,Supplies and Services,384999,Miscellaneous Expenses,04-Jan-2021,000009372895901,Amazon.co.uk MJ9U57B44,5969,Other expenses,5.61,0.00,5.61
"Regeneration, Economy and Growth",Development and Housing,031576,B& B - Temp Accom,Supplies and Services,364320,Grants to Voluntary Organisations,04-Jan-2021,000009372895953,TRAVELODGE,3615,Accommodation assistance,158.05,0.00,158.05
"Regeneration, Economy and Growth",Development and Housing,031576,B& B - Temp Accom,Supplies and Services,364320,Grants to Voluntary Organisations,04-Jan-2021,000009372895961,THE HONEST LAWYER,7011,Accommodation assistance,500.00,0.00,500.00
"Regeneration, Economy and Growth",Development and Housing,031576,B& B - Temp Accom,Supplies and Services,364320,Grants to Voluntary Organisations,04-Jan-2021,000009372895969,THE HONEST LAWYER,7011,Accommodation assistance,500.00,0.00,500.00
"Regeneration, Economy and Growth",Development and Housing,031576,B& B - Temp Accom,Supplies and Services,364320,Grants to Voluntary Organisations,04-Jan-2021,000009372895975,THE HONEST LAWYER,7011,Accommodation assistance,394.00,0.00,394.00
Dedicated Schools Grant BG0015,DSG High Needs Block,079050,SENSS-Sensory,Supplies and Services,304403,Equipment and Materials,04-Jan-2021,000009372896009,AMZNMktplace,5999,Other consumables,28.79,4.80,23.99
Children and Young Peoples Services,Head of Childrens Social Care,085332,Middlestone Moor CU,Supplies and Services,324117,Provisions E324,04-Jan-2021,000009372896017,ALDI 74 774,5411,Catering costs - provisions,13.97,0.00,13.97
Neighbourhoods and Climate Change,Environmental Services,031239,North Pennines - Carbon Connect,Supplies and Services,304259,Equipment and Materials,04-Jan-2021,000009372896061,NHBS LTD,5942,Equipment-purchase and rental,18.00,3.00,15.00
Children and Young Peoples Services,Head of Early Help Inclusion & Vulnerable Children.,085952,Secure Education,Supplies and Services,324117,Provisions E324,04-Jan-2021,000009372896193,TESCO STORES 6329,5411,Catering costs - provisions,163.58,0.00,163.58
"Regeneration, Economy and Growth",Culture Sport and Tourism,054775,Durham Town Hall 054775,Supplies and Services,304259,Equipment and Materials,04-Jan-2021,000009372896219,Amazon Music MJ61L7BO4,5735,Equipment-purchase and rental,7.99,0.00,7.99
"Regeneration, Economy and Growth",Development and Housing,031576,B& B - Temp Accom,Supplies and Services,364320,Grants to Voluntary Organisations,04-Jan-2021,000009372896255,TRAVELODGE,3615,Accommodation assistance,7.86,1.31,6.55
"Regeneration, Economy and Growth",Development and Housing,031576,B& B - Temp Accom,Supplies and Services,364320,Grants to Voluntary Organisations,04-Jan-2021,000009372896255 - 1,TRAVELODGE,3615,Accommodation assistance,19.66,,19.66
"Regeneration, Economy and Growth",Development and Housing,031576,B& B - Temp Accom,Supplies and Services,364320,Grants to Voluntary Organisations,04-Jan-2021,000009372896261,THE HONEST LAWYER,7011,Accommodation assistance,308.00,0.00,308.00
"Regeneration, Economy and Growth",Development and Housing,031576,B& B - Temp Accom,Supplies and Services,364320,Grants to Voluntary Organisations,04-Jan-2021,000009372896263,THE HONEST LAWYER,7011,Accommodation assistance,410.00,0.00,410.00
Neighbourhoods and Climate Change,Environmental Services,010900,Fleet - Meadowfield Fleet,Transport,215013,Running Costs of Vehicles,04-Jan-2021,000009372896273,DVLA VEHICLE TAX,9311,Vehicle Excise Duty (VED),267.50,0.00,267.50
Children and Young Peoples Services,Head of Childrens Social Care,085342,16 Hickstead Rise (previously 9 Cedar Ave),Supplies and Services,384999,Miscellaneous Expenses,04-Jan-2021,000009372896301,WARREN JAMES,5944,Other expenses,24.99,0.00,24.99
Children and Young Peoples Services,Head of Childrens Social Care,085342,16 Hickstead Rise (previously 9 Cedar Ave),Supplies and Services,324117,Provisions E324,04-Jan-2021,000009372896309,TESCO STORES 2916,5411,Catering costs - provisions,51.36,0.00,51.36
Children and Young Peoples Services,Head of Education and Skills,071732,Dean Bank Childcare,Supplies and Services,324117,Provisions E324,04-Jan-2021,000009372896327,ASDA GROCERIES ONLINE,5411,Catering costs - provisions,40.01,0.00,40.01
Children and Young Peoples Services,Head of Education and Skills,071732,Dean Bank Childcare,Supplies and Services,324117,Provisions E324,04-Jan-2021,000009372896333,ASDA GROCERIES ONLINE,5411,Catering costs - provisions,20.64,0.00,20.64
Children and Young Peoples Services,Head of Education and Skills,071732,Dean Bank Childcare,Supplies and Services,324117,Provisions E324,04-Jan-2021,000009372896341,ASDA GROCERIES ONLINE,5411,Catering costs - provisions,68.02,0.00,68.02
Children and Young Peoples Services,Head of Education and Skills,071732,Dean Bank Childcare,Supplies and Services,324117,Provisions E324,04-Jan-2021,000009372896345,CO-OP GROUP 010503,5411,Catering costs - provisions,7.05,0.00,7.05
Children and Young Peoples Services,Head of Education and Skills,071732,Dean Bank Childcare,Supplies and Services,324117,Provisions E324,04-Jan-2021,000009372896349,CO-OP GROUP 310027,5411,Catering costs - provisions,9.63,0.00,9.63
Children and Young Peoples Services,Head of Education and Skills,071732,Dean Bank Childcare,Supplies and Services,324117,Provisions E324,04-Jan-2021,000009372896353,ASDA GROCERIES ONLINE,5411,Catering costs - provisions,-0.63,0.00,-0.63
Neighbourhoods and Climate Change,Environmental Services,011060,C&G - Hardwick Park Catering,Supplies and Services,304083,Equipment and Materials,04-Jan-2021,000009372896359,Amazon.co.uk MJ99I0BC4,5969,Catering equipment,5.35,0.89,4.46
Children and Young Peoples Services,Head of Early Help Inclusion & Vulnerable Children.,071445,Chester le Street One Point Hub,Transport,235057,Public Transport,04-Jan-2021,000009372896461,SUNDERLAND CC,7523,Staff travelling,22.00,0.00,22.00
Children and Young Peoples Services,Head of Early Help Inclusion & Vulnerable Children.,085956,Lumley,Supplies and Services,304403,Equipment and Materials,04-Jan-2021,000009372896473,AMZNMKTPLACE AMAZON.CO,5999,Other consumables,3.95,0.00,3.95
Children and Young Peoples Services,Head of Early Help Inclusion & Vulnerable Children.,085956,Lumley,Supplies and Services,304403,Equipment and Materials,04-Jan-2021,000009372896479,AMZNMKTPLACE AMAZON.CO,5999,Other consumables,3.30,0.00,3.30
Neighbourhoods and Climate Change,Environmental Services,010367,C&G - South Grounds Maintenance,Supplies and Services,304221,Equipment and Materials,04-Jan-2021,000009372896487,ARBOR TIMBER AND BUILD,5211,Direct materials,111.28,0.00,111.28
Neighbourhoods and Climate Change,Environmental Services,011060,C&G - Hardwick Park Catering,Supplies and Services,324117,Provisions E324,04-Jan-2021,000009372896513,FREEMAN CATERING BUTCH,5422,Catering costs - provisions,125.08,0.00,125.08
Resources BK0010,People & Talent Management,010984,Training and Development,Employees,040149,Recruitment Instruction and Training,04-Jan-2021,000009372896537,IQL UK,8299,Training-all costs,331.15,0.00,331.15
Children and Young Peoples Services,Head of Childrens Social Care,085551,Short Break Services-Park Hse Sher,Supplies and Services,304999,Equipment and Materials,04-Jan-2021,000009372896599,HOME BARGAINS,5251,Misc equipment tools and materials,13.51,0.00,13.51
Children and Young Peoples Services,Head of Childrens Social Care,085551,Short Break Services-Park Hse Sher,Supplies and Services,324117,Provisions E324,04-Jan-2021,000009372896607,ICELAND,5411,Catering costs - provisions,129.40,0.00,129.40
Children and Young Peoples Services,Head of Childrens Social Care,085551,Short Break Services-Park Hse Sher,Supplies and Services,324117,Provisions E324,04-Jan-2021,000009372896613,TESCO STORES 2371,5411,Catering costs - provisions,32.00,0.00,32.00
Children and Young Peoples Services,Head of Childrens Social Care,085361,LAC & Permanence Team 1,Transport,235057,Public Transport,04-Jan-2021,000009372896623,STAGECOACH SERVICE,4131,Staff travelling,23.95,0.00,23.95
Children and Young Peoples Services,Head of Early Help Inclusion & Vulnerable Children.,071489,Winter Family Fund,Supplies and Services,364301,Grants to Voluntary Organisations,04-Jan-2021,000009372896653,LIDL GB BSHP AUCKLAND,5411,Hardship,11.54,0.00,11.54
Children and Young Peoples Services,Head of Early Help Inclusion & Vulnerable Children.,071489,Winter Family Fund,Supplies and Services,364301,Grants to Voluntary Organisations,04-Jan-2021,000009372896663,LIDL GB BSHP AUCKLAND,5411,Hardship,26.18,0.00,26.18
Adult and Health Services,Head of Adults,055643,Hawthorn House LD Respite Unit,Supplies and Services,324117,Provisions E324,04-Jan-2021,000009372896695,SAINSBURYS 0776,5411,Catering costs - provisions,25.90,0.00,25.90
Children and Young Peoples Services,Head of Education and Skills,071802,Louisa Cent Nursery,Supplies and Services,324117,Provisions E324,04-Jan-2021,000009372896699,ASDA SUPERSTORE,5411,Catering costs - provisions,14.00,0.00,14.00
Adult and Health Services,Head of Adults,055643,Hawthorn House LD Respite Unit,Supplies and Services,324117,Provisions E324,04-Jan-2021,000009372896823,FREEMAN CATERING BUTCH,5422,Catering costs - provisions,33.88,0.00,33.88
Adult and Health Services,Head of Adults,055643,Hawthorn House LD Respite Unit,Supplies and Services,324117,Provisions E324,04-Jan-2021,000009372896835,JR HOLLAND FOODSERVICE,5499,Catering costs - provisions,15.98,0.00,15.98
Adult and Health Services,Head of Adults,055643,Hawthorn House LD Respite Unit,Supplies and Services,324117,Provisions E324,04-Jan-2021,000009372896845,JR HOLLAND FOODSERVICE,5499,Catering costs - provisions,13.53,0.00,13.53
Neighbourhoods and Climate Change,Environmental Services,031200,North Pennines Core,Supplies and Services,304999,Equipment and Materials,04-Jan-2021,000009372896857,123 REG LTD,5968,Misc equipment tools and materials,14.39,2.40,11.99
"Regeneration, Economy and Growth",Culture Sport and Tourism,011263,Louisa Centre 011263,Supplies and Services,324117,Provisions E324,04-Jan-2021,000009372896863,TESCO STORES 6029,5411,Catering costs - provisions,20.00,0.00,20.00
Children and Young Peoples Services,Head of Childrens Social Care,085334,West Rainton Satelite Home,Supplies and Services,324117,Provisions E324,04-Jan-2021,000009372896873,TESCO STORES 2371,5411,Catering costs - provisions,125.67,0.00,125.67
Resources BK0010,Digital and Customer Services,065335,School Services - Implementations,Supplies and Services,304639,Equipment and Materials,04-Jan-2021,000009372896921,justprojectorlamps.com,5943,Technicians-supplies,106.87,0.00,106.87
Children and Young Peoples Services,Head of Childrens Social Care,085342,16 Hickstead Rise (previously 9 Cedar Ave),Supplies and Services,324117,Provisions E324,04-Jan-2021,000009372896923,TESCO STORES 2916,5411,Catering costs - provisions,6.98,0.00,6.98
Children and Young Peoples Services,Head of Childrens Social Care,085334,West Rainton Satelite Home,Supplies and Services,324117,Provisions E324,04-Jan-2021,000009372896929,TESCO STORES 2371,5411,Catering costs - provisions,16.00,0.00,16.00
Children and Young Peoples Services,Head of Childrens Social Care,085334,West Rainton Satelite Home,Supplies and Services,324117,Provisions E324,04-Jan-2021,000009372896933,TESCO STORES 2371,5411,Catering costs - provisions,4.00,0.00,4.00
Children and Young Peoples Services,Head of Childrens Social Care,085334,West Rainton Satelite Home,Supplies and Services,324117,Provisions E324,04-Jan-2021,000009372896937,TESCO STORES 2371,5411,Catering costs - provisions,214.03,0.00,214.03
Dedicated Schools Grant BG0015,DSG High Needs Block,079044,Ed Health Needs,Employees,040149,Recruitment Instruction and Training,04-Jan-2021,000009372896999,ST JOHN AMBULANCE,8398,Training-all costs,180.00,0.00,180.00
Children and Young Peoples Services,Head of Education and Skills,071802,Louisa Cent Nursery,Supplies and Services,324117,Provisions E324,04-Jan-2021,000009372897045,ASDA SUPERSTORE,5411,Catering costs - provisions,20.91,0.00,20.91
Children and Young Peoples Services,Head of Education and Skills,070169,Durham SSP,Supplies and Services,384199,Miscellaneous Expenses,04-Jan-2021,000009372897053,THEEVENTSCALPLUGINS,5045,Other hired and contracted services,65.45,0.00,65.45
Resources BK0010,Business Support,065503,Business Support - Spectrum,Transport,235057,Public Transport,04-Jan-2021,000009372897067,GO NORTH EAST LIMITED,4131,Staff travelling,20.00,0.00,20.00
Children and Young Peoples Services,Head of Childrens Social Care,085333,Coxhoe Satelite Home,Supplies and Services,304999,Equipment and Materials,04-Jan-2021,000009372897115,PlaystationNetwork,5816,Misc equipment tools and materials,10.00,0.00,10.00
Children and Young Peoples Services,Head of Childrens Social Care,085333,Coxhoe Satelite Home,Supplies and Services,304999,Equipment and Materials,04-Jan-2021,000009372897121,PlaystationNetwork,5816,Misc equipment tools and materials,6.49,0.00,6.49
Children and Young Peoples Services,Head of Childrens Social Care,085333,Coxhoe Satelite Home,Supplies and Services,304259,Equipment and Materials,04-Jan-2021,000009372897133,AMZN Digital,5735,Equipment-purchase and rental,15.00,0.00,15.00
Children and Young Peoples Services,Head of Education and Skills,054640,Durham Learning Resources 054640,Supplies and Services,304403,Equipment and Materials,04-Jan-2021,000009374955897,AMZNMKTPLACE AMAZON.CO,5999,Other consumables,-64.99,-10.83,-54.16
"Regeneration, Economy and Growth",Development and Housing,031576,B& B - Temp Accom,Supplies and Services,364320,Grants to Voluntary Organisations,04-Jan-2021,000009374956223,PREMIER INN,3811,Accommodation assistance,11.58,1.93,9.65
"Regeneration, Economy and Growth",Development and Housing,031576,B& B - Temp Accom,Supplies and Services,364320,Grants to Voluntary Organisations,04-Jan-2021,000009374956223 - 1,PREMIER INN,3811,Accommodation assistance,28.92,,28.92
"Regeneration, Economy and Growth",Development and Housing,031576,B& B - Temp Accom,Supplies and Services,364320,Grants to Voluntary Organisations,04-Jan-2021,000009374956585,AYCLIFFE BIZ,7011,Accommodation assistance,152.00,0.00,152.00
Children and Young Peoples Services,Head of Childrens Social Care,085334,West Rainton Satelite Home,Transport,215995,Running Costs of Vehicles,04-Jan-2021,000009374956855,TESCO PFS 4053,5541,Vehicle running expenses,25.00,0.00,25.00
Children and Young Peoples Services,Head of Childrens Social Care,085333,Coxhoe Satelite Home,Supplies and Services,328041,Clothing uniforms and laundry E328,04-Jan-2021,000009374957281,NEW LOOK INTERNET,5621,Clothing uniforms and laundry,17.98,0.00,17.98
Children and Young Peoples Services,Head of Early Help Inclusion & Vulnerable Children.,085956,Lumley,Supplies and Services,384999,Miscellaneous Expenses,05-Jan-2021,000007392188516,AMZNMKTPLACE AMAZON.CO,5999,Other expenses,10.58,0.00,10.58
Children and Young Peoples Services,Head of Early Help Inclusion & Vulnerable Children.,085956,Lumley,Supplies and Services,384999,Miscellaneous Expenses,05-Jan-2021,000007392188536,SUPERDRUG STORES PLC,5912,Other expenses,25.48,0.00,25.48
Neighbourhoods and Climate Change,Environmental Services,011060,C&G - Hardwick Park Catering,Supplies and Services,324117,Provisions E324,05-Jan-2021,000007392188552,BATLEYS PERTH,5300,Catering costs - provisions,26.10,4.35,21.75
Neighbourhoods and Climate Change,Environmental Services,011060,C&G - Hardwick Park Catering,Supplies and Services,324117,Provisions E324,05-Jan-2021,000007392188552 - 1,BATLEYS PERTH,5300,Catering costs - provisions,146.72,,146.72
"Regeneration, Economy and Growth",Development and Housing,030771,Durham Advance Flexible Fund,Employees,040149,Recruitment Instruction and Training,05-Jan-2021,000007392188742,WWW.WISEGLOBALTRAINING,8999,Training-all costs,270.00,0.00,270.00
Children and Young Peoples Services,Head of Childrens Social Care,085333,Coxhoe Satelite Home,Supplies and Services,304259,Equipment and Materials,05-Jan-2021,000007392188884,CYCLEWAYS SPORT AND LE,5940,Equipment-purchase and rental,90.00,0.00,90.00
Children and Young Peoples Services,Head of Education and Skills,070169,Durham SSP,Supplies and Services,384199,Miscellaneous Expenses,05-Jan-2021,000009372897059,THEEVENTSCALPLUGINS,5045,Other hired and contracted services,1.80,0.00,1.80
"Regeneration, Economy and Growth",Business Durham CL0850,030689,Inward Investment and Aftercare,Supplies and Services,336005,Advertising E336,05-Jan-2021,000009374955863,LINKEDIN IRELAND,7311,Advertising other than for staff,66.94,0.00,66.94
Children and Young Peoples Services,Head of Education and Skills,071801,Selby Cottage Childcare Centre,Supplies and Services,324117,Provisions E324,05-Jan-2021,000009374955873,JR HOLLAND FOODSERVICE,5499,Catering costs - provisions,299.25,0.00,299.25
"Regeneration, Economy and Growth",Development and Housing,031576,B& B - Temp Accom,Supplies and Services,364320,Grants to Voluntary Organisations,05-Jan-2021,000009374955941,HI NEWCASTLE WASHI,7011,Accommodation assistance,478.00,0.00,478.00
Children and Young Peoples Services,Head of Childrens Social Care,085501,Child Care Cases Legal Expenses,Supplies and Services,304403,Equipment and Materials,05-Jan-2021,000009374955949,DARLINGTON BC INTERNET,9399,Other consumables,11.00,0.00,11.00
Children and Young Peoples Services,Head of Childrens Social Care,085332,Middlestone Moor CU,Supplies and Services,304999,Equipment and Materials,05-Jan-2021,000009374955981,AMZNMktplace,5999,Misc equipment tools and materials,15.00,2.50,12.50
Children and Young Peoples Services,Head of Childrens Social Care,085332,Middlestone Moor CU,Supplies and Services,324117,Provisions E324,05-Jan-2021,000009374955987,WILKO RETAIL LIMITED,5399,Catering costs - provisions,26.80,0.00,26.80
Children and Young Peoples Services,Head of Childrens Social Care,085332,Middlestone Moor CU,Supplies and Services,304999,Equipment and Materials,05-Jan-2021,000009374955989,SAINSBURYS 2199,5411,Misc equipment tools and materials,41.27,0.00,41.27
Children and Young Peoples Services,Head of Childrens Social Care,085332,Middlestone Moor CU,Supplies and Services,324117,Provisions E324,05-Jan-2021,000009374955993,HOME BARGAINS,5251,Catering costs - provisions,93.83,0.00,93.83
Children and Young Peoples Services,Head of Childrens Social Care,085332,Middlestone Moor CU,Supplies and Services,324117,Provisions E324,05-Jan-2021,000009374955999,TESCO STORES 2371,5411,Catering costs - provisions,154.16,0.00,154.16
Children and Young Peoples Services,Head of Childrens Social Care,085332,Middlestone Moor CU,Supplies and Services,304999,Equipment and Materials,05-Jan-2021,000009374956003,TESCO STORES 6329,5411,Misc equipment tools and materials,14.00,0.00,14.00
Children and Young Peoples Services,Head of Childrens Social Care,085341,High Etherley Satelite Home,Supplies and Services,324117,Provisions E324,05-Jan-2021,000009374956055,TESCO STORES 6329,5411,Catering costs - provisions,45.40,0.00,45.40
Children and Young Peoples Services,Head of Childrens Social Care,085341,High Etherley Satelite Home,Supplies and Services,324117,Provisions E324,05-Jan-2021,000009374956061,TESCO STORES 6329,5411,Catering costs - provisions,19.00,0.00,19.00
Children and Young Peoples Services,Head of Early Help Inclusion & Vulnerable Children.,071489,Winter Family Fund,Supplies and Services,384700,Miscellaneous Expenses,05-Jan-2021,000009374956127,ARGOS LTD,5310,Miscellaneous grants,99.96,16.66,83.30
Children and Young Peoples Services,Head of Early Help Inclusion & Vulnerable Children.,071489,Winter Family Fund,Supplies and Services,384700,Miscellaneous Expenses,05-Jan-2021,000009374956127 - 1,ARGOS LTD,5310,Miscellaneous grants,0.03,,0.03
"Regeneration, Economy and Growth",Development and Housing,031576,B& B - Temp Accom,Supplies and Services,364320,Grants to Voluntary Organisations,05-Jan-2021,000009374956173,HI NEWCASTLE WASHI,7011,Accommodation assistance,450.00,0.00,450.00
"Regeneration, Economy and Growth",Development and Housing,031576,B& B - Temp Accom,Supplies and Services,364320,Grants to Voluntary Organisations,05-Jan-2021,000009374956183,HI NEWCASTLE WASHI,7011,Accommodation assistance,415.15,0.00,415.15
"Regeneration, Economy and Growth",Development and Housing,031576,B& B - Temp Accom,Supplies and Services,364320,Grants to Voluntary Organisations,05-Jan-2021,000009374956191,HI NEWCASTLE WASHI,7011,Accommodation assistance,450.00,0.00,450.00
"Regeneration, Economy and Growth",Development and Housing,031576,B& B - Temp Accom,Supplies and Services,364320,Grants to Voluntary Organisations,05-Jan-2021,000009374956199,HI NEWCASTLE WASHI,7011,Accommodation assistance,330.00,0.00,330.00
"Regeneration, Economy and Growth",Development and Housing,031576,B& B - Temp Accom,Supplies and Services,364320,Grants to Voluntary Organisations,05-Jan-2021,000009374956231,HI NEWCASTLE WASHI,7011,Accommodation assistance,95.00,0.00,95.00
"Regeneration, Economy and Growth",Development and Housing,031576,B& B - Temp Accom,Supplies and Services,364320,Grants to Voluntary Organisations,05-Jan-2021,000009374956235,HI NEWCASTLE WASHI,7011,Accommodation assistance,80.00,0.00,80.00
Neighbourhoods and Climate Change,Environmental Services,011060,C&G - Hardwick Park Catering,Supplies and Services,304083,Equipment and Materials,05-Jan-2021,000009374956281,Amazon.co.uk MJ5FW2QF4,5969,Catering equipment,26.88,4.48,22.40
"Regeneration, Economy and Growth",Development and Housing,031500,Housing Solutions - Core Team,Supplies and Services,352001,Conference Expenses,05-Jan-2021,000009374956319,HI NEWCASTLE WASHI,7011,Conferencesseminars fees etc,450.00,0.00,450.00
"Regeneration, Economy and Growth",Development and Housing,031500,Housing Solutions - Core Team,Supplies and Services,352001,Conference Expenses,05-Jan-2021,000009374956323,HI NEWCASTLE WASHI,7011,Conferencesseminars fees etc,297.90,0.00,297.90
"Regeneration, Economy and Growth",Development and Housing,031623,Rough,Supplies and Services,352001,Conference Expenses,05-Jan-2021,000009374956359,AYCLIFFE BIZ,7011,Conferencesseminars fees etc,266.00,0.00,266.00
"Regeneration, Economy and Growth",Development and Housing,031623,Rough,Supplies and Services,352001,Conference Expenses,05-Jan-2021,000009374956367,AYCLIFFE BIZ,7011,Conferencesseminars fees etc,266.00,0.00,266.00
"Regeneration, Economy and Growth",Development and Housing,031623,Rough,Supplies and Services,324117,Provisions E324,05-Jan-2021,000009374956373,TESCO STORES 2916,5411,Catering costs - provisions,44.99,0.00,44.99
Children and Young Peoples Services,Head of Early Help Inclusion & Vulnerable Children.,085962,Aycliffe Secure - Durham,Transfer Payments,515140,Social Services Clients,05-Jan-2021,000009374956401,FOOTASYLUM PLC,5691,Clothing allowances,99.98,0.00,99.98
Children and Young Peoples Services,Head of Early Help Inclusion & Vulnerable Children.,085965,Barnard,Transfer Payments,515140,Social Services Clients,05-Jan-2021,000009374956409,FOOTASYLUM PLC,5691,Clothing allowances,119.97,0.00,119.97
Children and Young Peoples Services,Head of Early Help Inclusion & Vulnerable Children.,085962,Aycliffe Secure - Durham,Supplies and Services,304649,Equipment and Materials,05-Jan-2021,000009374956415,CEX LTD,5065,Toys,27.75,0.00,27.75
Children and Young Peoples Services,Head of Early Help Inclusion & Vulnerable Children.,085956,Lumley,Transfer Payments,515140,Social Services Clients,05-Jan-2021,000009374956419,PRETTYLITTLETHING.COM,5691,Clothing allowances,11.00,0.00,11.00
Children and Young Peoples Services,Head of Early Help Inclusion & Vulnerable Children.,085956,Lumley,Supplies and Services,304403,Equipment and Materials,05-Jan-2021,000009374956429,AMZNMktplace,5999,Other consumables,11.99,2.00,9.99
Children and Young Peoples Services,Head of Early Help Inclusion & Vulnerable Children.,085956,Lumley,Supplies and Services,384999,Miscellaneous Expenses,05-Jan-2021,000009374956435,AMZNMktplace,5999,Other expenses,9.99,0.00,9.99
Children and Young Peoples Services,Head of Early Help Inclusion & Vulnerable Children.,085962,Aycliffe Secure - Durham,Transfer Payments,515140,Social Services Clients,05-Jan-2021,000009374956443,JD SPORTS INTERNET,5941,Clothing allowances,100.00,0.00,100.00
Children and Young Peoples Services,Head of Early Help Inclusion & Vulnerable Children.,085965,Barnard,Transfer Payments,515140,Social Services Clients,05-Jan-2021,000009374956447,JD SPORTS INTERNET,5941,Clothing allowances,120.00,0.00,120.00
Resources BK0010,People & Talent Management,010984,Training and Development,Supplies and Services,384999,Miscellaneous Expenses,05-Jan-2021,000009374956481,Amazon.co.uk MJ7JO6QZ4,5969,Other expenses,5.88,0.00,5.88
Resources BK0010,People & Talent Management,010984,Training and Development,Supplies and Services,384999,Miscellaneous Expenses,05-Jan-2021,000009374956489,Amazon.co.uk MJ74Z7QE4,5969,Other expenses,20.51,0.00,20.51
"Regeneration, Economy and Growth",Development and Housing,031576,B& B - Temp Accom,Supplies and Services,364320,Grants to Voluntary Organisations,05-Jan-2021,000009374956543,HI NEWCASTLE WASHI,7011,Accommodation assistance,450.00,0.00,450.00
"Regeneration, Economy and Growth",Development and Housing,031576,B& B - Temp Accom,Supplies and Services,364320,Grants to Voluntary Organisations,05-Jan-2021,000009374956551,HI NEWCASTLE WASHI,7011,Accommodation assistance,156.90,0.00,156.90
"Regeneration, Economy and Growth",Development and Housing,031576,B& B - Temp Accom,Supplies and Services,364320,Grants to Voluntary Organisations,05-Jan-2021,000009374956557,HI NEWCASTLE WASHI,7011,Accommodation assistance,390.00,0.00,390.00
"Regeneration, Economy and Growth",Development and Housing,031576,B& B - Temp Accom,Supplies and Services,364320,Grants to Voluntary Organisations,05-Jan-2021,000009374956591,TOAST LETTINGS,7011,Accommodation assistance,420.00,0.00,420.00
"Regeneration, Economy and Growth",Development and Housing,031576,B& B - Temp Accom,Supplies and Services,364320,Grants to Voluntary Organisations,05-Jan-2021,000009374956597,HI NEWCASTLE WASHI,7011,Accommodation assistance,445.95,0.00,445.95
"Regeneration, Economy and Growth",Development and Housing,031576,B& B - Temp Accom,Supplies and Services,364320,Grants to Voluntary Organisations,05-Jan-2021,000009374956605,HI NEWCASTLE WASHI,7011,Accommodation assistance,46.08,0.00,46.08
Children and Young Peoples Services,Head of Early Help Inclusion & Vulnerable Children.,088106,Ferryhill & N.Aycliffe 0-19 Targeted Family Support,Supplies and Services,304259,Equipment and Materials,05-Jan-2021,000009374956693,Amazon.co.uk MJ3UD9QZ4,5969,Equipment-purchase and rental,19.73,0.00,19.73
Children and Young Peoples Services,Head of Early Help Inclusion & Vulnerable Children.,088106,Ferryhill & N.Aycliffe 0-19 Targeted Family Support,Supplies and Services,304259,Equipment and Materials,05-Jan-2021,000009374956699,Amazon.co.uk MJ40B4QI4,5969,Equipment-purchase and rental,117.10,0.00,117.10
Adult and Health Services,Head of Adults,055643,Hawthorn House LD Respite Unit,Supplies and Services,324117,Provisions E324,05-Jan-2021,000009374956767,CO-OP GROUP 010465,5411,Catering costs - provisions,4.40,0.00,4.40
Neighbourhoods and Climate Change,Environmental Services,010301,C&G - North Grounds Maintenance,Supplies and Services,304221,Equipment and Materials,05-Jan-2021,000009374956879,SCREWFIX DIR LTD,5211,Direct materials,49.99,0.00,49.99
Children and Young Peoples Services,Head of Early Help Inclusion & Vulnerable Children.,085957,Secure Management,Supplies and Services,304245,Equipment and Materials,05-Jan-2021,000009374956899,FAST KEY SERVICES LIMI,7399,Materials,7.33,1.22,6.11
Children and Young Peoples Services,Head of Early Help Inclusion & Vulnerable Children.,085956,Lumley,Supplies and Services,304403,Equipment and Materials,05-Jan-2021,000009374956905,APPLIANCE SPARES WAREH,5722,Other consumables,12.98,0.00,12.98
Resources BK0010,Legal & Democratic Services,067801,Registrars,Supplies and Services,340001,Postages E340,05-Jan-2021,000009374956919,ROYAL MAIL ONLINE SHOP,9402,Postages,50.85,0.00,50.85
Children and Young Peoples Services,Head of Childrens Social Care,085333,Coxhoe Satelite Home,Supplies and Services,328041,Clothing uniforms and laundry E328,05-Jan-2021,000009374956933,SARA MART LIMITED,5311,Clothing uniforms and laundry,56.74,0.00,56.74
Children and Young Peoples Services,Head of Childrens Social Care,085333,Coxhoe Satelite Home,Supplies and Services,384999,Miscellaneous Expenses,05-Jan-2021,000009374956941,JUSTMYLOOK,7230,Other expenses,14.34,0.00,14.34
Children and Young Peoples Services,Head of Childrens Social Care,085351,Framwellgate Moor CU,Supplies and Services,324117,Provisions E324,05-Jan-2021,000009374957125,SAINSBURYS LOC4634,5411,Catering costs - provisions,4.00,0.00,4.00
Children and Young Peoples Services,Head of Childrens Social Care,085351,Framwellgate Moor CU,Supplies and Services,324117,Provisions E324,05-Jan-2021,000009374957129,SAINSBURYS SACAT 0776,5411,Catering costs - provisions,7.05,0.00,7.05
Children and Young Peoples Services,Head of Childrens Social Care,085351,Framwellgate Moor CU,Supplies and Services,324117,Provisions E324,05-Jan-2021,000009374957135,SAINSBURYS 0776,5411,Catering costs - provisions,15.00,0.00,15.00
Resources BK0010,Business Support,065503,Business Support - Spectrum,Supplies and Services,304221,Equipment and Materials,05-Jan-2021,000009374957141,PAYPAL GUIDGROUP,5099,Direct materials,216.00,0.00,216.00
Resources BK0010,Business Support,065503,Business Support - Spectrum,Supplies and Services,328041,Clothing uniforms and laundry E328,05-Jan-2021,000009374957147,PAYPAL INCENTIVEPL,5331,Clothing uniforms and laundry,30.19,0.00,30.19
Resources BK0010,Business Support,065503,Business Support - Spectrum,Supplies and Services,328041,Clothing uniforms and laundry E328,05-Jan-2021,000009374957155,PAYPAL WI SHIPPING,5331,Clothing uniforms and laundry,65.50,0.00,65.50
"Regeneration, Economy and Growth",Development and Housing,030772,CLLD South,Employees,040149,Recruitment Instruction and Training,05-Jan-2021,000009374957181,clearcheck.co.uk,8999,Training-all costs,68.50,0.00,68.50
"Regeneration, Economy and Growth",Development and Housing,030772,CLLD South,Employees,040149,Recruitment Instruction and Training,05-Jan-2021,000009374957187,clearcheck.co.uk,8999,Training-all costs,8.00,0.00,8.00
"Regeneration, Economy and Growth",Development and Housing,031500,Housing Solutions - Core Team,Supplies and Services,352001,Conference Expenses,05-Jan-2021,000009374957205,TOAST LETTINGS,7011,Conferencesseminars fees etc,500.00,0.00,500.00
"Regeneration, Economy and Growth",Development and Housing,031500,Housing Solutions - Core Team,Supplies and Services,352001,Conference Expenses,05-Jan-2021,000009374957213,TOAST LETTINGS,7011,Conferencesseminars fees etc,500.00,0.00,500.00
"Regeneration, Economy and Growth",Development and Housing,031500,Housing Solutions - Core Team,Supplies and Services,352001,Conference Expenses,05-Jan-2021,000009374957223,TOAST LETTINGS,7011,Conferencesseminars fees etc,300.00,0.00,300.00
"Regeneration, Economy and Growth",Development and Housing,031500,Housing Solutions - Core Team,Supplies and Services,352001,Conference Expenses,05-Jan-2021,000009374957231,TRAVELODGE,3615,Conferencesseminars fees etc,114.97,0.00,114.97
Adult and Health Services,Head of Adults,055310,Positive Journeys (Tudhoe),Supplies and Services,324117,Provisions E324,05-Jan-2021,000009374957301,TESCO STORES 6329,5411,Catering costs - provisions,18.21,0.00,18.21
Neighbourhoods and Climate Change,Environmental Services,031217,North Pennines - Cold Blooded & Spineless,Employees,040149,Recruitment Instruction and Training,05-Jan-2021,000009374957329,BRITISH ECOL SOC,8699,Training-all costs,57.00,0.00,57.00
"Regeneration, Economy and Growth",Development and Housing,030771,Durham Advance Flexible Fund,Supplies and Services,328041,Clothing uniforms and laundry E328,05-Jan-2021,000009374957379,INDUSTRIAL WORKWEA,5137,Clothing uniforms and laundry,102.70,0.00,102.70
"Regeneration, Economy and Growth",Development and Housing,030771,Durham Advance Flexible Fund,Supplies and Services,304259,Equipment and Materials,05-Jan-2021,000009374957389,CURRYS ONLINE,5732,Equipment-purchase and rental,49.99,8.33,41.66
"Regeneration, Economy and Growth",Development and Housing,030771,Durham Advance Flexible Fund,Supplies and Services,304221,Equipment and Materials,05-Jan-2021,000009374957393,SCREWFIX DIRECT,5211,Direct materials,159.98,26.66,133.32
Resources BK0010,Finance & Transactional Services,065180,Collections,Supplies and Services,304403,Equipment and Materials,05-Jan-2021,000009374957451,WWW.GOV.UK,8999,Other consumables,19.50,0.00,19.50
"Regeneration, Economy and Growth",Business Durham CL0850,030689,Inward Investment and Aftercare,Supplies and Services,342033,Computers and Communications,06-Jan-2021,000007392188234,STK Shutterstock,7333,Computer hardware,19.00,0.00,19.00
Children and Young Peoples Services,Head of Education and Skills,071801,Selby Cottage Childcare Centre,Supplies and Services,324117,Provisions E324,06-Jan-2021,000007392188252,TESCO STORES 2371,5411,Catering costs - provisions,75.65,0.00,75.65
Resources BK0010,Finance & Transactional Services,065176,Quality/Subsidy/Appeals/Training/Support,Supplies and Services,342053,Computers and Communications,06-Jan-2021,000007392188262,FS TechSmith,5817,Computer software,40.33,6.72,33.61
Neighbourhoods and Climate Change,Partnerships & Community Engagement Div.,060560,East Durham Rural Corridor AAP,Supplies and Services,344033,Telephones,06-Jan-2021,000007392188264,AMZNMktplace,5999,Telephones general-all costs,8.49,1.42,7.07
Adult and Health Services,Head of Adults,051602,OP/PD Derwentside 051602,Supplies and Services,342033,Computers and Communications,06-Jan-2021,000007392188268,AMZNMktplace,5999,Computer hardware,28.95,4.83,24.12
Resources BK0010,Digital and Customer Services,065487,ICT Telephony Recharges,Supplies and Services,344033,Telephones,06-Jan-2021,000007392188270,AMZNMktplace,5999,Telephones general-all costs,305.00,51.00,254.00
Children and Young Peoples Services,Head of Childrens Social Care,085380,Operations Manager LAC Resources,Supplies and Services,344033,Telephones,06-Jan-2021,000007392188272,AMZNMktplace,5999,Telephones general-all costs,28.95,4.83,24.12
Children and Young Peoples Services,Head of Education and Skills,075021,Youth Employment Initiative,Supplies and Services,364301,Grants to Voluntary Organisations,06-Jan-2021,000007392188286,GO NORTH EAST LIMITED,4131,Hardship,4.50,0.00,4.50
Children and Young Peoples Services,Head of Education and Skills,075021,Youth Employment Initiative,Supplies and Services,364301,Grants to Voluntary Organisations,06-Jan-2021,000007392188288,GO NORTH EAST LIMITED,4131,Hardship,4.50,0.00,4.50
Neighbourhoods and Climate Change,Environmental Services,010383,C&G - South Street Cleansing,Supplies and Services,328041,Clothing uniforms and laundry E328,06-Jan-2021,000007392188294,THOMAS OWEN & SONS /N/,5611,Clothing uniforms and laundry,240.24,0.00,240.24
Children and Young Peoples Services,Head of Childrens Social Care,085342,16 Hickstead Rise (previously 9 Cedar Ave),Supplies and Services,324117,Provisions E324,06-Jan-2021,000007392188300,TESCO STORES 2916,5411,Catering costs - provisions,13.04,0.00,13.04
Children and Young Peoples Services,Head of Childrens Social Care,085342,16 Hickstead Rise (previously 9 Cedar Ave),Supplies and Services,324117,Provisions E324,06-Jan-2021,000007392188304,TESCO STORES 2916,5411,Catering costs - provisions,10.00,0.00,10.00
Children and Young Peoples Services,Head of Childrens Social Care,085332,Middlestone Moor CU,Supplies and Services,324117,Provisions E324,06-Jan-2021,000007392188306,LIDL GB SPENNYMOOR,5411,Catering costs - provisions,100.91,0.00,100.91
Children and Young Peoples Services,Head of Childrens Social Care,085332,Middlestone Moor CU,Supplies and Services,324117,Provisions E324,06-Jan-2021,000007392188310,ALDI 59 774,5411,Catering costs - provisions,9.41,0.00,9.41
Neighbourhoods and Climate Change,Environmental Services,010367,C&G - South Grounds Maintenance,Supplies and Services,304999,Equipment and Materials,06-Jan-2021,000007392188354,GROUNDSMAN TOOLS AND S,5251,Misc equipment tools and materials,492.70,82.12,410.58
Children and Young Peoples Services,Head of Childrens Social Care,085332,Middlestone Moor CU,Supplies and Services,304999,Equipment and Materials,06-Jan-2021,000007392188376,HOME BARGAINS SPENNYMO,5251,Misc equipment tools and materials,18.09,0.00,18.09
Children and Young Peoples Services,Head of Childrens Social Care,085332,Middlestone Moor CU,Supplies and Services,304999,Equipment and Materials,06-Jan-2021,000007392188378,HOME BARGAINS SPENNYMO,5251,Misc equipment tools and materials,16.13,0.00,16.13
Children and Young Peoples Services,Head of Childrens Social Care,085362,LAC & Permanence Team 2,Supplies and Services,304403,Equipment and Materials,06-Jan-2021,000007392188416,HM PASSPORT OFFICE,9399,Other consumables,49.00,0.00,49.00
Children and Young Peoples Services,Head of Childrens Social Care,085361,LAC & Permanence Team 1,Supplies and Services,304403,Equipment and Materials,06-Jan-2021,000007392188418,DARLINGTON BC INTERNET,9399,Other consumables,11.00,0.00,11.00
Resources BK0010,Digital and Customer Services,065481,Technical Services 065481,Supplies and Services,372009,Subscriptions E372,06-Jan-2021,000007392188442,WEB NETWORKSOLUTIONS,5968,Subscriptions 372009,106.32,0.00,106.32
Children and Young Peoples Services,Head of Childrens Social Care,085342,16 Hickstead Rise (previously 9 Cedar Ave),Supplies and Services,304403,Equipment and Materials,06-Jan-2021,000007392188448,AMZNMktplace,5999,Other consumables,11.95,0.00,11.95
"Regeneration, Economy and Growth",Development and Housing,030771,Durham Advance Flexible Fund,Supplies and Services,328041,Clothing uniforms and laundry E328,06-Jan-2021,000007392188474,ARGOS LTD,5310,Clothing uniforms and laundry,29.99,0.00,29.99
"Regeneration, Economy and Growth",Development and Housing,031500,Housing Solutions - Core Team,Supplies and Services,352001,Conference Expenses,06-Jan-2021,000007392188490,TOAST LETTINGS,7011,Conferencesseminars fees etc,300.00,0.00,300.00
"Regeneration, Economy and Growth",Development and Housing,031623,Rough,Transport,235057,Public Transport,06-Jan-2021,000007392188510,GO NORTH EAST LIMITED,4131,Staff travelling,7.00,0.00,7.00
"Regeneration, Economy and Growth",Development and Housing,031623,Rough,Supplies and Services,304999,Equipment and Materials,06-Jan-2021,000007392188512,DUNCAN BELTON TA K,6513,Misc equipment tools and materials,500.00,0.00,500.00
Children and Young Peoples Services,Head of Early Help Inclusion & Vulnerable Children.,085956,Lumley,Supplies and Services,384999,Miscellaneous Expenses,06-Jan-2021,000007392188518,Amazon.co.uk MJ2U95DB4,5969,Other expenses,29.00,4.83,24.17
Children and Young Peoples Services,Head of Early Help Inclusion & Vulnerable Children.,085956,Lumley,Supplies and Services,304403,Equipment and Materials,06-Jan-2021,000007392188522,AMZNMktplace,5999,Other consumables,17.33,2.89,14.44
Children and Young Peoples Services,Head of Early Help Inclusion & Vulnerable Children.,085954,Walworth,Supplies and Services,304403,Equipment and Materials,06-Jan-2021,000007392188524,AMZNMktplace,5999,Other consumables,44.92,7.49,37.43
Children and Young Peoples Services,Head of Early Help Inclusion & Vulnerable Children.,085956,Lumley,Supplies and Services,304649,Equipment and Materials,06-Jan-2021,000007392188528,AMZNMktplace,5999,Toys,26.28,4.38,21.90
Children and Young Peoples Services,Head of Early Help Inclusion & Vulnerable Children.,085956,Lumley,Supplies and Services,304649,Equipment and Materials,06-Jan-2021,000007392188528 - 1,AMZNMktplace,5999,Toys,0.03,,0.03
Children and Young Peoples Services,Head of Early Help Inclusion & Vulnerable Children.,085956,Lumley,Supplies and Services,384999,Miscellaneous Expenses,06-Jan-2021,000007392188530,WWWBLOOMBOUTIQUECOUK,5944,Other expenses,17.40,0.00,17.40
Children and Young Peoples Services,Head of Early Help Inclusion & Vulnerable Children.,085962,Aycliffe Secure - Durham,Supplies and Services,324117,Provisions E324,06-Jan-2021,000007392188534,TESCO STORES 6329,5411,Catering costs - provisions,92.44,0.00,92.44
Children and Young Peoples Services,Head of Early Help Inclusion & Vulnerable Children.,085956,Lumley,Supplies and Services,304403,Equipment and Materials,06-Jan-2021,000007392188540,AMZNMktplace,5999,Other consumables,5.99,1.00,4.99
Children and Young Peoples Services,Head of Early Help Inclusion & Vulnerable Children.,085956,Lumley,Supplies and Services,304259,Equipment and Materials,06-Jan-2021,000007392188544,ARGOS LTD,5310,Equipment-purchase and rental,103.94,0.00,103.94
Resources BK0010,People & Talent Management,010984,Training and Development,Supplies and Services,384999,Miscellaneous Expenses,06-Jan-2021,000007392188562,NPORS LTD,8211,Other expenses,72.00,0.00,72.00
"Regeneration, Economy and Growth",Development and Housing,031581,Prevention Fund,Supplies and Services,384999,Miscellaneous Expenses,06-Jan-2021,000007392188568,ARGOS LTD,5310,Other expenses,19.99,0.00,19.99
"Regeneration, Economy and Growth",Development and Housing,031576,B& B - Temp Accom,Supplies and Services,364320,Grants to Voluntary Organisations,06-Jan-2021,000007392188572,HI NEWCASTLE WASHI,7011,Accommodation assistance,145.00,0.00,145.00
"Regeneration, Economy and Growth",Development and Housing,031576,B& B - Temp Accom,Supplies and Services,364320,Grants to Voluntary Organisations,06-Jan-2021,000007392188576,MANOR HOUSE FERRYHILL,5812,Accommodation assistance,350.00,0.00,350.00
"Regeneration, Economy and Growth",Development and Housing,031576,B& B - Temp Accom,Supplies and Services,364320,Grants to Voluntary Organisations,06-Jan-2021,000007392188580,MANOR HOUSE FERRYHILL,5812,Accommodation assistance,350.00,0.00,350.00
"Regeneration, Economy and Growth",Development and Housing,031576,B& B - Temp Accom,Supplies and Services,364320,Grants to Voluntary Organisations,06-Jan-2021,000007392188584,MANOR HOUSE FERRYHILL,5812,Accommodation assistance,350.00,0.00,350.00
"Regeneration, Economy and Growth",Development and Housing,031576,B& B - Temp Accom,Supplies and Services,364320,Grants to Voluntary Organisations,06-Jan-2021,000007392188586,MANOR HOUSE FERRYHILL,5812,Accommodation assistance,350.00,0.00,350.00
Children and Young Peoples Services,Head of Childrens Social Care,085551,Short Break Services-Park Hse Sher,Supplies and Services,324117,Provisions E324,06-Jan-2021,000007392188630,ICELAND,5411,Catering costs - provisions,10.25,0.00,10.25
Adult and Health Services,Head of Adults,051630,OP/PD Occupational Therapy 051630,Supplies and Services,304259,Equipment and Materials,06-Jan-2021,000007392188634,CURRYS ONLINE,5732,Equipment-purchase and rental,264.95,0.00,264.95
Children and Young Peoples Services,Head of Early Help Inclusion & Vulnerable Children.,088106,Ferryhill & N.Aycliffe 0-19 Targeted Family Support,Supplies and Services,304259,Equipment and Materials,06-Jan-2021,000007392188652,AMZNMktplace,5999,Equipment-purchase and rental,28.20,4.70,23.50
Children and Young Peoples Services,Head of Early Help Inclusion & Vulnerable Children.,088106,Ferryhill & N.Aycliffe 0-19 Targeted Family Support,Supplies and Services,304303,Equipment and Materials,06-Jan-2021,000007392188652 - 1,AMZNMktplace,5999,Network for resale,25.20,,25.20
Adult and Health Services,Head of Adults,055643,Hawthorn House LD Respite Unit,Supplies and Services,324117,Provisions E324,06-Jan-2021,000007392188694,JR HOLLAND FOODSERVICE,5499,Catering costs - provisions,15.45,0.00,15.45
Adult and Health Services,Head of Adults,055643,Hawthorn House LD Respite Unit,Supplies and Services,324117,Provisions E324,06-Jan-2021,000007392188696,JR HOLLAND FOODSERVICE,5499,Catering costs - provisions,9.74,0.00,9.74
Neighbourhoods and Climate Change,Environmental Services,010301,C&G - North Grounds Maintenance,Supplies and Services,304999,Equipment and Materials,06-Jan-2021,000007392188710,GRALANDS WOODWORK SUPP,5251,Misc equipment tools and materials,15.29,0.00,15.29
Resources BK0010,Digital and Customer Services,065335,School Services - Implementations,Supplies and Services,304639,Equipment and Materials,06-Jan-2021,000007392188714,WWW.ONLINELAPTOPBATTER,5045,Technicians-supplies,60.80,0.00,60.80
Resources BK0010,Digital and Customer Services,065335,School Services - Implementations,Supplies and Services,304639,Equipment and Materials,06-Jan-2021,000007392188718,REPLACEBASE,5732,Technicians-supplies,55.42,0.00,55.42
Children and Young Peoples Services,Head of Childrens Social Care,085334,West Rainton Satelite Home,Supplies and Services,324117,Provisions E324,06-Jan-2021,000007392188722,TESCO STORES 2371,5411,Catering costs - provisions,66.41,0.00,66.41
Children and Young Peoples Services,Head of Education and Skills,071903,Early Years Sustainability,Supplies and Services,352001,Conference Expenses,06-Jan-2021,000007392188750,WESTMINSTER FORUM PROJ,7392,Conferencesseminars fees etc,228.00,0.00,228.00
"Regeneration, Economy and Growth",Development and Housing,031576,B& B - Temp Accom,Supplies and Services,364320,Grants to Voluntary Organisations,06-Jan-2021,000007392188774,TOAST LETTINGS,7011,Accommodation assistance,400.00,0.00,400.00
Children and Young Peoples Services,Head of Childrens Social Care,085342,16 Hickstead Rise (previously 9 Cedar Ave),Supplies and Services,324117,Provisions E324,06-Jan-2021,000007392188806,TESCO STORES 2916,5411,Catering costs - provisions,176.90,0.00,176.90
Children and Young Peoples Services,Head of Education and Skills,071802,Louisa Cent Nursery,Supplies and Services,324117,Provisions E324,06-Jan-2021,000007392188810,ASDA GROCERIES ONLINE,5411,Catering costs - provisions,256.26,0.00,256.26
Children and Young Peoples Services,Head of Education and Skills,071802,Louisa Cent Nursery,Supplies and Services,324117,Provisions E324,06-Jan-2021,000007392188812,ASDA SUPERSTORE,5411,Catering costs - provisions,23.34,0.00,23.34
Children and Young Peoples Services,Head of Education and Skills,071802,Louisa Cent Nursery,Supplies and Services,324117,Provisions E324,06-Jan-2021,000007392188814,ASDA GROCERIES ONLINE,5411,Catering costs - provisions,-19.72,0.00,-19.72
Resources BK0010,Business Support,065503,Business Support - Spectrum,Supplies and Services,304403,Equipment and Materials,06-Jan-2021,000007392188822,AMZNMktplace,5999,Other consumables,16.48,0.00,16.48
"Regeneration, Economy and Growth",Development and Housing,031500,Housing Solutions - Core Team,Supplies and Services,352001,Conference Expenses,06-Jan-2021,000007392188846,HI NEWCASTLE WASHI,7011,Conferencesseminars fees etc,260.00,0.00,260.00
"Regeneration, Economy and Growth",Development and Housing,031500,Housing Solutions - Core Team,Supplies and Services,352001,Conference Expenses,06-Jan-2021,000007392188848,HI NEWCASTLE WASHI,7011,Conferencesseminars fees etc,195.00,0.00,195.00
Children and Young Peoples Services,Head of Childrens Social Care,085333,Coxhoe Satelite Home,Supplies and Services,324117,Provisions E324,06-Jan-2021,000007392188888,TESCO STORES 2371,5411,Catering costs - provisions,88.89,0.00,88.89
Adult and Health Services,Commissioning inc Supporting People,052100,Supporting the Provider Market,Employees,040149,Recruitment Instruction and Training,06-Jan-2021,000007392188910,CPD ONLINE COLLEGE,8299,Training-all costs,24.00,0.00,24.00
Adult and Health Services,Head of Adults,052750,Learning Disability Management,Supplies and Services,312009,Newspapers books and periodicals E312,06-Jan-2021,000007392188914,Amazon.co.uk MJ6LA1D84,5969,Newspapers books and periodicals,11.99,0.00,11.99
"Regeneration, Economy and Growth",Development and Housing,031500,Housing Solutions - Core Team,Supplies and Services,352001,Conference Expenses,06-Jan-2021,000007392188916,TOAST LETTINGS,7011,Conferencesseminars fees etc,310.00,0.00,310.00
"Regeneration, Economy and Growth",Development and Housing,030771,Durham Advance Flexible Fund,Supplies and Services,304403,Equipment and Materials,06-Jan-2021,000007392188956,SP FAST SOFTWARE,5734,Other consumables,29.99,0.00,29.99
Children and Young Peoples Services,Head of Childrens Social Care,085631,Families First Peterlee,Supplies and Services,304403,Equipment and Materials,06-Jan-2021,000007392188964,AMZNMktplace,5999,Other consumables,93.40,15.60,77.80
Children and Young Peoples Services,Head of Childrens Social Care,085631,Families First Peterlee,Supplies and Services,304403,Equipment and Materials,06-Jan-2021,000007392188966,AMZNMktplace,5999,Other consumables,93.40,15.60,77.80
Adult and Health Services,Head of Adults,055302,Durham Pathways,Supplies and Services,304403,Equipment and Materials,06-Jan-2021,000007394790716,AMZNMKTPLACE AMAZON.CO,5999,Other consumables,29.95,4.99,24.96
Children and Young Peoples Services,Head of Childrens Social Care,085342,16 Hickstead Rise (previously 9 Cedar Ave),Supplies and Services,304403,Equipment and Materials,06-Jan-2021,000007394791010,AMZNMKTPLACE AMAZON.CO,5999,Other consumables,26.99,0.00,26.99
Children and Young Peoples Services,Head of Childrens Social Care,085334,West Rainton Satelite Home,Supplies and Services,324117,Provisions E324,06-Jan-2021,000007394791024,Light/Mini In The Box,5399,Catering costs - provisions,19.56,0.00,19.56
Children and Young Peoples Services,Head of Early Help Inclusion & Vulnerable Children.,085956,Lumley,Supplies and Services,312009,Newspapers books and periodicals E312,06-Jan-2021,000007394791100,AMZNMKTPLACE AMAZON.CO,5999,Newspapers books and periodicals,23.77,0.00,23.77
Resources BK0010,Business Support,065503,Business Support - Spectrum,Supplies and Services,352001,Conference Expenses,06-Jan-2021,000007394791508,TVLICENSING.CO.UK,7392,Conferencesseminars fees etc,157.50,0.00,157.50
Neighbourhoods and Climate Change,Environmental Services,011060,C&G - Hardwick Park Catering,Supplies and Services,304083,Equipment and Materials,06-Jan-2021,000009374956287,AMZNMktplace,5999,Catering equipment,14.90,0.00,14.90
"Regeneration, Economy and Growth",Business Durham CL0850,030689,Inward Investment and Aftercare,Supplies and Services,336005,Advertising E336,07-Jan-2021,000007392188236,LINKEDIN IRELAND,7311,Advertising other than for staff,133.04,0.00,133.04
Children and Young Peoples Services,Head of Childrens Social Care,085362,LAC & Permanence Team 2,Supplies and Services,344033,Telephones,07-Jan-2021,000007392188276,AMZNMktplace,5999,Telephones general-all costs,6.99,1.17,5.82
Resources BK0010,Digital and Customer Services,065481,Technical Services 065481,Supplies and Services,372009,Subscriptions E372,07-Jan-2021,000007392188446,WEB NETWORKSOLUTIONS,5968,Subscriptions 372009,2.92,0.00,2.92
Children and Young Peoples Services,Head of Early Help Inclusion & Vulnerable Children.,085956,Lumley,Supplies and Services,384999,Miscellaneous Expenses,07-Jan-2021,000007392188542,AMZNMktplace,5999,Other expenses,14.52,2.42,12.10
Children and Young Peoples Services,Head of Childrens Social Care,085333,Coxhoe Satelite Home,Supplies and Services,304403,Equipment and Materials,07-Jan-2021,000007392188890,AMZNMktplace,5999,Other consumables,8.88,0.00,8.88
Children and Young Peoples Services,Head of Education and Skills,071801,Selby Cottage Childcare Centre,Supplies and Services,324117,Provisions E324,07-Jan-2021,000007394790554,JR HOLLAND FOODSERVICE,5499,Catering costs - provisions,258.04,0.00,258.04
Neighbourhoods and Climate Change,Environmental Services,010341,Nei.Prot - N. Wardens,Supplies and Services,344033,Telephones,07-Jan-2021,000007394790584,AMZNMKTPLACE AMAZON.CO,5999,Telephones general-all costs,75.90,0.00,75.90
Resources BK0010,Digital and Customer Services,065482,Data Centres,Supplies and Services,304403,Equipment and Materials,07-Jan-2021,000007394790590,AMZNMktplace,5999,Other consumables,133.96,22.34,111.62
Resources BK0010,Digital and Customer Services,065432,Web Development Group,Supplies and Services,342053,Computers and Communications,07-Jan-2021,000007394790598,WPMU DEV INCSUBFEE.COM,7372,Computer software,14.03,0.00,14.03
Resources BK0010,Digital and Customer Services,065482,Data Centres,Supplies and Services,304403,Equipment and Materials,07-Jan-2021,000007394790600,AMZNMktplace,5999,Other consumables,57.98,9.67,48.31
Resources BK0010,Digital and Customer Services,065482,Data Centres,Supplies and Services,304403,Equipment and Materials,07-Jan-2021,000007394790604,AMZNMktplace,5999,Other consumables,55.98,0.00,55.98
Resources BK0010,Digital and Customer Services,065482,Data Centres,Supplies and Services,304403,Equipment and Materials,07-Jan-2021,000007394790608,AMZNMktplace,5999,Other consumables,30.99,5.17,25.82
Resources BK0010,Digital and Customer Services,065482,Data Centres,Supplies and Services,304403,Equipment and Materials,07-Jan-2021,000007394790614,AMZNMktplace,5999,Other consumables,91.98,15.34,76.64
Adult and Health Services,Head of Adults,053815,The Orchards Extra Care,Supplies and Services,304403,Equipment and Materials,07-Jan-2021,000007394790616,AMZNMktplace,5999,Other consumables,155.99,0.00,155.99
Adult and Health Services,Commissioning inc Supporting People,052100,Supporting the Provider Market,Supplies and Services,338057,Services,07-Jan-2021,000007394790620,WESSEX MEDICAL,5047,Medical fees 338057,975.00,162.50,812.50
"Regeneration, Economy and Growth",Development and Housing,031576,B& B - Temp Accom,Supplies and Services,364320,Grants to Voluntary Organisations,07-Jan-2021,000007394790652,THE HONEST LAWYER,7011,Accommodation assistance,474.10,0.00,474.10
"Regeneration, Economy and Growth",Development and Housing,031576,B& B - Temp Accom,Supplies and Services,364320,Grants to Voluntary Organisations,07-Jan-2021,000007394790658,THE HONEST LAWYER,7011,Accommodation assistance,500.00,0.00,500.00
"Regeneration, Economy and Growth",Development and Housing,031576,B& B - Temp Accom,Supplies and Services,364320,Grants to Voluntary Organisations,07-Jan-2021,000007394790664,THE HONEST LAWYER,7011,Accommodation assistance,500.00,0.00,500.00
"Regeneration, Economy and Growth",Development and Housing,031576,B& B - Temp Accom,Supplies and Services,364320,Grants to Voluntary Organisations,07-Jan-2021,000007394790668,THE HONEST LAWYER,7011,Accommodation assistance,389.95,0.00,389.95
"Regeneration, Economy and Growth",Development and Housing,031576,B& B - Temp Accom,Supplies and Services,364320,Grants to Voluntary Organisations,07-Jan-2021,000007394790674,THE HONEST LAWYER,7011,Accommodation assistance,500.00,0.00,500.00
Children and Young Peoples Services,Head of Childrens Social Care,085357,LAC Bespoke Placements,Supplies and Services,352001,Conference Expenses,07-Jan-2021,000007394790706,LITTLEWHITE FARM COTTA,7011,Conferencesseminars fees etc,395.00,0.00,395.00
Children and Young Peoples Services,Head of Childrens Social Care,085380,Operations Manager LAC Resources,Employees,040149,Recruitment Instruction and Training,07-Jan-2021,000007394790836,PROFESSIONALS NVR H...,8999,Training-all costs,150.00,0.00,150.00
Children and Young Peoples Services,Head of Childrens Social Care,085332,Middlestone Moor CU,Supplies and Services,384999,Miscellaneous Expenses,07-Jan-2021,000007394790842,Amazon.co.uk MJ1J94DU4,5969,Other expenses,74.92,12.49,62.43
Children and Young Peoples Services,Head of Childrens Social Care,085332,Middlestone Moor CU,Supplies and Services,384999,Miscellaneous Expenses,07-Jan-2021,000007394790848,Amazon.co.uk MJ9J36D04,5969,Other expenses,74.92,12.49,62.43
"Regeneration, Economy and Growth",Culture Sport and Tourism,054775,Durham Town Hall 054775,Supplies and Services,304999,Equipment and Materials,07-Jan-2021,000007394790940,Amazon Prime MJ7340SZ4,5968,Misc equipment tools and materials,7.99,0.00,7.99
Children and Young Peoples Services,Head of Early Help Inclusion & Vulnerable Children.,073998,TTF-Co-ordinator Grant,Transfer Payments,525033,Other,07-Jan-2021,000007394790962,FRANKS FACTORY FLOORIN,5713,Grants to individuals,145.00,0.00,145.00
"Regeneration, Economy and Growth",Development and Housing,031623,Rough,Supplies and Services,352001,Conference Expenses,07-Jan-2021,000007394791078,THE HONEST LAWYER,7011,Conferencesseminars fees etc,500.00,0.00,500.00
"Regeneration, Economy and Growth",Development and Housing,031623,Rough,Supplies and Services,352001,Conference Expenses,07-Jan-2021,000007394791082,THE HONEST LAWYER,7011,Conferencesseminars fees etc,472.00,0.00,472.00
"Regeneration, Economy and Growth",Development and Housing,031623,Rough,Supplies and Services,352001,Conference Expenses,07-Jan-2021,000007394791086,THE HONEST LAWYER,7011,Conferencesseminars fees etc,293.00,0.00,293.00
"Regeneration, Economy and Growth",Development and Housing,031623,Rough,Supplies and Services,352001,Conference Expenses,07-Jan-2021,000007394791088,THE HONEST LAWYER,7011,Conferencesseminars fees etc,293.00,0.00,293.00
"Regeneration, Economy and Growth",Development and Housing,031623,Rough,Supplies and Services,304999,Equipment and Materials,07-Jan-2021,000007394791092,DUNCAN BELTON TA K,6513,Misc equipment tools and materials,500.00,0.00,500.00
Children and Young Peoples Services,Head of Early Help Inclusion & Vulnerable Children.,088112,Seaham & Central Durham 0-19 Targeted Family Support,Employees,040149,Recruitment Instruction and Training,07-Jan-2021,000007394791122,NE-AS.ORG.UK,8398,Training-all costs,15.00,0.00,15.00
Children and Young Peoples Services,Head of Early Help Inclusion & Vulnerable Children.,088113,Seaham  0-19 Community Family Hub,Supplies and Services,324117,Provisions E324,07-Jan-2021,000007394791128,WILKO.COM,5399,Catering costs - provisions,82.50,0.00,82.50
Children and Young Peoples Services,Head of Early Help Inclusion & Vulnerable Children.,088113,Seaham  0-19 Community Family Hub,Supplies and Services,324117,Provisions E324,07-Jan-2021,000007394791134,WILKO.COM,5399,Catering costs - provisions,74.00,0.00,74.00
Neighbourhoods and Climate Change,Environmental Services,010367,C&G - South Grounds Maintenance,Supplies and Services,304221,Equipment and Materials,07-Jan-2021,000007394791146,MKM PETERLEE,5211,Direct materials,39.44,0.00,39.44
Resources BK0010,People & Talent Management,010984,Training and Development,Supplies and Services,384999,Miscellaneous Expenses,07-Jan-2021,000007394791150,Amazon.co.uk MJ26E7294,5969,Other expenses,48.98,0.00,48.98
Resources BK0010,Business Support,065503,Business Support - Spectrum,Supplies and Services,304259,Equipment and Materials,07-Jan-2021,000007394791254,AMZNMktplace,5999,Equipment-purchase and rental,148.50,24.75,123.75
Resources BK0010,Business Support,065503,Business Support - Spectrum,Supplies and Services,304259,Equipment and Materials,07-Jan-2021,000007394791254 - 1,AMZNMktplace,5999,Equipment-purchase and rental,0.05,,0.05
Resources BK0010,Digital and Customer Services,065335,School Services - Implementations,Supplies and Services,304639,Equipment and Materials,07-Jan-2021,000007394791474,AMZNMktplace,5999,Technicians-supplies,10.63,0.00,10.63
"Regeneration, Economy and Growth",Development and Housing,031576,B& B - Temp Accom,Supplies and Services,364320,Grants to Voluntary Organisations,07-Jan-2021,000007394791588,HI NEWCASTLE WASHI,7011,Accommodation assistance,450.00,0.00,450.00
"Regeneration, Economy and Growth",Development and Housing,031576,B& B - Temp Accom,Supplies and Services,364320,Grants to Voluntary Organisations,07-Jan-2021,000007394791600,HI NEWCASTLE WASHI,7011,Accommodation assistance,189.30,0.00,189.30
Children and Young Peoples Services,Head of Childrens Social Care,085351,Framwellgate Moor CU,Supplies and Services,348037,Subsistence E348,07-Jan-2021,000007394791732,MCDONALDS,5812,Subsistence,11.02,0.00,11.02
Children and Young Peoples Services,Head of Childrens Social Care,085342,16 Hickstead Rise (previously 9 Cedar Ave),Supplies and Services,324117,Provisions E324,07-Jan-2021,000007394791746,TESCO STORES 2916,5411,Catering costs - provisions,48.22,0.00,48.22
Children and Young Peoples Services,Head of Childrens Social Care,085342,16 Hickstead Rise (previously 9 Cedar Ave),Supplies and Services,324117,Provisions E324,07-Jan-2021,000007394791754,TESCO STORES 2916,5411,Catering costs - provisions,24.84,0.00,24.84
Resources BK0010,Business Support,065503,Business Support - Spectrum,Supplies and Services,304403,Equipment and Materials,07-Jan-2021,000007394791778,HEALTH EDCO,5999,Other consumables,346.80,0.00,346.80
Children and Young Peoples Services,Head of Childrens Social Care,085380,Operations Manager LAC Resources,Supplies and Services,384999,Miscellaneous Expenses,07-Jan-2021,000007394791814,Amazon.co.uk MJ6D80SH4,5969,Other expenses,50.00,0.00,50.00
Neighbourhoods and Climate Change,Environmental Services,031238,North Pennines - Tees Swale,Employees,040149,Recruitment Instruction and Training,07-Jan-2021,000007394791822,GROUP FOR ED IN MUSEUM,8398,Training-all costs,182.00,0.00,182.00
Children and Young Peoples Services,Head of Childrens Social Care,085333,Coxhoe Satelite Home,Supplies and Services,348037,Subsistence E348,07-Jan-2021,000007394791860,SumUp candy,5812,Subsistence,3.75,0.00,3.75
Children and Young Peoples Services,Head of Childrens Social Care,085333,Coxhoe Satelite Home,Supplies and Services,324117,Provisions E324,07-Jan-2021,000007394791866,ASDA SUPERSTORE 4987,5411,Catering costs - provisions,130.61,0.00,130.61
Children and Young Peoples Services,Head of Childrens Social Care,085333,Coxhoe Satelite Home,Supplies and Services,324117,Provisions E324,07-Jan-2021,000007394791874,ASDA SUPERSTORE 4987,5411,Catering costs - provisions,25.04,0.00,25.04
Children and Young Peoples Services,Head of Childrens Social Care,085333,Coxhoe Satelite Home,Supplies and Services,324117,Provisions E324,07-Jan-2021,000007394791876,CO-OP GROUP 310016,5411,Catering costs - provisions,2.80,0.00,2.80
"Regeneration, Economy and Growth",Development and Housing,030771,Durham Advance Flexible Fund,Employees,040149,Recruitment Instruction and Training,07-Jan-2021,000007394791990,VIRTUAL COLLEGE LIMITE,8299,Training-all costs,14.40,2.40,12.00
Resources BK0010,Business Support,065503,Business Support - Spectrum,Supplies and Services,352001,Conference Expenses,07-Jan-2021,000007398144298,TVLICENSING.CO.UK,7392,Conferencesseminars fees etc,157.50,0.00,157.50
Children and Young Peoples Services,Head of Childrens Social Care,085351,Framwellgate Moor CU,Supplies and Services,328041,Clothing uniforms and laundry E328,07-Jan-2021,000007398144350,ARGOS LTD,5310,Clothing uniforms and laundry,123.91,0.00,123.91
Children and Young Peoples Services,Head of Education and Skills,071802,Louisa Cent Nursery,Supplies and Services,324117,Provisions E324,07-Jan-2021,000007398144356,COOL MILK AT SCHOOL-MO,5499,Catering costs - provisions,11.44,0.00,11.44
Children and Young Peoples Services,Head of Education and Skills,071802,Louisa Cent Nursery,Supplies and Services,324117,Provisions E324,07-Jan-2021,000007398144360,COOL MILK AT SCHOOL-MO,5499,Catering costs - provisions,17.16,0.00,17.16
Children and Young Peoples Services,Head of Childrens Social Care,085333,Coxhoe Satelite Home,Supplies and Services,304403,Equipment and Materials,07-Jan-2021,000007398144454,PAYPAL EACNSLCN EBAY,5999,Other consumables,10.99,0.00,10.99
Resources BK0010,Digital and Customer Services,065432,Web Development Group,Supplies and Services,342053,Computers and Communications,08-Jan-2021,000007394790622,WPMU DEV INCSUBFEE.COM,7372,Computer software,0.39,0.00,0.39
Children and Young Peoples Services,Head of Childrens Social Care,085341,High Etherley Satelite Home,Supplies and Services,324117,Provisions E324,08-Jan-2021,000007398143218,TESCO STORES 6329,5411,Catering costs - provisions,109.16,0.00,109.16
Children and Young Peoples Services,Head of Early Help Inclusion & Vulnerable Children.,071489,Winter Family Fund,Supplies and Services,364301,Grants to Voluntary Organisations,08-Jan-2021,000007398143242,WILKO.COM,5399,Hardship,45.00,0.00,45.00
Children and Young Peoples Services,Head of Education and Skills,071801,Selby Cottage Childcare Centre,Supplies and Services,304999,Equipment and Materials,08-Jan-2021,000007398143248,Amazon Prime MJ5IY7K74,5968,Misc equipment tools and materials,7.99,0.00,7.99
Children and Young Peoples Services,Head of Education and Skills,054640,Durham Learning Resources 054640,Supplies and Services,384999,Miscellaneous Expenses,08-Jan-2021,000007398143262,Amazon.co.uk MJ7KX3KN4,5969,Other expenses,5.61,0.00,5.61
Children and Young Peoples Services,Head of Education and Skills,054640,Durham Learning Resources 054640,Supplies and Services,384999,Miscellaneous Expenses,08-Jan-2021,000007398143266,Amazon.co.uk MJ81R5KL4,5969,Other expenses,50.49,0.00,50.49
Resources BK0010,Digital and Customer Services,065482,Data Centres,Supplies and Services,304403,Equipment and Materials,08-Jan-2021,000007398143278,AMZNMktplace,5999,Other consumables,27.90,4.66,23.24
Resources BK0010,Digital and Customer Services,065482,Data Centres,Supplies and Services,304403,Equipment and Materials,08-Jan-2021,000007398143282,AMZNMktplace,5999,Other consumables,40.98,6.83,34.15
"Regeneration, Economy and Growth",Corporate Property and Land,010932,Building Design 010932,Supplies and Services,342053,Computers and Communications,08-Jan-2021,000007398143284,ENSCAPE3D.COM,7372,Computer software,516.49,0.00,516.49
Resources BK0010,Resources Management CK0450,069000,Resources Management 069000,Supplies and Services,344033,Telephones,08-Jan-2021,000007398143290,APPLE.COM/UK,5732,Telephones general-all costs,19.00,0.00,19.00
"Regeneration, Economy and Growth",Development and Housing,031576,B& B - Temp Accom,Supplies and Services,364320,Grants to Voluntary Organisations,08-Jan-2021,000007398143320,TRAVELODGE,3615,Accommodation assistance,113.95,0.00,113.95
"Regeneration, Economy and Growth",Development and Housing,031576,B& B - Temp Accom,Supplies and Services,364320,Grants to Voluntary Organisations,08-Jan-2021,000007398143324,THE HONEST LAWYER,7011,Accommodation assistance,500.00,0.00,500.00
"Regeneration, Economy and Growth",Development and Housing,031576,B& B - Temp Accom,Supplies and Services,364320,Grants to Voluntary Organisations,08-Jan-2021,000007398143328,THE HONEST LAWYER,7011,Accommodation assistance,433.00,0.00,433.00
"Regeneration, Economy and Growth",Development and Housing,031576,B& B - Temp Accom,Supplies and Services,364320,Grants to Voluntary Organisations,08-Jan-2021,000007398143332,THE HONEST LAWYER,7011,Accommodation assistance,248.00,0.00,248.00
"Regeneration, Economy and Growth",Development and Housing,031576,B& B - Temp Accom,Supplies and Services,364320,Grants to Voluntary Organisations,08-Jan-2021,000007398143338,THE HONEST LAWYER,7011,Accommodation assistance,500.00,0.00,500.00
Children and Young Peoples Services,Head of Education and Skills,075021,Youth Employment Initiative,Supplies and Services,364301,Grants to Voluntary Organisations,08-Jan-2021,000007398143364,WWW.DURHAM.GOV.UK,9399,Hardship,11.00,0.00,11.00
Resources BK0010,Transformation,060136,Relocation of County Archives,Supplies and Services,304259,Equipment and Materials,08-Jan-2021,000007398143372,Etsy.com - LunaRibbons,5699,Equipment-purchase and rental,11.68,0.00,11.68
Children and Young Peoples Services,Head of Childrens Social Care,085332,Middlestone Moor CU,Supplies and Services,324117,Provisions E324,08-Jan-2021,000007398143390,WWW.ICELAND.CO.UK,5411,Catering costs - provisions,10.12,0.00,10.12
Children and Young Peoples Services,Head of Childrens Social Care,085332,Middlestone Moor CU,Supplies and Services,324117,Provisions E324,08-Jan-2021,000007398143396,WWW.ICELAND.CO.UK,5411,Catering costs - provisions,14.50,0.00,14.50
Children and Young Peoples Services,Head of Childrens Social Care,085332,Middlestone Moor CU,Supplies and Services,324117,Provisions E324,08-Jan-2021,000007398143398,WWW.ICELAND.CO.UK,5411,Catering costs - provisions,2.00,0.00,2.00
Children and Young Peoples Services,Head of Childrens Social Care,085332,Middlestone Moor CU,Supplies and Services,324117,Provisions E324,08-Jan-2021,000007398143400,WWW.ICELAND.CO.UK,5411,Catering costs - provisions,33.50,0.00,33.50
Children and Young Peoples Services,Head of Childrens Social Care,085332,Middlestone Moor CU,Supplies and Services,324117,Provisions E324,08-Jan-2021,000007398143404,WWW.ICELAND.CO.UK,5411,Catering costs - provisions,-2.00,0.00,-2.00
Children and Young Peoples Services,Head of Childrens Social Care,085341,High Etherley Satelite Home,Supplies and Services,324117,Provisions E324,08-Jan-2021,000007398143480,COOPLANDS BAKERY,5462,Catering costs - provisions,2.00,0.00,2.00
Children and Young Peoples Services,Head of Childrens Social Care,085341,High Etherley Satelite Home,Supplies and Services,328041,Clothing uniforms and laundry E328,08-Jan-2021,000007398143486,W BOYES & CO LTD BISHO,5310,Clothing uniforms and laundry,35.00,0.00,35.00
Children and Young Peoples Services,Head of Childrens Social Care,085341,High Etherley Satelite Home,Supplies and Services,324117,Provisions E324,08-Jan-2021,000007398143490,ASDA STORES,5411,Catering costs - provisions,8.00,0.00,8.00
Children and Young Peoples Services,Head of Childrens Social Care,085341,High Etherley Satelite Home,Supplies and Services,324117,Provisions E324,08-Jan-2021,000007398143496,ASDA STORES,5411,Catering costs - provisions,2.69,0.00,2.69
Children and Young Peoples Services,Head of Childrens Social Care,085341,High Etherley Satelite Home,Supplies and Services,328041,Clothing uniforms and laundry E328,08-Jan-2021,000007398143500,POUNDLAND LTD 1390,5310,Clothing uniforms and laundry,6.00,0.00,6.00
Children and Young Peoples Services,Head of Early Help Inclusion & Vulnerable Children.,079599,Psychological-HQ,Supplies and Services,312009,Newspapers books and periodicals E312,08-Jan-2021,000007398143594,COLLEEN BECK GUMROAD,5192,Newspapers books and periodicals,17.71,0.00,17.71
Children and Young Peoples Services,Head of Early Help Inclusion & Vulnerable Children.,079599,Psychological-HQ,Supplies and Services,304999,Equipment and Materials,08-Jan-2021,000007398143596,PAYPAL OTTOOLBOXLL,5815,Misc equipment tools and materials,15.39,0.00,15.39
Children and Young Peoples Services,Head of Early Help Inclusion & Vulnerable Children.,079599,Psychological-HQ,Supplies and Services,304999,Equipment and Materials,08-Jan-2021,000007398143602,PAYPAL OTTOOLBOXLL,5815,Misc equipment tools and materials,-15.39,0.00,-15.39
Children and Young Peoples Services,Head of Childrens Social Care,085362,LAC & Permanence Team 2,Supplies and Services,304403,Equipment and Materials,08-Jan-2021,000007398143610,STOCKTON BOROUGH COUNC,9399,Other consumables,11.00,0.00,11.00
Children and Young Peoples Services,Head of Early Help Inclusion & Vulnerable Children.,088109,Spennymoor & Shildon 0-19 Community Family Hub,Supplies and Services,304245,Equipment and Materials,08-Jan-2021,000007398143670,CAPT CHARITY,5734,Materials,371.45,0.00,371.45
"Regeneration, Economy and Growth",Development and Housing,031623,Rough,Supplies and Services,352001,Conference Expenses,08-Jan-2021,000007398143784,AYCLIFFE BIZ,7011,Conferencesseminars fees etc,114.00,0.00,114.00
"Regeneration, Economy and Growth",Development and Housing,031623,Rough,Supplies and Services,352001,Conference Expenses,08-Jan-2021,000007398143790,AYCLIFFE BIZ,7011,Conferencesseminars fees etc,114.00,0.00,114.00
"Regeneration, Economy and Growth",Development and Housing,031623,Rough,Supplies and Services,352001,Conference Expenses,08-Jan-2021,000007398143796,AYCLIFFE BIZ,7011,Conferencesseminars fees etc,440.00,0.00,440.00
"Regeneration, Economy and Growth",Development and Housing,031623,Rough,Supplies and Services,304999,Equipment and Materials,08-Jan-2021,000007398143800,DUNCAN BELTON TA K,6513,Misc equipment tools and materials,500.00,0.00,500.00
"Regeneration, Economy and Growth",Development and Housing,031623,Rough,Supplies and Services,348037,Subsistence E348,08-Jan-2021,000007398143804,CROXDALE INN,5812,Subsistence,108.00,0.00,108.00
Children and Young Peoples Services,Head of Early Help Inclusion & Vulnerable Children.,085965,Barnard,Supplies and Services,324117,Provisions E324,08-Jan-2021,000007398143810,TESCO STORES 6329,5411,Catering costs - provisions,61.42,0.00,61.42
Children and Young Peoples Services,Head of Early Help Inclusion & Vulnerable Children.,088113,Seaham  0-19 Community Family Hub,Supplies and Services,324117,Provisions E324,08-Jan-2021,000007398143830,WILKO.COM,5399,Catering costs - provisions,57.70,0.00,57.70
Children and Young Peoples Services,Head of Early Help Inclusion & Vulnerable Children.,088113,Seaham  0-19 Community Family Hub,Supplies and Services,324117,Provisions E324,08-Jan-2021,000007398143836,WILKO.COM,5399,Catering costs - provisions,-4.50,0.00,-4.50
Neighbourhoods and Climate Change,Environmental Services,011060,C&G - Hardwick Park Catering,Supplies and Services,324117,Provisions E324,08-Jan-2021,000007398143844,HOPWELLS LTD,5811,Catering costs - provisions,177.79,0.00,177.79
Neighbourhoods and Climate Change,Environmental Services,011060,C&G - Hardwick Park Catering,Supplies and Services,324117,Provisions E324,08-Jan-2021,000007398143850,HOPWELLS LTD,5811,Catering costs - provisions,101.61,0.00,101.61
Neighbourhoods and Climate Change,Environmental Services,011060,C&G - Hardwick Park Catering,Supplies and Services,324117,Provisions E324,08-Jan-2021,000007398143854,HOPWELLS LTD,5811,Catering costs - provisions,33.04,0.00,33.04
Neighbourhoods and Climate Change,Environmental Services,011060,C&G - Hardwick Park Catering,Premises,145009,Cleaning and Domestic Supplies,08-Jan-2021,000007398143858,ALLIANCE DISPOSABLES L,2842,Other cleaning and domestic costs,136.32,22.72,113.60
Neighbourhoods and Climate Change,Environmental Services,011060,C&G - Hardwick Park Catering,Supplies and Services,324117,Provisions E324,08-Jan-2021,000007398143864,JR HOLLAND FOODSERVICE,5499,Catering costs - provisions,24.66,0.00,24.66
"Regeneration, Economy and Growth",Development and Housing,031576,B& B - Temp Accom,Supplies and Services,364320,Grants to Voluntary Organisations,08-Jan-2021,000007398143944,HI NEWCASTLE WASHI,7011,Accommodation assistance,455.00,0.00,455.00
"Regeneration, Economy and Growth",Development and Housing,031576,B& B - Temp Accom,Supplies and Services,364320,Grants to Voluntary Organisations,08-Jan-2021,000007398143950,HI NEWCASTLE WASHI,7011,Accommodation assistance,65.00,0.00,65.00
"Regeneration, Economy and Growth",Development and Housing,030554,International Relations 030554,Supplies and Services,324117,Provisions E324,08-Jan-2021,000007398143994,WWW.THEFOODMARKET.COM,5499,Catering costs - provisions,-49.99,0.00,-49.99
Children and Young Peoples Services,Head of Early Help Inclusion & Vulnerable Children.,088106,Ferryhill & N.Aycliffe 0-19 Targeted Family Support,Supplies and Services,304259,Equipment and Materials,08-Jan-2021,000007398144006,AMZNMktplace,5999,Equipment-purchase and rental,176.60,0.00,176.60
Adult and Health Services,Head of Adults,055643,Hawthorn House LD Respite Unit,Supplies and Services,304403,Equipment and Materials,08-Jan-2021,000007398144090,AMZNMktplace,5999,Other consumables,22.83,0.00,22.83
"Regeneration, Economy and Growth",Development and Housing,031578,Client Travel Reimbursements,Transport,235073,Public Transport,08-Jan-2021,000007398144188,BLUE LINE TAXIS,4121,Travel-clients/students/children,18.90,0.00,18.90
"Regeneration, Economy and Growth",Development and Housing,031576,B& B - Temp Accom,Transport,235073,Public Transport,08-Jan-2021,000007398144192,BLUE LINE TAXIS,4121,Travel-clients/students/children,11.60,0.00,11.60
Adult and Health Services,Head of Adults,055643,Hawthorn House LD Respite Unit,Supplies and Services,324117,Provisions E324,08-Jan-2021,000007398144204,JR HOLLAND FOODSERVICE,5499,Catering costs - provisions,17.65,0.00,17.65
Adult and Health Services,Head of Adults,055643,Hawthorn House LD Respite Unit,Supplies and Services,324117,Provisions E324,08-Jan-2021,000007398144210,JR HOLLAND FOODSERVICE,5499,Catering costs - provisions,8.75,0.00,8.75
Children and Young Peoples Services,Head of Early Help Inclusion & Vulnerable Children.,088103,Consett & Stanley 0-19 Community Family Hub,Supplies and Services,364301,Grants to Voluntary Organisations,08-Jan-2021,000007398144220,ASDA SUPERSTORE,5411,Hardship,16.00,0.00,16.00
Children and Young Peoples Services,Head of Early Help Inclusion & Vulnerable Children.,079034,SEND LOOKED AFTER AND VULNERABLE CASEWORK TEAM 1,Supplies and Services,384999,Miscellaneous Expenses,08-Jan-2021,000007398144286,Amazon.co.uk MJ4477K84,5969,Other expenses,23.09,0.00,23.09
Children and Young Peoples Services,Head of Childrens Social Care,085333,Coxhoe Satelite Home,Supplies and Services,348037,Subsistence E348,08-Jan-2021,000007398144308,WWW.TAKEAWAY.JE,5812,Subsistence,33.60,0.00,33.60
Neighbourhoods and Climate Change,Environmental Services,031238,North Pennines - Tees Swale,Supplies and Services,336005,Advertising E336,08-Jan-2021,000007398144406,PAYPAL ARTSJOBSONL,7311,Advertising other than for staff,180.00,0.00,180.00
"Regeneration, Economy and Growth",Development and Housing,031500,Housing Solutions - Core Team,Supplies and Services,352001,Conference Expenses,08-Jan-2021,000007398144412,THE HONEST LAWYER,7011,Conferencesseminars fees etc,324.70,0.00,324.70
"Regeneration, Economy and Growth",Development and Housing,031500,Housing Solutions - Core Team,Supplies and Services,352001,Conference Expenses,08-Jan-2021,000007398144418,THE HONEST LAWYER,7011,Conferencesseminars fees etc,216.00,0.00,216.00
"Regeneration, Economy and Growth",Development and Housing,031500,Housing Solutions - Core Team,Supplies and Services,352001,Conference Expenses,08-Jan-2021,000007398144422,HI NEWCASTLE WASHI,7011,Conferencesseminars fees etc,260.00,0.00,260.00
"Regeneration, Economy and Growth",Development and Housing,031500,Housing Solutions - Core Team,Supplies and Services,352001,Conference Expenses,08-Jan-2021,000007398144426,HI NEWCASTLE WASHI,7011,Conferencesseminars fees etc,195.00,0.00,195.00
Children and Young Peoples Services,Head of Childrens Social Care,085331,New Lea Childrens Home,Supplies and Services,312009,Newspapers books and periodicals E312,08-Jan-2021,000007398144478,STATIONERY OFFICE BOOK,5942,Newspapers books and periodicals,30.00,0.00,30.00
Neighbourhoods and Climate Change,Technical Services CM0300,010010,Gilesgate DSHI 08/09,Supplies and Services,372009,Subscriptions E372,08-Jan-2021,000007398144486,CREATIVE_FED,8699,Subscriptions 372009,25.00,0.00,25.00
"Regeneration, Economy and Growth",Development and Housing,031500,Housing Solutions - Core Team,Supplies and Services,352001,Conference Expenses,08-Jan-2021,000007398144518,THE HONEST LAWYER,7011,Conferencesseminars fees etc,329.85,0.00,329.85
"Regeneration, Economy and Growth",Development and Housing,031500,Housing Solutions - Core Team,Supplies and Services,348037,Subsistence E348,08-Jan-2021,000007398144524,CROXDALE INN,5812,Subsistence,72.00,0.00,72.00
"Regeneration, Economy and Growth",Corporate Property and Land,021235,Catering - Wharton Park,Supplies and Services,324117,Provisions E324,08-Jan-2021,000007398144532,HOPWELLS LTD,5811,Catering costs - provisions,90.20,0.00,90.20
Adult and Health Services,Head of Adults,055643,Hawthorn House LD Respite Unit,Supplies and Services,324117,Provisions E324,08-Jan-2021,000007402149478,BATLEYS PERTH,5300,Catering costs - provisions,9.18,1.53,7.65
Adult and Health Services,Head of Adults,055643,Hawthorn House LD Respite Unit,Supplies and Services,324117,Provisions E324,08-Jan-2021,000007402149478 - 1,BATLEYS PERTH,5300,Catering costs - provisions,104.71,,104.71
"Regeneration, Economy and Growth",Business Durham CL0850,030689,Inward Investment and Aftercare,Supplies and Services,304999,Equipment and Materials,09-Jan-2021,000007398143226,MAILCHIMP MONTHLY,5968,Misc equipment tools and materials,78.02,0.00,78.02
"Regeneration, Economy and Growth",Business Durham CL0850,030689,Inward Investment and Aftercare,Supplies and Services,336005,Advertising E336,09-Jan-2021,000007398143232,LINKEDIN-621 8244644,7311,Advertising other than for staff,102.45,0.00,102.45
"Regeneration, Economy and Growth",Culture Sport and Tourism,030705,Visit County Durham 030705,Supplies and Services,384199,Miscellaneous Expenses,09-Jan-2021,000007398143378,123 REG LTD,5968,Other hired and contracted services,19.19,3.20,15.99
Children and Young Peoples Services,Head of Childrens Social Care,085342,16 Hickstead Rise (previously 9 Cedar Ave),Supplies and Services,324117,Provisions E324,09-Jan-2021,000007398143386,TESCO STORES 2916,5411,Catering costs - provisions,18.83,0.00,18.83
Children and Young Peoples Services,Head of Childrens Social Care,085332,Middlestone Moor CU,Supplies and Services,304259,Equipment and Materials,09-Jan-2021,000007398143572,JD SPORTS INTERNET,5941,Equipment-purchase and rental,43.99,0.00,43.99
Children and Young Peoples Services,Head of Childrens Social Care,085332,Middlestone Moor CU,Supplies and Services,304259,Equipment and Materials,09-Jan-2021,000007398143584,JD SPORTS INTERNET,5941,Equipment-purchase and rental,-43.99,0.00,-43.99
"Regeneration, Economy and Growth",Culture Sport and Tourism,054775,Durham Town Hall 054775,Supplies and Services,304403,Equipment and Materials,09-Jan-2021,000007398143618,AMZN Installments pmt,5999,Other consumables,29.80,0.00,29.80
Children and Young Peoples Services,Head of Education and Skills,071732,Dean Bank Childcare,Supplies and Services,304259,Equipment and Materials,09-Jan-2021,000007398143692,Amazon Music MJ0SD27W4,5735,Equipment-purchase and rental,14.99,0.00,14.99
Children and Young Peoples Services,Head of Childrens Social Care,085332,Middlestone Moor CU,Supplies and Services,304999,Equipment and Materials,09-Jan-2021,000007398143706,Amazon Prime MJ1ZL89L4,5968,Misc equipment tools and materials,7.99,0.00,7.99
Children and Young Peoples Services,Head of Early Help Inclusion & Vulnerable Children.,085956,Lumley,Supplies and Services,324117,Provisions E324,09-Jan-2021,000007398143814,TESCO STORES 6329,5411,Catering costs - provisions,73.51,0.00,73.51
Children and Young Peoples Services,Head of Childrens Social Care,085341,High Etherley Satelite Home,Supplies and Services,304403,Equipment and Materials,09-Jan-2021,000007398144046,AMZNMktplace,5999,Other consumables,5.68,0.00,5.68
Adult and Health Services,Head of Adults,055643,Hawthorn House LD Respite Unit,Supplies and Services,324117,Provisions E324,09-Jan-2021,000007398144096,SAINSBURYS SACAT 0776,5411,Catering costs - provisions,17.80,0.00,17.80
Children and Young Peoples Services,Head of Childrens Social Care,085342,16 Hickstead Rise (previously 9 Cedar Ave),Supplies and Services,348037,Subsistence E348,09-Jan-2021,000007398144114,Just Eat,5814,Subsistence,13.20,0.00,13.20
Children and Young Peoples Services,Head of Childrens Social Care,085342,16 Hickstead Rise (previously 9 Cedar Ave),Supplies and Services,324117,Provisions E324,09-Jan-2021,000007398144252,TESCO STORES 2916,5411,Catering costs - provisions,14.44,0.00,14.44
Children and Young Peoples Services,Head of Childrens Social Care,085342,16 Hickstead Rise (previously 9 Cedar Ave),Supplies and Services,384999,Miscellaneous Expenses,09-Jan-2021,000007398144256,Amazon.co.uk MJ4RK29M4,5969,Other expenses,12.99,0.00,12.99
"Regeneration, Economy and Growth",Development and Housing,030772,CLLD South,Employees,040149,Recruitment Instruction and Training,09-Jan-2021,000007398144396,clearcheck.co.uk,8999,Training-all costs,10.00,0.00,10.00
Children and Young Peoples Services,Head of Education and Skills,054640,Durham Learning Resources 054640,Supplies and Services,384999,Miscellaneous Expenses,10-Jan-2021,000007398143268,Amazon.co.uk MJ4XO3944,5969,Other expenses,47.92,0.00,47.92
Children and Young Peoples Services,Head of Education and Skills,054640,Durham Learning Resources 054640,Supplies and Services,384999,Miscellaneous Expenses,10-Jan-2021,000007398143272,Amazon.co.uk MJ3865UC4,5969,Other expenses,11.98,0.00,11.98
Children and Young Peoples Services,Head of Childrens Social Care,085332,Middlestone Moor CU,Supplies and Services,304403,Equipment and Materials,10-Jan-2021,000007398143582,AMZNMktplace,5999,Other consumables,6.98,1.16,5.82
Children and Young Peoples Services,Head of Early Help Inclusion & Vulnerable Children.,085962,Aycliffe Secure - Durham,Supplies and Services,348037,Subsistence E348,10-Jan-2021,000007398143712,Just Eat,5814,Subsistence,23.10,0.00,23.10
Children and Young Peoples Services,Head of Early Help Inclusion & Vulnerable Children.,085962,Aycliffe Secure - Durham,Supplies and Services,348037,Subsistence E348,10-Jan-2021,000007398143716,Just Eat,5814,Subsistence,49.10,0.00,49.10
Children and Young Peoples Services,Head of Early Help Inclusion & Vulnerable Children.,085954,Walworth,Supplies and Services,324117,Provisions E324,10-Jan-2021,000007398143816,TESCO STORES 6329,5411,Catering costs - provisions,86.23,0.00,86.23
Children and Young Peoples Services,Head of Early Help Inclusion & Vulnerable Children.,088106,Ferryhill & N.Aycliffe 0-19 Targeted Family Support,Supplies and Services,304259,Equipment and Materials,10-Jan-2021,000007398144012,Amazon.co.uk MJ1SL49Q4,5969,Equipment-purchase and rental,10.42,0.00,10.42
Children and Young Peoples Services,Head of Early Help Inclusion & Vulnerable Children.,088106,Ferryhill & N.Aycliffe 0-19 Targeted Family Support,Supplies and Services,304259,Equipment and Materials,10-Jan-2021,000007398144016,Amazon.co.uk MJ3X34984,5969,Equipment-purchase and rental,41.68,0.00,41.68
Children and Young Peoples Services,Head of Childrens Social Care,085341,High Etherley Satelite Home,Supplies and Services,304259,Equipment and Materials,10-Jan-2021,000007398144050,JD SPORTS INTERNET,5941,Equipment-purchase and rental,38.99,0.00,38.99
Children and Young Peoples Services,Head of Childrens Social Care,085342,16 Hickstead Rise (previously 9 Cedar Ave),Supplies and Services,324117,Provisions E324,10-Jan-2021,000007398144120,TESCO STORES 2916,5411,Catering costs - provisions,19.66,0.00,19.66
Children and Young Peoples Services,Head of Childrens Social Care,085342,16 Hickstead Rise (previously 9 Cedar Ave),Supplies and Services,332047,Printing Stationery and Gen Off Exps,10-Jan-2021,000007398144124,WWW.RYMAN.CO.UK,5943,Stationery,61.91,0.00,61.91
Resources BK0010,Digital and Customer Services,065331,Operations - Remote,Supplies and Services,342033,Computers and Communications,10-Jan-2021,000007398144242,Amazon.co.uk MJ6M97US4,5969,Computer hardware,92.00,15.33,76.67
Children and Young Peoples Services,Head of Early Help Inclusion & Vulnerable Children.,079034,SEND LOOKED AFTER AND VULNERABLE CASEWORK TEAM 1,Supplies and Services,384999,Miscellaneous Expenses,10-Jan-2021,000007398144292,Amazon.co.uk MJ0RW1UB4,5969,Other expenses,21.31,0.00,21.31
Children and Young Peoples Services,Head of Childrens Social Care,085333,Coxhoe Satelite Home,Supplies and Services,328041,Clothing uniforms and laundry E328,10-Jan-2021,000007398144314,ARGOS LTD,5310,Clothing uniforms and laundry,29.99,0.00,29.99
Children and Young Peoples Services,Head of Childrens Social Care,085351,Framwellgate Moor CU,Supplies and Services,372009,Subscriptions E372,10-Jan-2021,000007398144344,NETFLIX.COM,4899,Subscriptions 372009,11.99,0.00,11.99
"Regeneration, Economy and Growth",Business Durham CL0850,030689,Inward Investment and Aftercare,Third Party Payments,430100,Rendered by Private Contractors,10-Jan-2021,000007402147926,BLS monday.com,7399,Payments to sub-contractors,148.80,0.00,148.80
Children and Young Peoples Services,Head of Early Help Inclusion & Vulnerable Children.,088113,Seaham  0-19 Community Family Hub,Supplies and Services,304403,Equipment and Materials,10-Jan-2021,000007402149166,AMZNMKTPLACE AMAZON.CO,5999,Other consumables,397.62,0.00,397.62
"Regeneration, Economy and Growth",Business Durham CL0850,030689,Inward Investment and Aftercare,Supplies and Services,304999,Equipment and Materials,11-Jan-2021,000007398143236,MAILCHIMP MONTHLY,5968,Misc equipment tools and materials,2.15,0.00,2.15
"Regeneration, Economy and Growth",Corporate Property and Land,010932,Building Design 010932,Supplies and Services,342053,Computers and Communications,11-Jan-2021,000007398143292,ENSCAPE3D.COM,7372,Computer software,14.20,0.00,14.20
Children and Young Peoples Services,Head of Early Help Inclusion & Vulnerable Children.,079599,Psychological-HQ,Supplies and Services,312009,Newspapers books and periodicals E312,11-Jan-2021,000007398143604,COLLEEN BECK GUMROAD,5192,Newspapers books and periodicals,0.49,0.00,0.49
"Regeneration, Economy and Growth",Development and Housing,030771,Durham Advance Flexible Fund,Supplies and Services,384700,Miscellaneous Expenses,11-Jan-2021,000007398143762,Blueline Group B530197,4121,Miscellaneous grants,17.00,0.00,17.00
"Regeneration, Economy and Growth",Business Durham CL0850,030689,Inward Investment and Aftercare,Supplies and Services,336005,Advertising E336,11-Jan-2021,000007402147936,LINKEDIN-601 8293933,7311,Advertising other than for staff,80.47,0.00,80.47
Children and Young Peoples Services,Head of Early Help Inclusion & Vulnerable Children.,071489,Winter Family Fund,Supplies and Services,364301,Grants to Voluntary Organisations,11-Jan-2021,000007402147970,ASDA GEORGE COM LEEDS,5411,Hardship,34.95,0.00,34.95
Children and Young Peoples Services,Head of Education and Skills,054640,Durham Learning Resources 054640,Supplies and Services,384999,Miscellaneous Expenses,11-Jan-2021,000007402148004,Amazon.co.uk MJ0MT5R54,5969,Other expenses,45.90,0.00,45.90
"Regeneration, Economy and Growth",Development and Housing,031576,B& B - Temp Accom,Supplies and Services,364320,Grants to Voluntary Organisations,11-Jan-2021,000007402148014,TRAVELODGE,3615,Accommodation assistance,140.71,0.00,140.71
"Regeneration, Economy and Growth",Development and Housing,031576,B& B - Temp Accom,Supplies and Services,364320,Grants to Voluntary Organisations,11-Jan-2021,000007402148022,THE HONEST LAWYER,7011,Accommodation assistance,224.85,0.00,224.85
"Regeneration, Economy and Growth",Development and Housing,031576,B& B - Temp Accom,Supplies and Services,364320,Grants to Voluntary Organisations,11-Jan-2021,000007402148030,THE HONEST LAWYER,7011,Accommodation assistance,224.85,0.00,224.85
Children and Young Peoples Services,Head of Childrens Social Care,085501,Child Care Cases Legal Expenses,Supplies and Services,304403,Equipment and Materials,11-Jan-2021,000007402148060,CITY OF NEWCASTLE INTE,9399,Other consumables,11.00,0.00,11.00
Children and Young Peoples Services,Head of Education and Skills,075021,Youth Employment Initiative,Supplies and Services,364301,Grants to Voluntary Organisations,11-Jan-2021,000007402148072,GO NORTH EAST LIMITED,4131,Hardship,4.50,0.00,4.50
"Regeneration, Economy and Growth",Culture Sport and Tourism,054731,Killhope Lead Mining Centre,Supplies and Services,304259,Equipment and Materials,11-Jan-2021,000007402148126,AMZ Amazon Business UK,5969,Equipment-purchase and rental,-239.92,-39.98,-199.94
Children and Young Peoples Services,Head of Childrens Social Care,085342,16 Hickstead Rise (previously 9 Cedar Ave),Supplies and Services,324117,Provisions E324,11-Jan-2021,000007402148134,TESCO STORES 2916,5411,Catering costs - provisions,8.07,0.00,8.07
"Regeneration, Economy and Growth",Development and Housing,030776,LINKCD Flexible Fund,Supplies and Services,304259,Equipment and Materials,11-Jan-2021,000007402148292,GEN REGISTER OFFICE,9399,Equipment-purchase and rental,14.00,0.00,14.00
Children and Young Peoples Services,Head of Early Help Inclusion & Vulnerable Children.,071440,Barnard Castle One Point Hub,Supplies and Services,304259,Equipment and Materials,11-Jan-2021,000007402148320,AMZNMktplace,5999,Equipment-purchase and rental,22.99,3.83,19.16
Children and Young Peoples Services,Head of Childrens Social Care,085332,Middlestone Moor CU,Supplies and Services,304403,Equipment and Materials,11-Jan-2021,000007402148342,AMZNMktplace,5999,Other consumables,35.76,5.96,29.80
Children and Young Peoples Services,Head of Childrens Social Care,085332,Middlestone Moor CU,Supplies and Services,304403,Equipment and Materials,11-Jan-2021,000007402148342 - 1,AMZNMktplace,5999,Other consumables,0.04,,0.04
Children and Young Peoples Services,Head of Childrens Social Care,085332,Middlestone Moor CU,Supplies and Services,304403,Equipment and Materials,11-Jan-2021,000007402148348,AMZNMKTPLACE AMAZON.CO,5999,Other consumables,52.90,8.82,44.08
"Regeneration, Economy and Growth",Development and Housing,031576,B& B - Temp Accom,Supplies and Services,364320,Grants to Voluntary Organisations,11-Jan-2021,000007402148434,THE HONEST LAWYER,7011,Accommodation assistance,308.00,0.00,308.00
Neighbourhoods and Climate Change,Environmental Services,010900,Fleet - Meadowfield Fleet,Transport,215013,Running Costs of Vehicles,11-Jan-2021,000007402148506,DVLA VEHICLE TAX,9311,Vehicle Excise Duty (VED),267.50,0.00,267.50
Neighbourhoods and Climate Change,Environmental Services,010900,Fleet - Meadowfield Fleet,Transport,215013,Running Costs of Vehicles,11-Jan-2021,000007402148514,DVLA VEHICLE TAX,9311,Vehicle Excise Duty (VED),267.50,0.00,267.50
Neighbourhoods and Climate Change,Environmental Services,010900,Fleet - Meadowfield Fleet,Transport,215013,Running Costs of Vehicles,11-Jan-2021,000007402148520,DVLA VEHICLE TAX,9311,Vehicle Excise Duty (VED),267.50,0.00,267.50
Neighbourhoods and Climate Change,Environmental Services,010900,Fleet - Meadowfield Fleet,Transport,215013,Running Costs of Vehicles,11-Jan-2021,000007402148528,DVLA VEHICLE TAX,9311,Vehicle Excise Duty (VED),302.50,0.00,302.50
Neighbourhoods and Climate Change,Environmental Services,010551,Fleet - Chilton Fleet,Transport,215013,Running Costs of Vehicles,11-Jan-2021,000007402148536,DVLA VEHICLE TAX,9311,Vehicle Excise Duty (VED),267.50,0.00,267.50
Neighbourhoods and Climate Change,Environmental Services,010900,Fleet - Meadowfield Fleet,Transport,215013,Running Costs of Vehicles,11-Jan-2021,000007402148540,DVLA VEHICLE TAX,9311,Vehicle Excise Duty (VED),267.50,0.00,267.50
Neighbourhoods and Climate Change,Environmental Services,010900,Fleet - Meadowfield Fleet,Transport,215013,Running Costs of Vehicles,11-Jan-2021,000007402148548,DVLA VEHICLE TAX,9311,Vehicle Excise Duty (VED),267.50,0.00,267.50
Neighbourhoods and Climate Change,Environmental Services,010561,Fleet - Morrison Busty Fleet,Transport,215013,Running Costs of Vehicles,11-Jan-2021,000007402148556,DVLA VEHICLE TAX,9311,Vehicle Excise Duty (VED),267.50,0.00,267.50
Neighbourhoods and Climate Change,Environmental Services,010900,Fleet - Meadowfield Fleet,Transport,215013,Running Costs of Vehicles,11-Jan-2021,000007402148562,DVLA VEHICLE TAX,9311,Vehicle Excise Duty (VED),267.50,0.00,267.50
Neighbourhoods and Climate Change,Environmental Services,010900,Fleet - Meadowfield Fleet,Transport,215013,Running Costs of Vehicles,11-Jan-2021,000007402148568,DVLA VEHICLE TAX,9311,Vehicle Excise Duty (VED),267.50,0.00,267.50
Neighbourhoods and Climate Change,Environmental Services,010551,Fleet - Chilton Fleet,Transport,215013,Running Costs of Vehicles,11-Jan-2021,000007402148576,DVLA VEHICLE TAX,9311,Vehicle Excise Duty (VED),267.50,0.00,267.50
Neighbourhoods and Climate Change,Environmental Services,010551,Fleet - Chilton Fleet,Transport,215013,Running Costs of Vehicles,11-Jan-2021,000007402148586,DVLA VEHICLE TAX,9311,Vehicle Excise Duty (VED),267.50,0.00,267.50
Neighbourhoods and Climate Change,Environmental Services,010900,Fleet - Meadowfield Fleet,Transport,215013,Running Costs of Vehicles,11-Jan-2021,000007402148596,DVLA VEHICLE TAX,9311,Vehicle Excise Duty (VED),267.50,0.00,267.50
Neighbourhoods and Climate Change,Environmental Services,010900,Fleet - Meadowfield Fleet,Transport,215013,Running Costs of Vehicles,11-Jan-2021,000007402148604,DVLA VEHICLE TAX,9311,Vehicle Excise Duty (VED),267.50,0.00,267.50
Neighbourhoods and Climate Change,Environmental Services,010900,Fleet - Meadowfield Fleet,Transport,215013,Running Costs of Vehicles,11-Jan-2021,000007402148608,DVLA VEHICLE TAX,9311,Vehicle Excise Duty (VED),267.50,0.00,267.50
Neighbourhoods and Climate Change,Environmental Services,010900,Fleet - Meadowfield Fleet,Transport,215013,Running Costs of Vehicles,11-Jan-2021,000007402148616,DVLA VEHICLE TAX,9311,Vehicle Excise Duty (VED),267.50,0.00,267.50
Neighbourhoods and Climate Change,Environmental Services,010900,Fleet - Meadowfield Fleet,Transport,215013,Running Costs of Vehicles,11-Jan-2021,000007402148622,DVLA VEHICLE TAX,9311,Vehicle Excise Duty (VED),267.50,0.00,267.50
Neighbourhoods and Climate Change,Environmental Services,010900,Fleet - Meadowfield Fleet,Transport,215013,Running Costs of Vehicles,11-Jan-2021,000007402148628,DVLA VEHICLE TAX,9311,Vehicle Excise Duty (VED),267.50,0.00,267.50
Neighbourhoods and Climate Change,Environmental Services,010900,Fleet - Meadowfield Fleet,Transport,215013,Running Costs of Vehicles,11-Jan-2021,000007402148634,DVLA VEHICLE TAX,9311,Vehicle Excise Duty (VED),267.50,0.00,267.50
Neighbourhoods and Climate Change,Environmental Services,010900,Fleet - Meadowfield Fleet,Transport,215013,Running Costs of Vehicles,11-Jan-2021,000007402148640,DVLA VEHICLE TAX,9311,Vehicle Excise Duty (VED),267.50,0.00,267.50
Neighbourhoods and Climate Change,Environmental Services,010551,Fleet - Chilton Fleet,Transport,215013,Running Costs of Vehicles,11-Jan-2021,000007402148644,DVLA VEHICLE TAX,9311,Vehicle Excise Duty (VED),267.50,0.00,267.50
Neighbourhoods and Climate Change,Environmental Services,010864,Fleet - Hackworth Road Fleet,Transport,215013,Running Costs of Vehicles,11-Jan-2021,000007402148652,DVLA VEHICLE TAX,9311,Vehicle Excise Duty (VED),267.50,0.00,267.50
Neighbourhoods and Climate Change,Environmental Services,010900,Fleet - Meadowfield Fleet,Transport,215013,Running Costs of Vehicles,11-Jan-2021,000007402148656,DVLA VEHICLE TAX,9311,Vehicle Excise Duty (VED),267.50,0.00,267.50
Neighbourhoods and Climate Change,Environmental Services,010561,Fleet - Morrison Busty Fleet,Transport,215013,Running Costs of Vehicles,11-Jan-2021,000007402148662,DVLA VEHICLE TAX,9311,Vehicle Excise Duty (VED),267.50,0.00,267.50
Neighbourhoods and Climate Change,Environmental Services,010900,Fleet - Meadowfield Fleet,Transport,215013,Running Costs of Vehicles,11-Jan-2021,000007402148668,DVLA VEHICLE TAX,9311,Vehicle Excise Duty (VED),267.50,0.00,267.50
Neighbourhoods and Climate Change,Environmental Services,010900,Fleet - Meadowfield Fleet,Transport,215013,Running Costs of Vehicles,11-Jan-2021,000007402148676,DVLA VEHICLE TAX,9311,Vehicle Excise Duty (VED),267.50,0.00,267.50
Neighbourhoods and Climate Change,Environmental Services,010900,Fleet - Meadowfield Fleet,Transport,215013,Running Costs of Vehicles,11-Jan-2021,000007402148680,DVLA VEHICLE TAX,9311,Vehicle Excise Duty (VED),267.50,0.00,267.50
Neighbourhoods and Climate Change,Environmental Services,010900,Fleet - Meadowfield Fleet,Transport,215013,Running Costs of Vehicles,11-Jan-2021,000007402148686,DVLA VEHICLE TAX,9311,Vehicle Excise Duty (VED),267.50,0.00,267.50
Neighbourhoods and Climate Change,Environmental Services,010561,Fleet - Morrison Busty Fleet,Transport,215013,Running Costs of Vehicles,11-Jan-2021,000007402148690,DVLA VEHICLE TAX,9311,Vehicle Excise Duty (VED),267.50,0.00,267.50
Neighbourhoods and Climate Change,Environmental Services,010900,Fleet - Meadowfield Fleet,Transport,215013,Running Costs of Vehicles,11-Jan-2021,000007402148700,DVLA VEHICLE TAX,9311,Vehicle Excise Duty (VED),267.50,0.00,267.50
Neighbourhoods and Climate Change,Environmental Services,010900,Fleet - Meadowfield Fleet,Transport,215013,Running Costs of Vehicles,11-Jan-2021,000007402148704,DVLA VEHICLE TAX,9311,Vehicle Excise Duty (VED),267.50,0.00,267.50
Neighbourhoods and Climate Change,Environmental Services,010900,Fleet - Meadowfield Fleet,Transport,215013,Running Costs of Vehicles,11-Jan-2021,000007402148710,DVLA VEHICLE TAX,9311,Vehicle Excise Duty (VED),267.50,0.00,267.50
Neighbourhoods and Climate Change,Environmental Services,010900,Fleet - Meadowfield Fleet,Transport,215013,Running Costs of Vehicles,11-Jan-2021,000007402148714,DVLA VEHICLE TAX,9311,Vehicle Excise Duty (VED),267.50,0.00,267.50
Neighbourhoods and Climate Change,Environmental Services,010561,Fleet - Morrison Busty Fleet,Transport,215013,Running Costs of Vehicles,11-Jan-2021,000007402148722,DVLA VEHICLE TAX,9311,Vehicle Excise Duty (VED),267.50,0.00,267.50
Neighbourhoods and Climate Change,Environmental Services,010561,Fleet - Morrison Busty Fleet,Transport,215013,Running Costs of Vehicles,11-Jan-2021,000007402148730,DVLA VEHICLE TAX,9311,Vehicle Excise Duty (VED),267.50,0.00,267.50
Neighbourhoods and Climate Change,Environmental Services,010900,Fleet - Meadowfield Fleet,Transport,215013,Running Costs of Vehicles,11-Jan-2021,000007402148734,DVLA VEHICLE TAX,9311,Vehicle Excise Duty (VED),267.50,0.00,267.50
Neighbourhoods and Climate Change,Environmental Services,010864,Fleet - Hackworth Road Fleet,Transport,215013,Running Costs of Vehicles,11-Jan-2021,000007402148742,DVLA VEHICLE TAX,9311,Vehicle Excise Duty (VED),267.50,0.00,267.50
Neighbourhoods and Climate Change,Environmental Services,010561,Fleet - Morrison Busty Fleet,Transport,215013,Running Costs of Vehicles,11-Jan-2021,000007402148748,DVLA VEHICLE TAX,9311,Vehicle Excise Duty (VED),267.50,0.00,267.50
Neighbourhoods and Climate Change,Environmental Services,010900,Fleet - Meadowfield Fleet,Transport,215013,Running Costs of Vehicles,11-Jan-2021,000007402148752,DVLA VEHICLE TAX,9311,Vehicle Excise Duty (VED),267.50,0.00,267.50
Neighbourhoods and Climate Change,Environmental Services,010900,Fleet - Meadowfield Fleet,Transport,215013,Running Costs of Vehicles,11-Jan-2021,000007402148760,DVLA VEHICLE TAX,9311,Vehicle Excise Duty (VED),267.50,0.00,267.50
Neighbourhoods and Climate Change,Environmental Services,010561,Fleet - Morrison Busty Fleet,Transport,215013,Running Costs of Vehicles,11-Jan-2021,000007402148766,DVLA VEHICLE TAX,9311,Vehicle Excise Duty (VED),267.50,0.00,267.50
Neighbourhoods and Climate Change,Environmental Services,010561,Fleet - Morrison Busty Fleet,Transport,215013,Running Costs of Vehicles,11-Jan-2021,000007402148774,DVLA VEHICLE TAX,9311,Vehicle Excise Duty (VED),267.50,0.00,267.50
Neighbourhoods and Climate Change,Environmental Services,010900,Fleet - Meadowfield Fleet,Transport,215013,Running Costs of Vehicles,11-Jan-2021,000007402148780,DVLA VEHICLE TAX,9311,Vehicle Excise Duty (VED),167.50,0.00,167.50
Neighbourhoods and Climate Change,Environmental Services,010900,Fleet - Meadowfield Fleet,Transport,215013,Running Costs of Vehicles,11-Jan-2021,000007402148786,DVLA VEHICLE TAX,9311,Vehicle Excise Duty (VED),267.50,0.00,267.50
Neighbourhoods and Climate Change,Environmental Services,010864,Fleet - Hackworth Road Fleet,Transport,215013,Running Costs of Vehicles,11-Jan-2021,000007402148792,DVLA VEHICLE TAX,9311,Vehicle Excise Duty (VED),167.50,0.00,167.50
Neighbourhoods and Climate Change,Environmental Services,010900,Fleet - Meadowfield Fleet,Transport,215013,Running Costs of Vehicles,11-Jan-2021,000007402148800,DVLA VEHICLE TAX,9311,Vehicle Excise Duty (VED),267.50,0.00,267.50
Neighbourhoods and Climate Change,Environmental Services,010561,Fleet - Morrison Busty Fleet,Transport,215013,Running Costs of Vehicles,11-Jan-2021,000007402148806,DVLA VEHICLE TAX,9311,Vehicle Excise Duty (VED),267.50,0.00,267.50
Neighbourhoods and Climate Change,Environmental Services,010900,Fleet - Meadowfield Fleet,Transport,215013,Running Costs of Vehicles,11-Jan-2021,000007402148810,DVLA VEHICLE TAX,9311,Vehicle Excise Duty (VED),267.50,0.00,267.50
Neighbourhoods and Climate Change,Environmental Services,010900,Fleet - Meadowfield Fleet,Transport,215013,Running Costs of Vehicles,11-Jan-2021,000007402148816,DVLA VEHICLE TAX,9311,Vehicle Excise Duty (VED),167.50,0.00,167.50
Neighbourhoods and Climate Change,Environmental Services,010864,Fleet - Hackworth Road Fleet,Transport,215013,Running Costs of Vehicles,11-Jan-2021,000007402148822,DVLA VEHICLE TAX,9311,Vehicle Excise Duty (VED),267.50,0.00,267.50
Resources BK0010,Digital and Customer Services,070204,School Services - Systems,Supplies and Services,372009,Subscriptions E372,11-Jan-2021,000007402148858,NOMINET UK,7392,Subscriptions 372009,9.36,1.56,7.80
Resources BK0010,Digital and Customer Services,070204,School Services - Systems,Supplies and Services,372009,Subscriptions E372,11-Jan-2021,000007402148866,NOMINET UK,7392,Subscriptions 372009,23.40,3.90,19.50
Children and Young Peoples Services,Head of Early Help Inclusion & Vulnerable Children.,088109,Spennymoor & Shildon 0-19 Community Family Hub,Supplies and Services,384302,Miscellaneous Expenses,11-Jan-2021,000007402148872,HOME BARGAINS,5251,Activity expenses,14.75,0.00,14.75
Children and Young Peoples Services,Head of Early Help Inclusion & Vulnerable Children.,088109,Spennymoor & Shildon 0-19 Community Family Hub,Supplies and Services,384302,Miscellaneous Expenses,11-Jan-2021,000007402148882,TESCO STORES 6329,5411,Activity expenses,39.30,0.00,39.30
Children and Young Peoples Services,Head of Education and Skills,071732,Dean Bank Childcare,Supplies and Services,324117,Provisions E324,11-Jan-2021,000007402148894,ASDA GROCERIES ONLINE,5411,Catering costs - provisions,17.13,0.00,17.13
Children and Young Peoples Services,Head of Education and Skills,071732,Dean Bank Childcare,Supplies and Services,324117,Provisions E324,11-Jan-2021,000007402148904,ASDA GROCERIES ONLINE,5411,Catering costs - provisions,58.99,0.00,58.99
Children and Young Peoples Services,Head of Education and Skills,071732,Dean Bank Childcare,Supplies and Services,324117,Provisions E324,11-Jan-2021,000007402148912,ASDA GROCERIES ONLINE,5411,Catering costs - provisions,16.25,0.00,16.25
Children and Young Peoples Services,Head of Education and Skills,071732,Dean Bank Childcare,Supplies and Services,324117,Provisions E324,11-Jan-2021,000007402148918,ASDA GROCERIES ONLINE,5411,Catering costs - provisions,54.30,0.00,54.30
Children and Young Peoples Services,Head of Education and Skills,071732,Dean Bank Childcare,Supplies and Services,324117,Provisions E324,11-Jan-2021,000007402148926,ASDA GROCERIES ONLINE,5411,Catering costs - provisions,-0.51,0.00,-0.51
"Regeneration, Economy and Growth",Development and Housing,030771,Durham Advance Flexible Fund,Supplies and Services,304259,Equipment and Materials,11-Jan-2021,000007402149012,GEN REGISTER OFFICE,9399,Equipment-purchase and rental,38.00,0.00,38.00
"Regeneration, Economy and Growth",Development and Housing,031623,Rough,Transport,235057,Public Transport,11-Jan-2021,000007402149098,BLUE LINE TAXIS,4121,Staff travelling,20.70,0.00,20.70
"Regeneration, Economy and Growth",Development and Housing,031623,Rough,Supplies and Services,352001,Conference Expenses,11-Jan-2021,000007402149106,AYCLIFFE BIZ,7011,Conferencesseminars fees etc,152.00,0.00,152.00
"Regeneration, Economy and Growth",Development and Housing,031623,Rough,Supplies and Services,352001,Conference Expenses,11-Jan-2021,000007402149112,AYCLIFFE BIZ,7011,Conferencesseminars fees etc,152.00,0.00,152.00
"Regeneration, Economy and Growth",Development and Housing,031623,Rough,Supplies and Services,352001,Conference Expenses,11-Jan-2021,000007402149114,THE HONEST LAWYER,7011,Conferencesseminars fees etc,74.95,0.00,74.95
"Regeneration, Economy and Growth",Development and Housing,031623,Rough,Supplies and Services,352001,Conference Expenses,11-Jan-2021,000007402149120,THE HONEST LAWYER,7011,Conferencesseminars fees etc,74.95,0.00,74.95
"Regeneration, Economy and Growth",Development and Housing,031623,Rough,Supplies and Services,352001,Conference Expenses,11-Jan-2021,000007402149126,THE HONEST LAWYER,7011,Conferencesseminars fees etc,452.00,0.00,452.00
"Regeneration, Economy and Growth",Development and Housing,031623,Rough,Supplies and Services,352001,Conference Expenses,11-Jan-2021,000007402149130,THE HONEST LAWYER,7011,Conferencesseminars fees etc,452.00,0.00,452.00
"Regeneration, Economy and Growth",Development and Housing,031623,Rough,Supplies and Services,304999,Equipment and Materials,11-Jan-2021,000007402149136,DUNCAN BELTON TA K,6513,Misc equipment tools and materials,500.00,0.00,500.00
Children and Young Peoples Services,Head of Early Help Inclusion & Vulnerable Children.,085954,Walworth,Supplies and Services,304403,Equipment and Materials,11-Jan-2021,000007402149158,AMZNMktplace,5999,Other consumables,2.89,0.00,2.89
Neighbourhoods and Climate Change,Environmental Services,010367,C&G - South Grounds Maintenance,Supplies and Services,304999,Equipment and Materials,11-Jan-2021,000007402149178,GUSTHARTS,5072,Misc equipment tools and materials,255.00,0.00,255.00
Neighbourhoods and Climate Change,Environmental Services,011060,C&G - Hardwick Park Catering,Supplies and Services,324117,Provisions E324,11-Jan-2021,000007402149200,FREEMAN CATERING BUTCH,5422,Catering costs - provisions,64.04,0.00,64.04
Children and Young Peoples Services,Head of Childrens Social Care,085342,16 Hickstead Rise (previously 9 Cedar Ave),Supplies and Services,304403,Equipment and Materials,11-Jan-2021,000007402149418,AMZNMktplace,5999,Other consumables,33.45,0.00,33.45
Children and Young Peoples Services,Head of Childrens Social Care,085352,Tow Law CU,Supplies and Services,324117,Provisions E324,11-Jan-2021,000007402149434,SAINSBURYS 0776,5411,Catering costs - provisions,94.47,0.00,94.47
"Regeneration, Economy and Growth",Corporate Property and Land,030691,Catering - Durham Dales Centre,Supplies and Services,324117,Provisions E324,11-Jan-2021,000007402149448,JR HOLLAND FOODSERVICE,5499,Catering costs - provisions,29.71,0.00,29.71
Adult and Health Services,Head of Adults,055643,Hawthorn House LD Respite Unit,Supplies and Services,324117,Provisions E324,11-Jan-2021,000007402149482,FREEMAN CATERING BUTCH,5422,Catering costs - provisions,29.02,0.00,29.02
Adult and Health Services,Head of Adults,055643,Hawthorn House LD Respite Unit,Supplies and Services,324117,Provisions E324,11-Jan-2021,000007402149490,JR HOLLAND FOODSERVICE,5499,Catering costs - provisions,15.98,0.00,15.98
Neighbourhoods and Climate Change,Environmental Services,010301,C&G - North Grounds Maintenance,Supplies and Services,304999,Equipment and Materials,11-Jan-2021,000007402149512,J G PAXTON SONS,5072,Misc equipment tools and materials,39.89,0.00,39.89
Children and Young Peoples Services,Head of Childrens Social Care,085342,16 Hickstead Rise (previously 9 Cedar Ave),Supplies and Services,348037,Subsistence E348,11-Jan-2021,000007402149536,COSTA COFFEE 43039235,5814,Subsistence,7.45,0.00,7.45
Children and Young Peoples Services,Head of Childrens Social Care,085342,16 Hickstead Rise (previously 9 Cedar Ave),Supplies and Services,324117,Provisions E324,11-Jan-2021,000007402149542,TESCO STORES 2916,5411,Catering costs - provisions,18.70,0.00,18.70
Children and Young Peoples Services,Head of Childrens Social Care,085334,West Rainton Satelite Home,Supplies and Services,324117,Provisions E324,11-Jan-2021,000007402149558,TESCO STORES 2371,5411,Catering costs - provisions,17.80,0.00,17.80
Children and Young Peoples Services,Head of Childrens Social Care,085334,West Rainton Satelite Home,Supplies and Services,324117,Provisions E324,11-Jan-2021,000007402149566,TESCO STORES 2371,5411,Catering costs - provisions,76.52,0.00,76.52
Children and Young Peoples Services,Head of Childrens Social Care,085334,West Rainton Satelite Home,Supplies and Services,328041,Clothing uniforms and laundry E328,11-Jan-2021,000007402149570,The Range,5311,Clothing uniforms and laundry,5.99,0.00,5.99
Resources BK0010,Corporate Finance & Commercial Services,065101,Corporate Finance Management,Supplies and Services,384999,Miscellaneous Expenses,11-Jan-2021,000007402149580,WRIGHTS STEMS,5992,Other expenses,44.00,0.00,44.00
Children and Young Peoples Services,Head of Early Help Inclusion & Vulnerable Children.,079033,SEND LOOKED AFTER AND VULNERABLE MGT,Supplies and Services,312009,Newspapers books and periodicals E312,11-Jan-2021,000007402149588,AMZN Mktp UK MJ1FF0W74,5942,Newspapers books and periodicals,15.36,2.56,12.80
Resources BK0010,Business Support,065503,Business Support - Spectrum,Supplies and Services,328041,Clothing uniforms and laundry E328,11-Jan-2021,000007402149598,Foot Locker Europe.com,5661,Clothing uniforms and laundry,144.99,0.00,144.99
Resources BK0010,Business Support,065503,Business Support - Spectrum,Supplies and Services,338048,Services,11-Jan-2021,000007402149604,HMCOURTS-SERVICE.G,9222,Court costs 338048,17.00,0.00,17.00
Neighbourhoods and Climate Change,Environmental Services,010301,C&G - North Grounds Maintenance,Supplies and Services,304999,Equipment and Materials,11-Jan-2021,000007402149616,GUSTHARTS,5072,Misc equipment tools and materials,246.00,0.00,246.00
Children and Young Peoples Services,Head of Childrens Social Care,085351,Framwellgate Moor CU,Supplies and Services,304999,Equipment and Materials,11-Jan-2021,000007402149656,Microsoft Xbox,5816,Misc equipment tools and materials,30.00,0.00,30.00
Children and Young Peoples Services,Head of Education and Skills,071802,Louisa Cent Nursery,Supplies and Services,324117,Provisions E324,11-Jan-2021,000007402149664,ALDI 11 774,5411,Catering costs - provisions,16.23,0.00,16.23
Resources BK0010,Business Support,065503,Business Support - Spectrum,Transport,235057,Public Transport,11-Jan-2021,000007402149678,GO NORTH EAST LIMITED,4131,Staff travelling,20.00,0.00,20.00
Children and Young Peoples Services,Head of Childrens Social Care,085332,Middlestone Moor CU,Supplies and Services,308011,Furniture,11-Jan-2021,000007402149700,WF WAYFAIR 2321373644,5712,Furniture repair and replacement,88.99,0.00,88.99
Children and Young Peoples Services,Head of Childrens Social Care,085332,Middlestone Moor CU,Supplies and Services,308011,Furniture,11-Jan-2021,000007402149706,WF WAYFAIR 3496629054,5712,Furniture repair and replacement,28.97,0.00,28.97
Children and Young Peoples Services,Head of Childrens Social Care,085333,Coxhoe Satelite Home,Supplies and Services,328041,Clothing uniforms and laundry E328,11-Jan-2021,000007402149794,JustFab UK Limited,5631,Clothing uniforms and laundry,16.95,0.00,16.95
Children and Young Peoples Services,Head of Childrens Social Care,085331,New Lea Childrens Home,Premises,120037,Energy Costs,11-Jan-2021,000007402149816,SCOTTISHPOWER,4900,Other fuels,333.37,0.00,333.37
"Regeneration, Economy and Growth",Corporate Property and Land,021235,Catering - Wharton Park,Supplies and Services,324117,Provisions E324,11-Jan-2021,000007402149840,JR HOLLAND FOODSERVICE,5499,Catering costs - provisions,13.57,0.00,13.57
Children and Young Peoples Services,Head of Childrens Social Care,085341,High Etherley Satelite Home,Supplies and Services,324117,Provisions E324,11-Jan-2021,000007402149846,HERON FOODS LTD,5499,Catering costs - provisions,13.09,0.00,13.09
Children and Young Peoples Services,Head of Childrens Social Care,085341,High Etherley Satelite Home,Supplies and Services,324117,Provisions E324,11-Jan-2021,000007402149852,HERON FOODS LTD,5499,Catering costs - provisions,2.00,0.00,2.00
Children and Young Peoples Services,Head of Childrens Social Care,085341,High Etherley Satelite Home,Supplies and Services,348037,Subsistence E348,11-Jan-2021,000007402149860,TINDALE CHIPPY,5812,Subsistence,19.80,0.00,19.80
Children and Young Peoples Services,Head of Childrens Social Care,085341,High Etherley Satelite Home,Supplies and Services,304999,Equipment and Materials,11-Jan-2021,000007402149866,SPECSAVERS 0035700BISA,8043,Misc equipment tools and materials,49.70,0.00,49.70
Children and Young Peoples Services,Head of Early Help Inclusion & Vulnerable Children.,071569,Woodhouse Close Childrens Centre,Supplies and Services,332047,Printing Stationery and Gen Off Exps,11-Jan-2021,000007404352520,AMZNMKTPLACE AMAZON.CO,5999,Stationery,35.40,5.90,29.50
Children and Young Peoples Services,Head of Early Help Inclusion & Vulnerable Children.,071569,Woodhouse Close Childrens Centre,Supplies and Services,332047,Printing Stationery and Gen Off Exps,11-Jan-2021,000007404352520 - 1,AMZNMKTPLACE AMAZON.CO,5999,Stationery,0.05,,0.05
Children and Young Peoples Services,Head of Childrens Social Care,085513,Supporting Family Time Team,Supplies and Services,304259,Equipment and Materials,11-Jan-2021,000007404352528,AMZNMKTPLACE AMAZON.CO,5999,Equipment-purchase and rental,19.88,3.31,16.57
Adult and Health Services,Head of Adults,055643,Hawthorn House LD Respite Unit,Supplies and Services,304403,Equipment and Materials,11-Jan-2021,000007404353548,AMZNMKTPLACE AMAZON.CO,5999,Other consumables,24.27,0.00,24.27
"Regeneration, Economy and Growth",Corporate Property and Land,021235,Catering - Wharton Park,Supplies and Services,324117,Provisions E324,11-Jan-2021,000007404354194,BATLEYS PERTH,5300,Catering costs - provisions,223.68,37.28,186.40
"Regeneration, Economy and Growth",Corporate Property and Land,021235,Catering - Wharton Park,Supplies and Services,324117,Provisions E324,11-Jan-2021,000007404354194 - 1,BATLEYS PERTH,5300,Catering costs - provisions,10.89,,10.89
"Regeneration, Economy and Growth",Development and Housing,031623,Rough,Supplies and Services,348037,Subsistence E348,11-Jan-2021,000007409719348,CROXDALE INN,5812,Subsistence,252.00,0.00,252.00
"Regeneration, Economy and Growth",Development and Housing,031576,B& B - Temp Accom,Supplies and Services,364320,Grants to Voluntary Organisations,11-Jan-2021,000007409719526,CROXDALE INN,5812,Accommodation assistance,198.00,0.00,198.00
"Regeneration, Economy and Growth",Business Durham CL0850,030689,Inward Investment and Aftercare,Supplies and Services,342222,Computers and Communications,12-Jan-2021,000007404352116,FASTHOSTS INTERNET,4816,Comp hardware purch-network servers,30.00,0.00,30.00
Children and Young Peoples Services,Head of Childrens Social Care,085611,Families First Stanley,Supplies and Services,364301,Grants to Voluntary Organisations,12-Jan-2021,000007404352154,Amazon.co.uk MV9500C44,5969,Hardship,39.99,6.67,33.32
Children and Young Peoples Services,Head of Education and Skills,071801,Selby Cottage Childcare Centre,Supplies and Services,324117,Provisions E324,12-Jan-2021,000007404352170,JR HOLLAND FOODSERVICE,5499,Catering costs - provisions,263.90,0.00,263.90
Adult and Health Services,Head of Adults,053815,The Orchards Extra Care,Supplies and Services,304403,Equipment and Materials,12-Jan-2021,000007404352186,AMZNMktplace,5999,Other consumables,30.98,5.17,25.81
Resources BK0010,Digital and Customer Services,065487,ICT Telephony Recharges,Supplies and Services,344033,Telephones,12-Jan-2021,000007404352200,AMZNMktplace,5999,Telephones general-all costs,209.00,34.83,174.17
Adult and Health Services,Head of Adults,053810,Southfield Lodge Extra Care,Supplies and Services,304403,Equipment and Materials,12-Jan-2021,000007404352208,AMZNMktplace,5999,Other consumables,209.00,34.83,174.17
Children and Young Peoples Services,Head of Childrens Social Care,085332,Middlestone Moor CU,Supplies and Services,304999,Equipment and Materials,12-Jan-2021,000007404352364,www.groupon.co.uk,7278,Misc equipment tools and materials,10.49,0.00,10.49
Children and Young Peoples Services,Head of Early Help Inclusion & Vulnerable Children.,085952,Secure Education,Supplies and Services,304221,Equipment and Materials,12-Jan-2021,000007404352588,SCREWFIX DIRECT,5211,Direct materials,59.99,0.00,59.99
"Regeneration, Economy and Growth",Development and Housing,030772,CLLD South,Supplies and Services,304259,Equipment and Materials,12-Jan-2021,000007404352600,SECURITY INDUSTRY,7393,Equipment-purchase and rental,190.00,0.00,190.00
Neighbourhoods and Climate Change,Environmental Services,010561,Fleet - Morrison Busty Fleet,Transport,215013,Running Costs of Vehicles,12-Jan-2021,000007404352704,DVLA VEHICLE TAX,9311,Vehicle Excise Duty (VED),302.50,0.00,302.50
Neighbourhoods and Climate Change,Environmental Services,010561,Fleet - Morrison Busty Fleet,Transport,215013,Running Costs of Vehicles,12-Jan-2021,000007404352718,DVLA VEHICLE TAX,9311,Vehicle Excise Duty (VED),302.50,0.00,302.50
Neighbourhoods and Climate Change,Environmental Services,010561,Fleet - Morrison Busty Fleet,Transport,215013,Running Costs of Vehicles,12-Jan-2021,000007404352722,DVLA VEHICLE TAX,9311,Vehicle Excise Duty (VED),302.50,0.00,302.50
Neighbourhoods and Climate Change,Environmental Services,010864,Fleet - Hackworth Road Fleet,Transport,215013,Running Costs of Vehicles,12-Jan-2021,000007404352738,DVLA VEHICLE TAX,9311,Vehicle Excise Duty (VED),302.50,0.00,302.50
Neighbourhoods and Climate Change,Environmental Services,010900,Fleet - Meadowfield Fleet,Transport,215013,Running Costs of Vehicles,12-Jan-2021,000007404352746,DVLA VEHICLE TAX,9311,Vehicle Excise Duty (VED),302.50,0.00,302.50
Neighbourhoods and Climate Change,Environmental Services,010561,Fleet - Morrison Busty Fleet,Transport,215013,Running Costs of Vehicles,12-Jan-2021,000007404352754,DVLA VEHICLE TAX,9311,Vehicle Excise Duty (VED),302.50,0.00,302.50
Neighbourhoods and Climate Change,Environmental Services,010551,Fleet - Chilton Fleet,Transport,215013,Running Costs of Vehicles,12-Jan-2021,000007404352762,DVLA VEHICLE TAX,9311,Vehicle Excise Duty (VED),302.50,0.00,302.50
Neighbourhoods and Climate Change,Environmental Services,010561,Fleet - Morrison Busty Fleet,Transport,215013,Running Costs of Vehicles,12-Jan-2021,000007404352768,DVLA VEHICLE TAX,9311,Vehicle Excise Duty (VED),302.50,0.00,302.50
Neighbourhoods and Climate Change,Environmental Services,010864,Fleet - Hackworth Road Fleet,Transport,215013,Running Costs of Vehicles,12-Jan-2021,000007404352778,DVLA VEHICLE TAX,9311,Vehicle Excise Duty (VED),302.50,0.00,302.50
Neighbourhoods and Climate Change,Environmental Services,010561,Fleet - Morrison Busty Fleet,Transport,215013,Running Costs of Vehicles,12-Jan-2021,000007404352784,DVLA VEHICLE TAX,9311,Vehicle Excise Duty (VED),302.50,0.00,302.50
Neighbourhoods and Climate Change,Environmental Services,010551,Fleet - Chilton Fleet,Transport,215013,Running Costs of Vehicles,12-Jan-2021,000007404352794,DVLA VEHICLE TAX,9311,Vehicle Excise Duty (VED),302.50,0.00,302.50
Neighbourhoods and Climate Change,Environmental Services,010561,Fleet - Morrison Busty Fleet,Transport,215013,Running Costs of Vehicles,12-Jan-2021,000007404352804,DVLA VEHICLE TAX,9311,Vehicle Excise Duty (VED),302.50,0.00,302.50
Neighbourhoods and Climate Change,Environmental Services,010551,Fleet - Chilton Fleet,Transport,215013,Running Costs of Vehicles,12-Jan-2021,000007404352812,DVLA VEHICLE TAX,9311,Vehicle Excise Duty (VED),302.50,0.00,302.50
Neighbourhoods and Climate Change,Environmental Services,010551,Fleet - Chilton Fleet,Transport,215013,Running Costs of Vehicles,12-Jan-2021,000007404352816,DVLA VEHICLE TAX,9311,Vehicle Excise Duty (VED),302.50,0.00,302.50
Neighbourhoods and Climate Change,Environmental Services,010561,Fleet - Morrison Busty Fleet,Transport,215013,Running Costs of Vehicles,12-Jan-2021,000007404352824,DVLA VEHICLE TAX,9311,Vehicle Excise Duty (VED),302.50,0.00,302.50
Neighbourhoods and Climate Change,Environmental Services,010864,Fleet - Hackworth Road Fleet,Transport,215013,Running Costs of Vehicles,12-Jan-2021,000007404352830,DVLA VEHICLE TAX,9311,Vehicle Excise Duty (VED),302.50,0.00,302.50
Children and Young Peoples Services,Head of Education and Skills,071732,Dean Bank Childcare,Supplies and Services,304403,Equipment and Materials,12-Jan-2021,000007404352892,AMZNMktplace,5999,Other consumables,12.00,2.00,10.00
Children and Young Peoples Services,Head of Education and Skills,071732,Dean Bank Childcare,Supplies and Services,304403,Equipment and Materials,12-Jan-2021,000007404352906,AMZNMktplace,5999,Other consumables,13.18,2.20,10.98
Children and Young Peoples Services,Head of Education and Skills,071732,Dean Bank Childcare,Supplies and Services,304403,Equipment and Materials,12-Jan-2021,000007404352914,AMZNMktplace,5999,Other consumables,23.95,3.99,19.96
Children and Young Peoples Services,Head of Education and Skills,071732,Dean Bank Childcare,Supplies and Services,304403,Equipment and Materials,12-Jan-2021,000007404352920,AMZNMktplace,5999,Other consumables,12.00,2.00,10.00
Children and Young Peoples Services,Head of Education and Skills,071732,Dean Bank Childcare,Supplies and Services,304403,Equipment and Materials,12-Jan-2021,000007404352928,AMZNMktplace,5999,Other consumables,18.80,3.14,15.66
Children and Young Peoples Services,Head of Education and Skills,071732,Dean Bank Childcare,Supplies and Services,304403,Equipment and Materials,12-Jan-2021,000007404352932,AMZNMktplace,5999,Other consumables,49.39,8.24,41.15
Children and Young Peoples Services,Head of Education and Skills,071732,Dean Bank Childcare,Supplies and Services,304403,Equipment and Materials,12-Jan-2021,000007404352934,AMZNMktplace,5999,Other consumables,4.99,0.83,4.16
Children and Young Peoples Services,Head of Education and Skills,071732,Dean Bank Childcare,Supplies and Services,304403,Equipment and Materials,12-Jan-2021,000007404352944,AMZNMktplace,5999,Other consumables,28.20,4.71,23.49
Children and Young Peoples Services,Head of Education and Skills,071732,Dean Bank Childcare,Supplies and Services,304403,Equipment and Materials,12-Jan-2021,000007404352946,AMZNMktplace,5999,Other consumables,31.90,5.32,26.58
Children and Young Peoples Services,Head of Education and Skills,071732,Dean Bank Childcare,Supplies and Services,324117,Provisions E324,12-Jan-2021,000007404352954,CO-OP GROUP 010503,5411,Catering costs - provisions,12.54,0.00,12.54
Neighbourhoods and Climate Change,Environmental Services,011060,C&G - Hardwick Park Catering,Supplies and Services,304083,Equipment and Materials,12-Jan-2021,000007404352974,Amazon.co.uk MJ5CM2YN4,5969,Catering equipment,21.00,3.50,17.50
"Regeneration, Economy and Growth",Development and Housing,031500,Housing Solutions - Core Team,Supplies and Services,352001,Conference Expenses,12-Jan-2021,000007404352998,TOAST LETTINGS,7011,Conferencesseminars fees etc,420.00,0.00,420.00
"Regeneration, Economy and Growth",Development and Housing,031623,Rough,Supplies and Services,352001,Conference Expenses,12-Jan-2021,000007404353070,THE HONEST LAWYER,7011,Conferencesseminars fees etc,149.90,0.00,149.90
"Regeneration, Economy and Growth",Development and Housing,031623,Rough,Supplies and Services,352001,Conference Expenses,12-Jan-2021,000007404353078,THE HONEST LAWYER,7011,Conferencesseminars fees etc,149.90,0.00,149.90
"Regeneration, Economy and Growth",Development and Housing,031623,Rough,Supplies and Services,304999,Equipment and Materials,12-Jan-2021,000007404353088,DUNCAN BELTON TA K,6513,Misc equipment tools and materials,500.00,0.00,500.00
"Regeneration, Economy and Growth",Development and Housing,031623,Rough,Supplies and Services,352001,Conference Expenses,12-Jan-2021,000007404353096,HI NEWCASTLE WASHI,7011,Conferencesseminars fees etc,450.00,0.00,450.00
"Regeneration, Economy and Growth",Development and Housing,031623,Rough,Supplies and Services,352001,Conference Expenses,12-Jan-2021,000007404353100,HI NEWCASTLE WASHI,7011,Conferencesseminars fees etc,330.00,0.00,330.00
Children and Young Peoples Services,Head of Early Help Inclusion & Vulnerable Children.,088116,South Area - Teenage Parent Programme,Supplies and Services,384999,Miscellaneous Expenses,12-Jan-2021,000007404353106,Amazon.co.uk MJ7YG1Y04,5969,Other expenses,12.00,2.00,10.00
Children and Young Peoples Services,Head of Early Help Inclusion & Vulnerable Children.,088116,South Area - Teenage Parent Programme,Supplies and Services,384999,Miscellaneous Expenses,12-Jan-2021,000007404353106 - 1,Amazon.co.uk MJ7YG1Y04,5969,Other expenses,24.82,,24.82
Children and Young Peoples Services,Head of Early Help Inclusion & Vulnerable Children.,088107,Ferryhill & Newton Aycliffe 0-19 Community Family Hub,Supplies and Services,384999,Miscellaneous Expenses,12-Jan-2021,000007404353114,Amazon.co.uk MJ44X6Y54,5969,Other expenses,12.00,2.00,10.00
Children and Young Peoples Services,Head of Early Help Inclusion & Vulnerable Children.,088116,South Area - Teenage Parent Programme,Supplies and Services,384999,Miscellaneous Expenses,12-Jan-2021,000007404353114 - 1,Amazon.co.uk MJ44X6Y54,5969,Other expenses,24.82,,24.82
Children and Young Peoples Services,Head of Early Help Inclusion & Vulnerable Children.,071449,Ferryhill One Point Hub,Supplies and Services,304403,Equipment and Materials,12-Jan-2021,000007404353124,AMZNMktplace,5999,Other consumables,31.95,5.33,26.62
Children and Young Peoples Services,Head of Early Help Inclusion & Vulnerable Children.,071449,Ferryhill One Point Hub,Supplies and Services,304403,Equipment and Materials,12-Jan-2021,000007404353130,AMZNMktplace,5999,Other consumables,31.95,5.33,26.62
Children and Young Peoples Services,Head of Early Help Inclusion & Vulnerable Children.,088113,Seaham  0-19 Community Family Hub,Employees,040149,Recruitment Instruction and Training,12-Jan-2021,000007404353162,NE-AS.ORG.UK,8398,Training-all costs,30.00,0.00,30.00
Children and Young Peoples Services,Head of Early Help Inclusion & Vulnerable Children.,071489,Winter Family Fund,Supplies and Services,324117,Provisions E324,12-Jan-2021,000007404353170,WILKO.COM,5399,Catering costs - provisions,45.00,0.00,45.00
Neighbourhoods and Climate Change,Environmental Services,011060,C&G - Hardwick Park Catering,Supplies and Services,324117,Provisions E324,12-Jan-2021,000007404353186,JR HOLLAND FOODSERVICE,5499,Catering costs - provisions,24.86,0.00,24.86
"Regeneration, Economy and Growth",Development and Housing,031576,B& B - Temp Accom,Supplies and Services,364320,Grants to Voluntary Organisations,12-Jan-2021,000007404353250,TOAST LETTINGS,7011,Accommodation assistance,490.00,0.00,490.00
Children and Young Peoples Services,Head of Early Help Inclusion & Vulnerable Children.,088106,Ferryhill & N.Aycliffe 0-19 Targeted Family Support,Employees,040149,Recruitment Instruction and Training,12-Jan-2021,000007404353422,NE-AS.ORG.UK,8398,Training-all costs,15.00,0.00,15.00
Children and Young Peoples Services,Head of Early Help Inclusion & Vulnerable Children.,071489,Winter Family Fund,Supplies and Services,364301,Grants to Voluntary Organisations,12-Jan-2021,000007404353434,ASDA STORES,5411,Hardship,150.38,0.00,150.38
Children and Young Peoples Services,Head of Early Help Inclusion & Vulnerable Children.,088106,Ferryhill & N.Aycliffe 0-19 Targeted Family Support,Supplies and Services,304259,Equipment and Materials,12-Jan-2021,000007404353446,highstreetvouchers,8641,Equipment-purchase and rental,506.50,0.00,506.50
Children and Young Peoples Services,Head of Childrens Social Care,085341,High Etherley Satelite Home,Supplies and Services,324117,Provisions E324,12-Jan-2021,000007404353466,ASDA SUPERSTORE 4987,5411,Catering costs - provisions,11.96,0.00,11.96
Adult and Health Services,Head of Adults,055643,Hawthorn House LD Respite Unit,Supplies and Services,324117,Provisions E324,12-Jan-2021,000007404353558,CO-OP GROUP 010465,5411,Catering costs - provisions,2.95,0.00,2.95
"Regeneration, Economy and Growth",COVID19 - Regeneration Economy and Growth,091004,COVID19 - Regeneration Economy and Growth,Supplies and Services,304221,Equipment and Materials,12-Jan-2021,000007404353570,ukmeds.co.uk,5912,Direct materials,154.95,0.00,154.95
Children and Young Peoples Services,Head of Childrens Social Care,085333,Coxhoe Satelite Home,Supplies and Services,324117,Provisions E324,12-Jan-2021,000007404353582,TESCO STORES 2371,5411,Catering costs - provisions,155.42,0.00,155.42
Children and Young Peoples Services,Head of Childrens Social Care,085333,Coxhoe Satelite Home,Supplies and Services,324117,Provisions E324,12-Jan-2021,000007404353590,TESCO STORES 2371,5411,Catering costs - provisions,25.27,0.00,25.27
Children and Young Peoples Services,Head of Childrens Social Care,085342,16 Hickstead Rise (previously 9 Cedar Ave),Supplies and Services,324117,Provisions E324,12-Jan-2021,000007404353676,WILKO RETAIL LIMITED,5399,Catering costs - provisions,14.00,0.00,14.00
Children and Young Peoples Services,Head of Childrens Social Care,085342,16 Hickstead Rise (previously 9 Cedar Ave),Supplies and Services,324117,Provisions E324,12-Jan-2021,000007404353684,TESCO STORES 2916,5411,Catering costs - provisions,24.00,0.00,24.00
Children and Young Peoples Services,Head of Childrens Social Care,085342,16 Hickstead Rise (previously 9 Cedar Ave),Supplies and Services,304999,Equipment and Materials,12-Jan-2021,000007404353690,SAVERS HEALTH & BEAUTY,5912,Misc equipment tools and materials,2.00,0.00,2.00
Children and Young Peoples Services,Head of Childrens Social Care,085352,Tow Law CU,Supplies and Services,324117,Provisions E324,12-Jan-2021,000007404353720,TESCO STORES 6329,5411,Catering costs - provisions,99.65,0.00,99.65
"Regeneration, Economy and Growth",Development and Housing,031576,B& B - Temp Accom,Supplies and Services,364320,Grants to Voluntary Organisations,12-Jan-2021,000007404353772,HI NEWCASTLE WASHI,7011,Accommodation assistance,333.95,0.00,333.95
Adult and Health Services,Head of Adults,055643,Hawthorn House LD Respite Unit,Supplies and Services,324117,Provisions E324,12-Jan-2021,000007404353796,JR HOLLAND FOODSERVICE,5499,Catering costs - provisions,14.65,0.00,14.65
Neighbourhoods and Climate Change,Environmental Services,010301,C&G - North Grounds Maintenance,Third Party Payments,430100,Rendered by Private Contractors,12-Jan-2021,000007404353836,HARRISON & SON LTD,7399,Payments to sub-contractors,28.00,0.00,28.00
Neighbourhoods and Climate Change,Environmental Services,010301,C&G - North Grounds Maintenance,Supplies and Services,304403,Equipment and Materials,12-Jan-2021,000007404353842,BESCOL,5231,Other consumables,15.96,0.00,15.96
Children and Young Peoples Services,Head of Childrens Social Care,085334,West Rainton Satelite Home,Supplies and Services,324117,Provisions E324,12-Jan-2021,000007404353870,TESCO STORES 2371,5411,Catering costs - provisions,30.69,0.00,30.69
Children and Young Peoples Services,Head of Childrens Social Care,085334,West Rainton Satelite Home,Supplies and Services,324117,Provisions E324,12-Jan-2021,000007404353882,TESCO STORES 2371,5411,Catering costs - provisions,154.97,0.00,154.97
Children and Young Peoples Services,Head of Childrens Social Care,085334,West Rainton Satelite Home,Supplies and Services,324117,Provisions E324,12-Jan-2021,000007404353888,TESCO STORES 2371,5411,Catering costs - provisions,12.00,0.00,12.00
Children and Young Peoples Services,Head of Early Help Inclusion & Vulnerable Children.,085957,Secure Management,Supplies and Services,332047,Printing Stationery and Gen Off Exps,12-Jan-2021,000007404353922,VIKING UK,5111,Stationery,15.47,0.00,15.47
Children and Young Peoples Services,Head of Early Help Inclusion & Vulnerable Children.,079034,SEND LOOKED AFTER AND VULNERABLE CASEWORK TEAM 1,Supplies and Services,304403,Equipment and Materials,12-Jan-2021,000007404353946,AMZNMKTPLACE AMAZON.CO,5999,Other consumables,15.31,0.00,15.31
"Regeneration, Economy and Growth",Development and Housing,031576,B& B - Temp Accom,Supplies and Services,364320,Grants to Voluntary Organisations,12-Jan-2021,000007404354016,TOAST LETTINGS,7011,Accommodation assistance,240.00,0.00,240.00
Neighbourhoods and Climate Change,Environmental Services,010301,C&G - North Grounds Maintenance,Supplies and Services,304221,Equipment and Materials,12-Jan-2021,000007404354032,SCREWFIX DIR LTD,5211,Direct materials,52.27,0.00,52.27
Children and Young Peoples Services,Head of Education and Skills,071802,Louisa Cent Nursery,Supplies and Services,324117,Provisions E324,12-Jan-2021,000007404354052,ASDA SUPERSTORE,5411,Catering costs - provisions,21.90,0.00,21.90
"Regeneration, Economy and Growth",Development and Housing,031500,Housing Solutions - Core Team,Supplies and Services,352001,Conference Expenses,12-Jan-2021,000007404354100,HI NEWCASTLE WASHI,7011,Conferencesseminars fees etc,450.00,0.00,450.00
"Regeneration, Economy and Growth",Development and Housing,031500,Housing Solutions - Core Team,Supplies and Services,352001,Conference Expenses,12-Jan-2021,000007404354104,HI NEWCASTLE WASHI,7011,Conferencesseminars fees etc,164.60,0.00,164.60
Children and Young Peoples Services,Head of Childrens Social Care,085331,New Lea Childrens Home,Supplies and Services,308011,Furniture,12-Jan-2021,000007404354146,WF WAYFAIR 3497199414,5712,Furniture repair and replacement,65.99,0.00,65.99
Children and Young Peoples Services,Head of Childrens Social Care,085331,New Lea Childrens Home,Supplies and Services,308011,Furniture,12-Jan-2021,000007404354156,WF WAYFAIR 3497200324,5712,Furniture repair and replacement,62.96,0.00,62.96
Children and Young Peoples Services,Head of Childrens Social Care,085551,Short Break Services-Park Hse Sher,Supplies and Services,304999,Equipment and Materials,12-Jan-2021,000007404354216,HOME BARGAINS,5251,Misc equipment tools and materials,4.06,0.00,4.06
Neighbourhoods and Climate Change,Partnerships & Community Engagement Div.,060472,Syrian Vulnerable Persons Scheme,Supplies and Services,308011,Furniture,12-Jan-2021,000007404354252,INTERIOR GOODS DIRECT,5719,Furniture repair and replacement,421.12,70.19,350.93
Neighbourhoods and Climate Change,Partnerships & Community Engagement Div.,060472,Syrian Vulnerable Persons Scheme,Supplies and Services,308011,Furniture,12-Jan-2021,000007404354260,INTERIOR GOODS DIRECT,5719,Furniture repair and replacement,422.93,70.49,352.44
Neighbourhoods and Climate Change,Partnerships & Community Engagement Div.,060472,Syrian Vulnerable Persons Scheme,Supplies and Services,308011,Furniture,12-Jan-2021,000007404354266,INTERIOR GOODS DIRECT,5719,Furniture repair and replacement,365.14,60.86,304.28
Neighbourhoods and Climate Change,Partnerships & Community Engagement Div.,060472,Syrian Vulnerable Persons Scheme,Supplies and Services,308011,Furniture,12-Jan-2021,000007404354276,INTERIOR GOODS DIRECT,5719,Furniture repair and replacement,344.93,57.49,287.44
Neighbourhoods and Climate Change,Partnerships & Community Engagement Div.,060472,Syrian Vulnerable Persons Scheme,Supplies and Services,308011,Furniture,12-Jan-2021,000007404354284,WILKO.COM,5399,Furniture repair and replacement,300.00,50.00,250.00
Adult and Health Services,Head of Adults,053814,Sycamore Lodge Extra Care,Supplies and Services,304403,Equipment and Materials,12-Jan-2021,000007407102184,AMZNMKTPLACE AMAZON.CO,5999,Other consumables,209.00,34.83,174.17
Children and Young Peoples Services,Head of Childrens Social Care,085332,Middlestone Moor CU,Supplies and Services,324117,Provisions E324,12-Jan-2021,000007407102720,TESCO STORES 2371,5411,Catering costs - provisions,123.55,0.00,123.55
Neighbourhoods and Climate Change,Environmental Services,011060,C&G - Hardwick Park Catering,Supplies and Services,324117,Provisions E324,12-Jan-2021,000007407103784,BATLEYS PERTH,5300,Catering costs - provisions,101.64,16.94,84.70
Neighbourhoods and Climate Change,Environmental Services,011060,C&G - Hardwick Park Catering,Supplies and Services,324117,Provisions E324,12-Jan-2021,000007407103784 - 1,BATLEYS PERTH,5300,Catering costs - provisions,58.56,,58.56
Children and Young Peoples Services,Head of Early Help Inclusion & Vulnerable Children.,088102,Consett & Stanley 0-19 Targeted Family Support,Supplies and Services,304403,Equipment and Materials,12-Jan-2021,000007407104712,AMZNMKTPLACE AMAZON.CO,5999,Other consumables,5.95,0.99,4.96
"Regeneration, Economy and Growth",Corporate Property and Land,021324,Catering - Meadowfield,Supplies and Services,324117,Provisions E324,12-Jan-2021,000007407104896,BATLEYS PERTH,5300,Catering costs - provisions,82.62,13.77,68.85
"Regeneration, Economy and Growth",Corporate Property and Land,021324,Catering - Meadowfield,Supplies and Services,324117,Provisions E324,12-Jan-2021,000007407104896 - 1,BATLEYS PERTH,5300,Catering costs - provisions,178.47,,178.47
Neighbourhoods and Climate Change,Partnerships & Community Engagement Div.,060472,Syrian Vulnerable Persons Scheme,Supplies and Services,308011,Furniture,12-Jan-2021,000007407105296,Dunelm,5712,Furniture repair and replacement,110.00,0.00,110.00
"Regeneration, Economy and Growth",Business Durham CL0850,030689,Inward Investment and Aftercare,Supplies and Services,336005,Advertising E336,13-Jan-2021,000007404352124,LINKEDIN IRELAND,7311,Advertising other than for staff,110.44,0.00,110.44
Children and Young Peoples Services,Head of Childrens Social Care,085341,High Etherley Satelite Home,Supplies and Services,308011,Furniture,13-Jan-2021,000007407101984,FRANKS THE FLOORING ST,5713,Furniture repair and replacement,130.00,0.00,130.00
Children and Young Peoples Services,Head of Childrens Social Care,085341,High Etherley Satelite Home,Supplies and Services,324117,Provisions E324,13-Jan-2021,000007407102004,TESCO STORES 6329,5411,Catering costs - provisions,85.32,0.00,85.32
Children and Young Peoples Services,Head of Childrens Social Care,085341,High Etherley Satelite Home,Supplies and Services,328041,Clothing uniforms and laundry E328,13-Jan-2021,000007407102016,ARGOS LTD,5310,Clothing uniforms and laundry,202.95,0.00,202.95
"Regeneration, Economy and Growth",Business Durham CL0850,030689,Inward Investment and Aftercare,Supplies and Services,336005,Advertising E336,13-Jan-2021,000007407102042,LINKEDIN-623 0963394,7311,Advertising other than for staff,37.66,0.00,37.66
"Regeneration, Economy and Growth",Business Durham CL0850,030689,Inward Investment and Aftercare,Supplies and Services,342222,Computers and Communications,13-Jan-2021,000007407102064,FASTHOSTS INTERNET,4816,Comp hardware purch-network servers,30.00,0.00,30.00
"Regeneration, Economy and Growth",Business Durham CL0850,030689,Inward Investment and Aftercare,Supplies and Services,342222,Computers and Communications,13-Jan-2021,000007407102082,FASTHOSTS INTERNET,4816,Comp hardware purch-network servers,30.00,0.00,30.00
Children and Young Peoples Services,Head of Education and Skills,071801,Selby Cottage Childcare Centre,Supplies and Services,304403,Equipment and Materials,13-Jan-2021,000007407102144,AMZNMktplace,5999,Other consumables,17.78,2.96,14.82
Children and Young Peoples Services,Head of Education and Skills,071801,Selby Cottage Childcare Centre,Supplies and Services,304403,Equipment and Materials,13-Jan-2021,000007407102158,AMZNMktplace,5999,Other consumables,44.90,7.49,37.41
"Regeneration, Economy and Growth",Culture Sport and Tourism,010991,FISCH-Join In,Supplies and Services,342033,Computers and Communications,13-Jan-2021,000007407102204,Amazon.co.uk MV21U4O04,5969,Computer hardware,29.98,5.00,24.98
Resources BK0010,Digital and Customer Services,065482,Data Centres,Supplies and Services,304403,Equipment and Materials,13-Jan-2021,000007407102224,AMZNMktplace,5999,Other consumables,277.58,0.00,277.58
Children and Young Peoples Services,Head of Education and Skills,078556,Adult Learner Responsive,Supplies and Services,342053,Computers and Communications,13-Jan-2021,000007407102242,ZOOM.US 888-799-9666,4814,Computer software,119.90,0.00,119.90
Resources BK0010,Digital and Customer Services,065482,Data Centres,Supplies and Services,304403,Equipment and Materials,13-Jan-2021,000007407102260,BLS POWERMAPPER,5734,Other consumables,238.80,0.00,238.80
Children and Young Peoples Services,Head of Childrens Social Care,085332,Middlestone Moor CU,Supplies and Services,324117,Provisions E324,13-Jan-2021,000007407102344,ALDI 74 774,5411,Catering costs - provisions,3.49,0.00,3.49
Children and Young Peoples Services,Head of Childrens Social Care,085341,High Etherley Satelite Home,Supplies and Services,324117,Provisions E324,13-Jan-2021,000007407102466,TESCO STORES 6329,5411,Catering costs - provisions,73.50,0.00,73.50
Neighbourhoods and Climate Change,Environmental Services,010367,C&G - South Grounds Maintenance,Supplies and Services,328041,Clothing uniforms and laundry E328,13-Jan-2021,000007407102660,SECURE A FIELD,5681,Clothing uniforms and laundry,292.80,48.80,244.00
Children and Young Peoples Services,Head of Early Help Inclusion & Vulnerable Children.,079599,Psychological-HQ,Employees,040149,Recruitment Instruction and Training,13-Jan-2021,000007407102838,SP SCHOOL WELLBEING,8299,Training-all costs,50.00,0.00,50.00
Children and Young Peoples Services,Head of Early Help Inclusion & Vulnerable Children.,079599,Psychological-HQ,Supplies and Services,304403,Equipment and Materials,13-Jan-2021,000007407102854,AMZNMktplace,5999,Other consumables,59.90,9.98,49.92
Children and Young Peoples Services,Head of Early Help Inclusion & Vulnerable Children.,085952,Secure Education,Supplies and Services,384999,Miscellaneous Expenses,13-Jan-2021,000007407102870,Amazon.co.uk MV08K0CH4,5969,Other expenses,8.46,1.41,7.05
Children and Young Peoples Services,Head of Early Help Inclusion & Vulnerable Children.,085952,Secure Education,Supplies and Services,384999,Miscellaneous Expenses,13-Jan-2021,000007407102870 - 1,Amazon.co.uk MV08K0CH4,5969,Other expenses,39.36,,39.36
Children and Young Peoples Services,Head of Early Help Inclusion & Vulnerable Children.,085952,Secure Education,Supplies and Services,304403,Equipment and Materials,13-Jan-2021,000007407102884,AMZNMktplace,5999,Other consumables,27.96,4.66,23.30
Children and Young Peoples Services,Head of Early Help Inclusion & Vulnerable Children.,085952,Secure Education,Supplies and Services,304403,Equipment and Materials,13-Jan-2021,000007407102894,AMZNMktplace,5999,Other consumables,10.99,1.83,9.16
Children and Young Peoples Services,Head of Early Help Inclusion & Vulnerable Children.,085952,Secure Education,Supplies and Services,384999,Miscellaneous Expenses,13-Jan-2021,000007407102914,Amazon.co.uk MV9PJ5OK4,5969,Other expenses,28.85,0.00,28.85
Neighbourhoods and Climate Change,Environmental Services,010900,Fleet - Meadowfield Fleet,Transport,215013,Running Costs of Vehicles,13-Jan-2021,000007407103080,DVLA VEHICLE TAX,9311,Vehicle Excise Duty (VED),267.50,0.00,267.50
Children and Young Peoples Services,Head of Education and Skills,071732,Dean Bank Childcare,Supplies and Services,304403,Equipment and Materials,13-Jan-2021,000007407103246,AMZNMktplace,5999,Other consumables,41.76,6.97,34.79
Children and Young Peoples Services,Head of Education and Skills,071732,Dean Bank Childcare,Supplies and Services,304403,Equipment and Materials,13-Jan-2021,000007407103260,AMZNMktplace,5999,Other consumables,3.75,0.63,3.12
Children and Young Peoples Services,Head of Education and Skills,071732,Dean Bank Childcare,Supplies and Services,304403,Equipment and Materials,13-Jan-2021,000007407103278,AMZNMktplace,5999,Other consumables,160.56,26.76,133.80
Children and Young Peoples Services,Head of Education and Skills,071732,Dean Bank Childcare,Supplies and Services,304403,Equipment and Materials,13-Jan-2021,000007407103278 - 1,AMZNMktplace,5999,Other consumables,0.22,,0.22
"Regeneration, Economy and Growth",Culture Sport and Tourism,054967,Theatre - Technical Staffing,Supplies and Services,384999,Miscellaneous Expenses,13-Jan-2021,000007407103322,WWW.PARKCAMERAS.CO.UK,5946,Other expenses,429.00,0.00,429.00
Children and Young Peoples Services,Head of Childrens Social Care,085332,Middlestone Moor CU,Supplies and Services,324117,Provisions E324,13-Jan-2021,000007407103378,IZ Thames fruit and v,5499,Catering costs - provisions,15.00,0.00,15.00
Children and Young Peoples Services,Head of Education and Skills,071903,Early Years Sustainability,Supplies and Services,304999,Equipment and Materials,13-Jan-2021,000007407103498,Vimeo PRO,5968,Misc equipment tools and materials,226.80,0.00,226.80
"Regeneration, Economy and Growth",Development and Housing,031623,Rough,Supplies and Services,304999,Equipment and Materials,13-Jan-2021,000007407103620,DUNCAN BELTON TA K,6513,Misc equipment tools and materials,500.00,0.00,500.00
Children and Young Peoples Services,Head of Early Help Inclusion & Vulnerable Children.,085965,Barnard,Transfer Payments,515140,Social Services Clients,13-Jan-2021,000007407103636,BOOHOO.COM,5691,Clothing allowances,35.00,0.00,35.00
Children and Young Peoples Services,Head of Early Help Inclusion & Vulnerable Children.,085954,Walworth,Supplies and Services,304649,Equipment and Materials,13-Jan-2021,000007407103654,CEX LTD,5065,Toys,26.95,0.00,26.95
Children and Young Peoples Services,Head of Early Help Inclusion & Vulnerable Children.,085965,Barnard,Transfer Payments,515140,Social Services Clients,13-Jan-2021,000007407103668,THE NORTH FACE,5651,Clothing allowances,28.00,0.00,28.00
Children and Young Peoples Services,Head of Early Help Inclusion & Vulnerable Children.,085962,Aycliffe Secure - Durham,Supplies and Services,324117,Provisions E324,13-Jan-2021,000007407103680,TESCO STORES 6329,5411,Catering costs - provisions,80.33,0.00,80.33
Children and Young Peoples Services,Head of Early Help Inclusion & Vulnerable Children.,085965,Barnard,Transfer Payments,515140,Social Services Clients,13-Jan-2021,000007407103706,www.asos.com,5651,Clothing allowances,57.99,0.00,57.99
Children and Young Peoples Services,Head of Early Help Inclusion & Vulnerable Children.,085954,Walworth,Transfer Payments,515140,Social Services Clients,13-Jan-2021,000007407103714,JD SPORTS INTERNET,5941,Clothing allowances,53.99,0.00,53.99
Children and Young Peoples Services,Head of Early Help Inclusion & Vulnerable Children.,088112,Seaham & Central Durham 0-19 Targeted Family Support,Employees,040149,Recruitment Instruction and Training,13-Jan-2021,000007407103740,NE-AS.ORG.UK,8398,Training-all costs,15.00,0.00,15.00
"Regeneration, Economy and Growth",Development and Housing,031576,B& B - Temp Accom,Supplies and Services,364320,Grants to Voluntary Organisations,13-Jan-2021,000007407103998,HI NEWCASTLE WASHI,7011,Accommodation assistance,325.00,0.00,325.00
"Regeneration, Economy and Growth",Development and Housing,031576,B& B - Temp Accom,Supplies and Services,364320,Grants to Voluntary Organisations,13-Jan-2021,000007407104014,HI NEWCASTLE WASHI,7011,Accommodation assistance,500.00,0.00,500.00
Children and Young Peoples Services,Head of Early Help Inclusion & Vulnerable Children.,088106,Ferryhill & N.Aycliffe 0-19 Targeted Family Support,Employees,040149,Recruitment Instruction and Training,13-Jan-2021,000007407104224,NE-AS.ORG.UK,8398,Training-all costs,15.00,0.00,15.00
Children and Young Peoples Services,Head of Early Help Inclusion & Vulnerable Children.,088109,Spennymoor & Shildon 0-19 Community Family Hub,Supplies and Services,304649,Equipment and Materials,13-Jan-2021,000007407104236,AMZNMktplace,5999,Toys,31.92,5.32,26.60
Children and Young Peoples Services,Head of Early Help Inclusion & Vulnerable Children.,088109,Spennymoor & Shildon 0-19 Community Family Hub,Supplies and Services,304649,Equipment and Materials,13-Jan-2021,000007407104236 - 1,AMZNMktplace,5999,Toys,0.04,,0.04
Resources BK0010,Business Support,065503,Business Support - Spectrum,Supplies and Services,304259,Equipment and Materials,13-Jan-2021,000007407104244,AMZNMktplace,5999,Equipment-purchase and rental,34.98,5.83,29.15
Children and Young Peoples Services,Head of Early Help Inclusion & Vulnerable Children.,071489,Winter Family Fund,Supplies and Services,364301,Grants to Voluntary Organisations,13-Jan-2021,000007407104252,ASDA GEORGE COM LEEDS,5411,Hardship,247.50,0.00,247.50
Children and Young Peoples Services,Head of Early Help Inclusion & Vulnerable Children.,088109,Spennymoor & Shildon 0-19 Community Family Hub,Supplies and Services,304649,Equipment and Materials,13-Jan-2021,000007407104258,ARGOS LTD,5310,Toys,13.95,0.00,13.95
Children and Young Peoples Services,Head of Early Help Inclusion & Vulnerable Children.,088109,Spennymoor & Shildon 0-19 Community Family Hub,Supplies and Services,304649,Equipment and Materials,13-Jan-2021,000007407104268,ARGOS LTD,5310,Toys,80.00,0.00,80.00
Children and Young Peoples Services,Head of Early Help Inclusion & Vulnerable Children.,088109,Spennymoor & Shildon 0-19 Community Family Hub,Supplies and Services,304649,Equipment and Materials,13-Jan-2021,000007407104274,ARGOS LTD,5310,Toys,30.00,0.00,30.00
Children and Young Peoples Services,Head of Childrens Social Care,085341,High Etherley Satelite Home,Supplies and Services,304403,Equipment and Materials,13-Jan-2021,000007407104284,AMZNMktplace,5999,Other consumables,22.99,0.00,22.99
Children and Young Peoples Services,Head of Childrens Social Care,085341,High Etherley Satelite Home,Supplies and Services,304403,Equipment and Materials,13-Jan-2021,000007407104296,FUNKYPIGEON.COM,5947,Other consumables,11.98,0.00,11.98
Children and Young Peoples Services,Head of Childrens Social Care,085341,High Etherley Satelite Home,Supplies and Services,328041,Clothing uniforms and laundry E328,13-Jan-2021,000007407104304,ARGOS LTD,5310,Clothing uniforms and laundry,93.28,0.00,93.28
Adult and Health Services,Head of Adults,055643,Hawthorn House LD Respite Unit,Supplies and Services,324117,Provisions E324,13-Jan-2021,000007407104394,SAINSBURYS 0776,5411,Catering costs - provisions,13.15,0.00,13.15
Adult and Health Services,Head of Adults,055643,Hawthorn House LD Respite Unit,Supplies and Services,324117,Provisions E324,13-Jan-2021,000007407104402,SAINSBURYS 0776,5411,Catering costs - provisions,25.40,0.00,25.40
"Regeneration, Economy and Growth",Corporate Property and Land,010814,Bldg Serv - R&M General,Supplies and Services,304221,Equipment and Materials,13-Jan-2021,000007407104430,AMZNMktplace,5999,Direct materials,135.00,22.50,112.50
"Regeneration, Economy and Growth",Corporate Property and Land,010814,Bldg Serv - R&M General,Supplies and Services,304221,Equipment and Materials,13-Jan-2021,000007407104430 - 1,AMZNMktplace,5999,Direct materials,0.15,,0.15
Children and Young Peoples Services,Head of Childrens Social Care,085333,Coxhoe Satelite Home,Supplies and Services,324117,Provisions E324,13-Jan-2021,000007407104464,PPOINT_ COSTCUTTER 108,5499,Catering costs - provisions,4.65,0.00,4.65
Children and Young Peoples Services,Head of Childrens Social Care,085333,Coxhoe Satelite Home,Supplies and Services,324117,Provisions E324,13-Jan-2021,000007407104472,MARKS&SPENCER PLC,5411,Catering costs - provisions,15.00,0.00,15.00
Children and Young Peoples Services,Head of Childrens Social Care,085613,Families First Durham Central,Supplies and Services,364301,Grants to Voluntary Organisations,13-Jan-2021,000007407104570,ARGOS LTD,5310,Hardship,89.95,0.00,89.95
Children and Young Peoples Services,Head of Childrens Social Care,085613,Families First Durham Central,Supplies and Services,364301,Grants to Voluntary Organisations,13-Jan-2021,000007407104576,ARGOS LTD,5310,Hardship,75.00,0.00,75.00
Neighbourhoods and Climate Change,Environmental Services,010367,C&G - South Grounds Maintenance,Supplies and Services,304221,Equipment and Materials,13-Jan-2021,000007407104622,SCREWFIX DIRECT,5211,Direct materials,14.74,0.00,14.74
Adult and Health Services,Head of Adults,055643,Hawthorn House LD Respite Unit,Supplies and Services,324117,Provisions E324,13-Jan-2021,000007407104644,JR HOLLAND FOODSERVICE,5499,Catering costs - provisions,5.22,0.00,5.22
Adult and Health Services,Head of Adults,055643,Hawthorn House LD Respite Unit,Supplies and Services,324117,Provisions E324,13-Jan-2021,000007407104654,JR HOLLAND FOODSERVICE,5499,Catering costs - provisions,9.74,0.00,9.74
"Regeneration, Economy and Growth",Transport and Contracted Services,032375,School & Workplace Travel Plans Revenue,Supplies and Services,304999,Equipment and Materials,13-Jan-2021,000007407104814,AMZNMktplace,5999,Misc equipment tools and materials,14.99,2.50,12.49
"Regeneration, Economy and Growth",Transport and Contracted Services,032375,School & Workplace Travel Plans Revenue,Supplies and Services,304999,Equipment and Materials,13-Jan-2021,000007407104828,Amazon.co.uk MV0TC8OW4,5969,Misc equipment tools and materials,32.74,5.46,27.28
Dedicated Schools Grant BG0015,DSG High Needs Block,079044,Ed Health Needs,Supplies and Services,384999,Miscellaneous Expenses,13-Jan-2021,000007407104840,Amazon.co.uk MV1PU9O94,5969,Other expenses,4.50,0.00,4.50
Dedicated Schools Grant BG0015,DSG High Needs Block,079044,Ed Health Needs,Supplies and Services,384999,Miscellaneous Expenses,13-Jan-2021,000007407104850,Amazon.co.uk MV7NT6O14,5969,Other expenses,4.02,0.67,3.35
Dedicated Schools Grant BG0015,DSG High Needs Block,079044,Ed Health Needs,Supplies and Services,384999,Miscellaneous Expenses,13-Jan-2021,000007407104850 - 1,Amazon.co.uk MV7NT6O14,5969,Other expenses,23.27,,23.27
Dedicated Schools Grant BG0015,DSG High Needs Block,079044,Ed Health Needs,Supplies and Services,384999,Miscellaneous Expenses,13-Jan-2021,000007407104858,Amazon.co.uk MV71H6O74,5969,Other expenses,4.99,0.00,4.99
Dedicated Schools Grant BG0015,DSG High Needs Block,079044,Ed Health Needs,Supplies and Services,384999,Miscellaneous Expenses,13-Jan-2021,000007407104868,Amazon.co.uk MV8P97ON4,5969,Other expenses,4.99,0.00,4.99
Neighbourhoods and Climate Change,Environmental Services,010301,C&G - North Grounds Maintenance,Supplies and Services,304999,Equipment and Materials,13-Jan-2021,000007407104910,GUSTHARTS,5072,Misc equipment tools and materials,243.30,0.00,243.30
Children and Young Peoples Services,Head of Childrens Social Care,085351,Framwellgate Moor CU,Supplies and Services,328041,Clothing uniforms and laundry E328,13-Jan-2021,000007407104944,ARGOS LTD,5310,Clothing uniforms and laundry,20.00,0.00,20.00
Resources BK0010,Business Support,065503,Business Support - Spectrum,Employees,040149,Recruitment Instruction and Training,13-Jan-2021,000007407104982,PAYPAL BODYSENSE,8299,Training-all costs,25.00,0.00,25.00
Resources BK0010,Corporate Finance & Commercial Services,069800,Corporate Procurement 069800,Employees,040149,Recruitment Instruction and Training,13-Jan-2021,000007407105000,WWW.CIPS.ORG,8699,Training-all costs,186.95,0.00,186.95
"Regeneration, Economy and Growth",Development and Housing,031500,Housing Solutions - Core Team,Supplies and Services,352001,Conference Expenses,13-Jan-2021,000007407105060,TRAVELODGE,3615,Conferencesseminars fees etc,76.98,0.00,76.98
"Regeneration, Economy and Growth",Development and Housing,031500,Housing Solutions - Core Team,Supplies and Services,352001,Conference Expenses,13-Jan-2021,000007407105070,HI NEWCASTLE WASHI,7011,Conferencesseminars fees etc,260.00,0.00,260.00
"Regeneration, Economy and Growth",Development and Housing,031500,Housing Solutions - Core Team,Supplies and Services,352001,Conference Expenses,13-Jan-2021,000007407105076,HI NEWCASTLE WASHI,7011,Conferencesseminars fees etc,195.00,0.00,195.00
Children and Young Peoples Services,Head of Childrens Social Care,085331,New Lea Childrens Home,Supplies and Services,304403,Equipment and Materials,13-Jan-2021,000007407105122,SP MJN SAFETY SIGNS,5734,Other consumables,7.19,0.00,7.19
Neighbourhoods and Climate Change,Partnerships & Community Engagement Div.,060472,Syrian Vulnerable Persons Scheme,Supplies and Services,308011,Furniture,13-Jan-2021,000007407105278,SP TERRYS FABRICS,5691,Furniture repair and replacement,531.79,88.63,443.16
Neighbourhoods and Climate Change,Partnerships & Community Engagement Div.,060472,Syrian Vulnerable Persons Scheme,Supplies and Services,308011,Furniture,13-Jan-2021,000007407105302,WILKO.COM,5399,Furniture repair and replacement,356.00,59.33,296.67
Neighbourhoods and Climate Change,Partnerships & Community Engagement Div.,060472,Syrian Vulnerable Persons Scheme,Supplies and Services,308011,Furniture,13-Jan-2021,000007407105314,ASDA GEORGE COM LEEDS,5411,Furniture repair and replacement,315.50,52.58,262.92
Neighbourhoods and Climate Change,Partnerships & Community Engagement Div.,060472,Syrian Vulnerable Persons Scheme,Supplies and Services,308011,Furniture,13-Jan-2021,000007407105320,ASDA GEORGE COM LEEDS,5411,Furniture repair and replacement,158.00,26.33,131.67
Resources BK0010,Digital and Customer Services,065487,ICT Telephony Recharges,Supplies and Services,344033,Telephones,13-Jan-2021,000007409718678,AMZNMKTPLACE AMAZON.CO,5999,Telephones general-all costs,324.00,54.00,270.00
Resources BK0010,Digital and Customer Services,065487,ICT Telephony Recharges,Supplies and Services,304403,Equipment and Materials,13-Jan-2021,000007409718678 - 1,AMZNMKTPLACE AMAZON.CO,5999,Other consumables,0.50,,0.50
Children and Young Peoples Services,Head of Childrens Social Care,085624,Families First Crook,Supplies and Services,364301,Grants to Voluntary Organisations,13-Jan-2021,000007409719004,Dunelm,5712,Hardship,78.00,0.00,78.00
"Regeneration, Economy and Growth",Culture Sport and Tourism,054967,Theatre - Technical Staffing,Supplies and Services,304403,Equipment and Materials,13-Jan-2021,000007409719248,Premier Farnell,5065,Other consumables,272.58,0.00,272.58
Children and Young Peoples Services,Head of Early Help Inclusion & Vulnerable Children.,085956,Lumley,Supplies and Services,308011,Furniture,13-Jan-2021,000007409719406,Dunelm,5712,Furniture repair and replacement,83.30,0.00,83.30
Children and Young Peoples Services,Head of Early Help Inclusion & Vulnerable Children.,085952,Secure Education,Supplies and Services,384999,Miscellaneous Expenses,14-Jan-2021,000007407102904,Amazon.co.uk MV8280OS4,5969,Other expenses,23.00,0.00,23.00
Children and Young Peoples Services,Head of Education and Skills,071732,Dean Bank Childcare,Supplies and Services,304403,Equipment and Materials,14-Jan-2021,000007407103292,AMZNMktplace,5999,Other consumables,51.96,8.68,43.28
Children and Young Peoples Services,Head of Early Help Inclusion & Vulnerable Children.,085957,Secure Management,Supplies and Services,372009,Subscriptions E372,14-Jan-2021,000007407103694,TESCO SUBSCRIPTION,5968,Subscriptions 372009,6.99,0.00,6.99
Children and Young Peoples Services,Head of Early Help Inclusion & Vulnerable Children.,085957,Secure Management,Supplies and Services,304649,Equipment and Materials,14-Jan-2021,000007407104766,AMZNMktplace,5999,Toys,16.88,2.81,14.07
"Regeneration, Economy and Growth",Business Durham CL0850,030689,Inward Investment and Aftercare,Supplies and Services,304999,Equipment and Materials,14-Jan-2021,000007409718496,MOZ INC,5817,Misc equipment tools and materials,131.42,0.00,131.42
Children and Young Peoples Services,Head of Education and Skills,071801,Selby Cottage Childcare Centre,Supplies and Services,304403,Equipment and Materials,14-Jan-2021,000007409718564,AMZNMktplace,5999,Other consumables,9.45,1.58,7.87
"Regeneration, Economy and Growth",Development and Housing,031576,B& B - Temp Accom,Supplies and Services,364320,Grants to Voluntary Organisations,14-Jan-2021,000007409718616,TRAVELODGE,3615,Accommodation assistance,130.46,0.00,130.46
Adult and Health Services,Head of Adults,053816,Chester View Extra Care,Supplies and Services,304403,Equipment and Materials,14-Jan-2021,000007409718636,AMZNMktplace,5999,Other consumables,12.69,2.12,10.57
Adult and Health Services,Head of Adults,053810,Southfield Lodge Extra Care,Supplies and Services,304403,Equipment and Materials,14-Jan-2021,000007409718650,AMZNMktplace,5999,Other consumables,12.69,2.12,10.57
Adult and Health Services,Head of Adults,053813,Charles Dickens Extra Care,Supplies and Services,304403,Equipment and Materials,14-Jan-2021,000007409718658,AMZNMktplace,5999,Other consumables,15.17,2.53,12.64
Resources BK0010,Legal & Democratic Services,067953,Coroner County Durham & Darlington,Supplies and Services,342033,Computers and Communications,14-Jan-2021,000007409718666,SP OWL LABS UK,5734,Computer hardware,999.00,166.50,832.50
Adult and Health Services,Head of Adults,053816,Chester View Extra Care,Supplies and Services,304403,Equipment and Materials,14-Jan-2021,000007409718672,AMZNMKTPLACE AMAZON.CO,5999,Other consumables,12.69,2.12,10.57
Adult and Health Services,Head of Adults,053814,Sycamore Lodge Extra Care,Supplies and Services,304403,Equipment and Materials,14-Jan-2021,000007409718688,AMZNMKTPLACE AMAZON.CO,5999,Other consumables,12.69,2.12,10.57
Adult and Health Services,Head of Adults,053812,Maple Court Extra,Supplies and Services,304403,Equipment and Materials,14-Jan-2021,000007409718698,AMZNMktplace,5999,Other consumables,15.17,2.53,12.64
Adult and Health Services,Head of Adults,053812,Maple Court Extra,Supplies and Services,304403,Equipment and Materials,14-Jan-2021,000007409718710,AMZNMktplace,5999,Other consumables,209.00,34.83,174.17
Children and Young Peoples Services,Head of Education and Skills,078556,Adult Learner Responsive,Supplies and Services,342053,Computers and Communications,14-Jan-2021,000007409718718,ZOOM.US 888-799-9666,4814,Computer software,119.90,0.00,119.90
Resources BK0010,Digital and Customer Services,011104,Contact Centres,Supplies and Services,342033,Computers and Communications,14-Jan-2021,000007409718724,DIGITAL HEARING CARE S,5975,Computer hardware,180.00,30.00,150.00
Adult and Health Services,Head of Adults,053816,Chester View Extra Care,Supplies and Services,304403,Equipment and Materials,14-Jan-2021,000007409718734,AMZNMktplace,5999,Other consumables,209.00,34.83,174.17
Adult and Health Services,Head of Adults,053813,Charles Dickens Extra Care,Supplies and Services,304403,Equipment and Materials,14-Jan-2021,000007409718740,AMZNMktplace,5999,Other consumables,209.00,34.83,174.17
Adult and Health Services,Commissioning inc Supporting People,052100,Supporting the Provider Market,Supplies and Services,338057,Services,14-Jan-2021,000007409718748,WESSEX MEDICAL,5047,Medical fees 338057,984.60,164.10,820.50
"Regeneration, Economy and Growth",Development and Housing,031576,B& B - Temp Accom,Supplies and Services,364320,Grants to Voluntary Organisations,14-Jan-2021,000007409718788,THE HONEST LAWYER,7011,Accommodation assistance,500.00,0.00,500.00
"Regeneration, Economy and Growth",Development and Housing,031576,B& B - Temp Accom,Supplies and Services,364320,Grants to Voluntary Organisations,14-Jan-2021,000007409718798,THE HONEST LAWYER,7011,Accommodation assistance,500.00,0.00,500.00
"Regeneration, Economy and Growth",Development and Housing,031576,B& B - Temp Accom,Supplies and Services,364320,Grants to Voluntary Organisations,14-Jan-2021,000007409718806,THE HONEST LAWYER,7011,Accommodation assistance,500.00,0.00,500.00
"Regeneration, Economy and Growth",Development and Housing,031576,B& B - Temp Accom,Supplies and Services,364320,Grants to Voluntary Organisations,14-Jan-2021,000007409718812,THE HONEST LAWYER,7011,Accommodation assistance,500.00,0.00,500.00
"Regeneration, Economy and Growth",Development and Housing,031576,B& B - Temp Accom,Supplies and Services,364320,Grants to Voluntary Organisations,14-Jan-2021,000007409718820,THE HONEST LAWYER,7011,Accommodation assistance,198.48,0.00,198.48
Neighbourhoods and Climate Change,Environmental Services,010383,C&G - South Street Cleansing,Supplies and Services,304221,Equipment and Materials,14-Jan-2021,000007409718862,AZTEC CHEMICALS LTD,5169,Direct materials,63.00,10.50,52.50
"Regeneration, Economy and Growth",Culture Sport and Tourism,030705,Visit County Durham 030705,Employees,040149,Recruitment Instruction and Training,14-Jan-2021,000007409718876,CIM,8299,Training-all costs,65.00,0.00,65.00
Children and Young Peoples Services,Head of Childrens Social Care,085341,High Etherley Satelite Home,Supplies and Services,304259,Equipment and Materials,14-Jan-2021,000007409718944,Durham County CNCL,9399,Equipment-purchase and rental,21.00,0.00,21.00
"Regeneration, Economy and Growth",Development and Housing,030776,LINKCD Flexible Fund,Supplies and Services,328041,Clothing uniforms and laundry E328,14-Jan-2021,000007409718970,ARGOS LTD,5310,Clothing uniforms and laundry,44.99,0.00,44.99
Children and Young Peoples Services,Head of Early Help Inclusion & Vulnerable Children.,088104,BA/BC/Crook 0-19 Targeted Family Support,Supplies and Services,308011,Furniture,14-Jan-2021,000007409719008,ARGOS LTD,5310,Furniture repair and replacement,263.95,43.99,219.96
Children and Young Peoples Services,Head of Early Help Inclusion & Vulnerable Children.,071569,Woodhouse Close Childrens Centre,Supplies and Services,304259,Equipment and Materials,14-Jan-2021,000007409719010,WWW.THERANGE.CO.UK,5712,Equipment-purchase and rental,22.08,0.00,22.08
Children and Young Peoples Services,Head of Early Help Inclusion & Vulnerable Children.,085952,Secure Education,Supplies and Services,304403,Equipment and Materials,14-Jan-2021,000007409719052,AMZNMKTPLACE AMAZON.CO,5999,Other consumables,5.27,0.00,5.27
Children and Young Peoples Services,Head of Childrens Social Care,085352,Tow Law CU,Supplies and Services,324117,Provisions E324,14-Jan-2021,000007409719134,ASDA GEORGE COM LEEDS,5411,Catering costs - provisions,81.00,0.00,81.00
Children and Young Peoples Services,Head of Childrens Social Care,085352,Tow Law CU,Supplies and Services,384999,Miscellaneous Expenses,14-Jan-2021,000007409719144,Amazon.co.uk MV9BQ0474,5969,Other expenses,9.99,1.67,8.32
Resources BK0010,Digital and Customer Services,065481,Technical Services 065481,Supplies and Services,372009,Subscriptions E372,14-Jan-2021,000007409719160,WEB NETWORKSOLUTIONS,5968,Subscriptions 372009,105.76,0.00,105.76
Children and Young Peoples Services,Head of Education and Skills,071732,Dean Bank Childcare,Supplies and Services,304403,Equipment and Materials,14-Jan-2021,000007409719198,AMZNMktplace,5999,Other consumables,22.76,3.80,18.96
Children and Young Peoples Services,Head of Education and Skills,071732,Dean Bank Childcare,Supplies and Services,304403,Equipment and Materials,14-Jan-2021,000007409719206,AMZNMktplace,5999,Other consumables,3.99,0.67,3.32
Children and Young Peoples Services,Head of Education and Skills,071732,Dean Bank Childcare,Supplies and Services,384999,Miscellaneous Expenses,14-Jan-2021,000007409719212,Amazon.co.uk MV39B2434,5969,Other expenses,17.18,2.86,14.32
Children and Young Peoples Services,Head of Education and Skills,071732,Dean Bank Childcare,Supplies and Services,304403,Equipment and Materials,14-Jan-2021,000007409719218,AMZNMktplace,5999,Other consumables,3.99,0.67,3.32
Children and Young Peoples Services,Head of Education and Skills,071732,Dean Bank Childcare,Supplies and Services,304403,Equipment and Materials,14-Jan-2021,000007409719222,AMZNMktplace,5999,Other consumables,3.99,0.67,3.32
Children and Young Peoples Services,Head of Education and Skills,071732,Dean Bank Childcare,Supplies and Services,304403,Equipment and Materials,14-Jan-2021,000007409719228,AMZNMktplace,5999,Other consumables,3.99,0.67,3.32
Children and Young Peoples Services,Head of Education and Skills,071732,Dean Bank Childcare,Supplies and Services,324117,Provisions E324,14-Jan-2021,000007409719236,CO-OP GROUP 010503,5411,Catering costs - provisions,5.65,0.00,5.65
"Regeneration, Economy and Growth",Development and Housing,031623,Rough,Supplies and Services,304999,Equipment and Materials,14-Jan-2021,000007409719356,DUNCAN BELTON TA K,6513,Misc equipment tools and materials,500.00,0.00,500.00
Children and Young Peoples Services,Head of Early Help Inclusion & Vulnerable Children.,088107,Ferryhill & Newton Aycliffe 0-19 Community Family Hub,Supplies and Services,304403,Equipment and Materials,14-Jan-2021,000007409719366,ARGOS LTD,5310,Other consumables,86.95,0.00,86.95
Children and Young Peoples Services,Head of Early Help Inclusion & Vulnerable Children.,088107,Ferryhill & Newton Aycliffe 0-19 Community Family Hub,Supplies and Services,304403,Equipment and Materials,14-Jan-2021,000007409719376,ARGOS LTD,5310,Other consumables,68.00,0.00,68.00
Children and Young Peoples Services,Head of Early Help Inclusion & Vulnerable Children.,085962,Aycliffe Secure - Durham,Supplies and Services,384999,Miscellaneous Expenses,14-Jan-2021,000007409719382,NEXT DIRECTORY,5965,Other expenses,51.99,0.00,51.99
Children and Young Peoples Services,Head of Early Help Inclusion & Vulnerable Children.,085957,Secure Management,Supplies and Services,304405,Equipment and Materials,14-Jan-2021,000007409719396,AMZNMKTPLACE AMAZON.CO,5999,Medical supplies,40.98,6.84,34.14
Children and Young Peoples Services,Head of Early Help Inclusion & Vulnerable Children.,085962,Aycliffe Secure - Durham,Supplies and Services,384999,Miscellaneous Expenses,14-Jan-2021,000007409719400,Amazon.co.uk MV0CI4FA4,5969,Other expenses,19.99,3.33,16.66
Children and Young Peoples Services,Head of Early Help Inclusion & Vulnerable Children.,085962,Aycliffe Secure - Durham,Supplies and Services,384999,Miscellaneous Expenses,14-Jan-2021,000007409719410,ARGOS LTD,5310,Other expenses,38.94,0.00,38.94
Children and Young Peoples Services,Head of Early Help Inclusion & Vulnerable Children.,071489,Winter Family Fund,Supplies and Services,304403,Equipment and Materials,14-Jan-2021,000007409719438,AMZNMktplace,5999,Other consumables,16.48,0.00,16.48
Children and Young Peoples Services,Head of Early Help Inclusion & Vulnerable Children.,088108,Spennymoor & Shildon 0-19 Targeted Family Support,Supplies and Services,304259,Equipment and Materials,14-Jan-2021,000007409719616,Amazon.co.uk MV6LQ2FI4,5969,Equipment-purchase and rental,18.99,0.00,18.99
"Regeneration, Economy and Growth",Corporate Property and Land,015005,Comeleon House Tanfield Lea,Supplies and Services,304259,Equipment and Materials,14-Jan-2021,000007409719716,AMZ XS-Stock com Ltd,5999,Equipment-purchase and rental,-130.00,-21.67,-108.33
Children and Young Peoples Services,Head of Childrens Social Care,085352,Tow Law CU,Supplies and Services,304403,Equipment and Materials,14-Jan-2021,000007409719834,AMZNMktplace,5999,Other consumables,11.95,1.99,9.96
Children and Young Peoples Services,Head of Childrens Social Care,085352,Tow Law CU,Supplies and Services,324117,Provisions E324,14-Jan-2021,000007409719846,WILKO RETAIL LIMITED,5399,Catering costs - provisions,62.60,0.00,62.60
Neighbourhoods and Climate Change,Environmental Services,010301,C&G - North Grounds Maintenance,Supplies and Services,304403,Equipment and Materials,14-Jan-2021,000007409719930,BESCOL,5231,Other consumables,190.66,0.00,190.66
Children and Young Peoples Services,Head of Early Help Inclusion & Vulnerable Children.,088103,Consett & Stanley 0-19 Community Family Hub,Supplies and Services,384302,Miscellaneous Expenses,14-Jan-2021,000007409719942,AMZNMKTPLACE AMAZON.CO,5999,Activity expenses,29.99,5.00,24.99
Children and Young Peoples Services,Head of Early Help Inclusion & Vulnerable Children.,088102,Consett & Stanley 0-19 Targeted Family Support,Supplies and Services,384302,Miscellaneous Expenses,14-Jan-2021,000007409719950,ASDA SUPERSTORE,5411,Activity expenses,4.00,0.00,4.00
Children and Young Peoples Services,Head of Childrens Social Care,085342,16 Hickstead Rise (previously 9 Cedar Ave),Supplies and Services,384999,Miscellaneous Expenses,14-Jan-2021,000007409719968,Amazon.co.uk MV9ZB34B4,5969,Other expenses,6.98,0.00,6.98
"Regeneration, Economy and Growth",Development and Housing,031576,B& B - Temp Accom,Supplies and Services,364320,Grants to Voluntary Organisations,14-Jan-2021,000007409720044,TOAST LETTINGS,7011,Accommodation assistance,320.00,0.00,320.00
"Regeneration, Economy and Growth",Development and Housing,031500,Housing Solutions - Core Team,Supplies and Services,352001,Conference Expenses,14-Jan-2021,000007409720124,TOAST LETTINGS,7011,Conferencesseminars fees etc,490.00,0.00,490.00
Children and Young Peoples Services,Head of Childrens Social Care,085333,Coxhoe Satelite Home,Supplies and Services,304999,Equipment and Materials,14-Jan-2021,000007409720166,PLAYSTATIONNETWORK,5816,Misc equipment tools and materials,15.99,0.00,15.99
Children and Young Peoples Services,Head of Childrens Social Care,085333,Coxhoe Satelite Home,Supplies and Services,304999,Equipment and Materials,14-Jan-2021,000007409720168,PLAYSTATIONNETWORK,5816,Misc equipment tools and materials,15.99,0.00,15.99
Adult and Health Services,AWH Redundant Cost Centres,052968,Service Support Various,Supplies and Services,372009,Subscriptions E372,14-Jan-2021,000007409720190,SurveyMonkey,7372,Subscriptions 372009,384.00,0.00,384.00
Neighbourhoods and Climate Change,Partnerships & Community Engagement Div.,060472,Syrian Vulnerable Persons Scheme,Supplies and Services,308011,Furniture,14-Jan-2021,000007409720278,SP TERRYS FABRICS,5691,Furniture repair and replacement,87.11,14.52,72.59
Neighbourhoods and Climate Change,Partnerships & Community Engagement Div.,060472,Syrian Vulnerable Persons Scheme,Supplies and Services,308011,Furniture,14-Jan-2021,000007409720286,WILKO.COM,5399,Furniture repair and replacement,126.00,21.00,105.00
Neighbourhoods and Climate Change,Partnerships & Community Engagement Div.,060472,Syrian Vulnerable Persons Scheme,Supplies and Services,308011,Furniture,14-Jan-2021,000007409720298,SCREWFIX DIRECT,5211,Furniture repair and replacement,125.44,20.91,104.53
Adult and Health Services,Head of Adults,053811,Harbour Lodge Extra Care,Supplies and Services,304403,Equipment and Materials,14-Jan-2021,000007413416584,AMZNMKTPLACE AMAZON.CO,5999,Other consumables,209.00,34.83,174.17
Children and Young Peoples Services,Head of Early Help Inclusion & Vulnerable Children.,088102,Consett & Stanley 0-19 Targeted Family Support,Supplies and Services,384302,Miscellaneous Expenses,14-Jan-2021,000007413418342,AMZNMKTPLACE AMAZON.CO,5999,Activity expenses,7.49,1.25,6.24
Children and Young Peoples Services,Head of Early Help Inclusion & Vulnerable Children.,088102,Consett & Stanley 0-19 Targeted Family Support,Supplies and Services,384302,Miscellaneous Expenses,14-Jan-2021,000007413418352,AMZNMKTPLACE AMAZON.CO,5999,Activity expenses,72.25,12.04,60.21
Children and Young Peoples Services,Head of Early Help Inclusion & Vulnerable Children.,088103,Consett & Stanley 0-19 Community Family Hub,Supplies and Services,384302,Miscellaneous Expenses,14-Jan-2021,000007413418366,AMZNMKTPLACE AMAZON.CO,5999,Activity expenses,30.98,5.17,25.81
Children and Young Peoples Services,Head of Early Help Inclusion & Vulnerable Children.,088102,Consett & Stanley 0-19 Targeted Family Support,Supplies and Services,384302,Miscellaneous Expenses,14-Jan-2021,000007413418372,AMZNMKTPLACE AMAZON.CO,5999,Activity expenses,41.94,6.99,34.95
Children and Young Peoples Services,Head of Early Help Inclusion & Vulnerable Children.,088102,Consett & Stanley 0-19 Targeted Family Support,Supplies and Services,384302,Miscellaneous Expenses,14-Jan-2021,000007413418372 - 1,AMZNMKTPLACE AMAZON.CO,5999,Activity expenses,0.03,,0.03
Children and Young Peoples Services,Head of Education and Skills,073911,Pupil Premium,Supplies and Services,304403,Equipment and Materials,14-Jan-2021,000007413418552,AMZNMKTPLACE AMAZON.CO,5999,Other consumables,19.99,3.33,16.66
Children and Young Peoples Services,Head of Early Help Inclusion & Vulnerable Children.,071489,Winter Family Fund,Supplies and Services,364301,Grants to Voluntary Organisations,14-Jan-2021,000007417087540,BOOTS.COM,5912,Hardship,123.49,0.00,123.49
Children and Young Peoples Services,Head of Early Help Inclusion & Vulnerable Children.,085962,Aycliffe Secure - Durham,Supplies and Services,384999,Miscellaneous Expenses,14-Jan-2021,000009407788867,NEXT DIRECTORY,5965,Other expenses,-12.00,0.00,-12.00
Children and Young Peoples Services,Head of Early Help Inclusion & Vulnerable Children.,085962,Aycliffe Secure - Durham,Supplies and Services,384999,Miscellaneous Expenses,14-Jan-2021,000009407788873,NEXT DIRECTORY,5965,Other expenses,-12.00,0.00,-12.00
Children and Young Peoples Services,Head of Early Help Inclusion & Vulnerable Children.,085962,Aycliffe Secure - Durham,Supplies and Services,384999,Miscellaneous Expenses,14-Jan-2021,000009407788877,NEXT DIRECTORY,5965,Other expenses,-12.00,0.00,-12.00
Children and Young Peoples Services,Head of Early Help Inclusion & Vulnerable Children.,085962,Aycliffe Secure - Durham,Supplies and Services,384999,Miscellaneous Expenses,14-Jan-2021,000009407788881,NEXT DIRECTORY,5965,Other expenses,-15.99,0.00,-15.99
"Regeneration, Economy and Growth",Business Durham CL0850,030689,Inward Investment and Aftercare,Supplies and Services,336005,Advertising E336,15-Jan-2021,000007409718508,LINKEDIN IRELAND,7311,Advertising other than for staff,109.03,0.00,109.03
"Regeneration, Economy and Growth",Business Durham CL0850,030689,Inward Investment and Aftercare,Supplies and Services,304999,Equipment and Materials,15-Jan-2021,000007409718512,MOZ INC,5817,Misc equipment tools and materials,3.61,0.00,3.61
Adult and Health Services,Head of Adults,053811,Harbour Lodge Extra Care,Supplies and Services,304403,Equipment and Materials,15-Jan-2021,000007409718758,AMZNMktplace,5999,Other consumables,15.17,2.53,12.64
Resources BK0010,Digital and Customer Services,065481,Technical Services 065481,Supplies and Services,372009,Subscriptions E372,15-Jan-2021,000007409719170,WEB NETWORKSOLUTIONS,5968,Subscriptions 372009,2.91,0.00,2.91
"Regeneration, Economy and Growth",Business Durham CL0850,030689,Inward Investment and Aftercare,Supplies and Services,336005,Advertising E336,15-Jan-2021,000007413416438,LINKEDIN-623 8100424,7311,Advertising other than for staff,24.02,0.00,24.02
"Regeneration, Economy and Growth",Business Durham CL0850,030689,Inward Investment and Aftercare,Supplies and Services,342222,Computers and Communications,15-Jan-2021,000007413416458,FASTHOSTS INTERNET,4816,Comp hardware purch-network servers,30.00,0.00,30.00
"Regeneration, Economy and Growth",Business Durham CL0850,030689,Inward Investment and Aftercare,Supplies and Services,342222,Computers and Communications,15-Jan-2021,000007413416462,FASTHOSTS INTERNET,4816,Comp hardware purch-network servers,44.35,0.00,44.35
"Regeneration, Economy and Growth",Business Durham CL0850,030689,Inward Investment and Aftercare,Supplies and Services,342222,Computers and Communications,15-Jan-2021,000007413416472,FASTHOSTS INTERNET,4816,Comp hardware purch-network servers,24.00,0.00,24.00
"Regeneration, Economy and Growth",Business Durham CL0850,030689,Inward Investment and Aftercare,Supplies and Services,342222,Computers and Communications,15-Jan-2021,000007413416480,FASTHOSTS INTERNET,4816,Comp hardware purch-network servers,30.00,0.00,30.00
"Regeneration, Economy and Growth",Business Durham CL0850,030689,Inward Investment and Aftercare,Supplies and Services,342222,Computers and Communications,15-Jan-2021,000007413416488,FASTHOSTS INTERNET,4816,Comp hardware purch-network servers,24.00,0.00,24.00
"Regeneration, Economy and Growth",Business Durham CL0850,030689,Inward Investment and Aftercare,Supplies and Services,342222,Computers and Communications,15-Jan-2021,000007413416498,FASTHOSTS INTERNET,4816,Comp hardware purch-network servers,28.78,0.00,28.78
"Regeneration, Economy and Growth",Business Durham CL0850,030689,Inward Investment and Aftercare,Supplies and Services,342222,Computers and Communications,15-Jan-2021,000007413416504,FASTHOSTS INTERNET,4816,Comp hardware purch-network servers,28.75,0.00,28.75
Children and Young Peoples Services,Head of Education and Skills,071801,Selby Cottage Childcare Centre,Supplies and Services,324117,Provisions E324,15-Jan-2021,000007413416536,ASDA STORES 7134,5411,Catering costs - provisions,5.00,0.00,5.00
Children and Young Peoples Services,Head of Childrens Social Care,085561,Social Work Academy,Supplies and Services,384999,Miscellaneous Expenses,15-Jan-2021,000007413416590,Amazon.co.uk MV8K474R4,5969,Other expenses,38.95,0.00,38.95
Resources BK0010,Digital and Customer Services,065482,Data Centres,Supplies and Services,304403,Equipment and Materials,15-Jan-2021,000007413416598,AMZ gadgetGaGa,5999,Other consumables,-58.02,-9.67,-48.35
Resources BK0010,Digital and Customer Services,065482,Data Centres,Supplies and Services,304403,Equipment and Materials,15-Jan-2021,000007413416598 - 1,AMZ gadgetGaGa,5999,Other consumables,0.04,,0.04
